{"text_format":"1","workbook":"xlsx","n_sheets":17,"sheets":["CUTTING LIST","Qbiss One elements","Transversal corner elements","Transversal spliced corner el.","Longitudinal corner elements ","Longitudinal spliced corner el.","U-corner elements","Curved elements","3D diagonal-cut corner elements","3D edge-cut corner elements","Accessories","Fixing material data","Transport","Data 3 Accessories","UPDATES","Data 1","Data 2"],"not_rendered":{"charts":0,"images":152,"macros":1,"external_links":1,"defined_names":254,"comments":0,"pivot_tables":0},"unopened":[],"bounds":{"document_bytes":16777216,"sheet_cells":100000,"rows_first":2000,"rows_last":500,"rows_between":2000,"halvings":0,"cell_chars":16384,"cell_head_chars":4096},"cells_cut":0,"cells_raw":0,"read":"whole","date_system":"1900"}

{"sheet":"CUTTING LIST","index":0,"n_rows":57,"n_cols":18,"rows_kept":57,"cut":false,"hidden":false,"merged":[[56,0,56,13],[1,2,2,9],[9,0,9,1],[10,0,10,1],[53,4,53,6],[32,0,32,2],[41,0,41,2],[41,4,41,6],[32,17,32,18],[32,14,32,15],[32,8,32,10],[32,3,32,6],[32,12,32,13]]}
[null,null,null,null,null,null,null,null,null,null,null,"Date last saved:",null,{"$f":"ProfessorExcelLastSaveDate()","v":"2023-11-20T07:46:28"}]
[null,null,"INTERACTIVE CUTTING LIST",null,null,null,null,null,null,null,null,"Last saved by:",null,{"$f":"Lastauthor()","v":"Slanšek Matic"}]
[null,null,null,null,null,null,null,null,null,null,null,"Cutting list number:",null,"Insert"]
[null,null,"version 1.2.11",null,null,null,null,null,"by Matic Slanšek",null,null,"Revision:",null,"Insert"]
[null,null,null,"Required fields"]
[]
[]
[]
[]
["Project name:",null,"Insert text"]
["Customer name:",null,"Insert text"]
["Customer order no:",null,"Insert text"]
["Certificate requirement:",null,"None",null,null,null,null,null,null,null,null,null,null,null,null,null," "]
[]
[]
[]
[]
[]
[]
[]
[]
[]
[null,"Qbiss One elements"]
[]
[]
[]
[]
[]
[]
[]
[]
[]
["Transversal corner elements",null,null,"Transversal spliced corner elements",null,null,null,null,"Longitudinal corner elements",null,null,null,"Longitudinal spliced corner elements",null,"U-corner elements",null,null,"Curved elements"]
[]
[]
[]
[]
[]
[]
[]
[]
["3D diagonal-cut corner elements",null,null,null,"3D edge-cut corner elements"]
[]
[]
[]
[]
[]
[]
[]
[]
[]
[]
[]
[null,"Accessories",null,null,"Transport"]
[]
[]
["Disclaimer: The main and only purpose of this document is to provide cutting list table with integrated restrictions to external designers. Trimo Group holds full copyrights on the information and details provided in this document. Professional care has been taken to ensure that information/details are accurate, correct, completed and not misleading, however Trimo, including its subsidiaries, does not accept responsibility or liability for errors or information, which is found to be misleading. Information/details in this document are for general purposes only. Use of it is on your own initiative and responsibility for compliance with local laws. In no event, will Trimo be liable for any loss or damage including without limitation, indirect orconsequential loss or damage, or any loss or damage whatsoever arising from loss profits arising out of or in connection with the use of this document. Any equation modification of this document or instuction text is stricty prohibited. All information issued by Trimo Group is subject to continuous development and information/details contained in this document are current at date of issue. It is user`s responsibility to obtain most up-to-date information from Trimo when information/details are used for any specific project. The last version of the document is available on www.trimo-group.com. Latest version of published document in English language prevails over other translated language documents."]

{"sheet":"Qbiss One elements","index":1,"n_rows":116,"n_cols":37,"rows_kept":116,"cut":false,"hidden":false,"merged":[[34,1,34,2],[21,19,22,19],[3,21,4,22],[0,0,0,18],[21,1,22,1],[5,8,5,10],[7,0,7,3],[19,0,19,17],[20,4,20,6],[9,0,9,1],[21,11,21,14],[21,15,22,15],[2,3,2,14],[4,3,4,14],[3,3,3,14],[30,1,33,2],[2,17,2,18],[4,17,4,18],[5,17,5,18],[3,17,3,18],[5,15,5,16],[4,15,4,16],[3,15,3,16],[2,15,2,16],[21,18,22,18],[21,2,22,2],[21,4,21,6],[21,7,21,10],[21,17,22,17]]}
["Qbiss One Cutting list for rectangular elements",null,null,null,null,null,null,null,null,null,null,null,null,null,null,null,null,null,null,null,null,null,null,null,null,null,"INSTRUCTIONS"]
[null,null,null,null,null,null,null,null,null,null,null,null,null,null,null,null,null,null,null,null,null,null,null,null,null,null,"Follow steps"]
[null,"Project name:",null,{"$f":"IF('CUTTING LIST'!C10=\"INSERT TEXT\",\"Insert text on first page\",'CUTTING LIST'!C10)","v":"Insert text on first page"},null,null,null,null,null,null,null,null,null,null,null,"Date last saved:",null,{"$f":"'CUTTING LIST'!N1","v":"2023-11-20T07:46:28"},null,null,null,null,null,null,null,null,"1 PHASE / FACADE / BUILDING","Mark positioning of the element according to design shop drawings"]
[null,"Customer name:",null,{"$f":"IF('CUTTING LIST'!C11=\"INSERT TEXT\",\"Insert text on first page\",'CUTTING LIST'!C11)","v":"Insert text on first page"},null,null,null,null,null,null,null,null,null,null,null,"Last saved by:",null,{"$f":"'CUTTING LIST'!N2","v":"Slanšek Matic"},null,null,null,null,null,null,null,null,"2 ELEMENT REF","Mark element according to design shop drawings"]
[null,"Customer order no:",null,{"$f":"IF('CUTTING LIST'!C12=\"INSERT TEXT\",\"Insert text on first page\",'CUTTING LIST'!C12)","v":"Insert text on first page"},null,null,null,null,null,null,null,null,null,null,null,"Cutting list number:",null,{"$f":"IF('CUTTING LIST'!N3=\"Insert\",\"Insert text on first page\",'CUTTING LIST'!N3)","v":"Insert text on first page"},null,null,null,null,null,null,null,null,"3 QTY","Number of elements"]
[null,null,null,null,null,null,null,null,null,null,null,null,null,null,null,"Revision:",null,{"$f":"IF('CUTTING LIST'!N4=\"Insert\",\"Insert text of first page\",'CUTTING LIST'!N4)","v":"Insert text of first page"},null,null,null,null,null,null,null,null,"4 Core type","Power T","90 kg/m3"]
[null,null,null,null,null,null,null,null,null,null,null,null,null,null,null,null,null,null,null,null,null,null,null,null,null,null,null,"Power S","120 kg/m3"]
["STEP 1:",null,null,null,null,null,null,"STEP 2:",null,null,null,null,null,null,null,null,null,null,null,null,null,null,null,null,null,null,null,"Perform C","120 kg/m3"]
["Select type of cladding system:",null,null,null,null,null,null,"Select joint option:",null,null,null,null,null,null,null,null,null,null,null,null,null,null,null,null,null,null,"5 Unit dimensions"]
["Vertical",null,null,null,null,null,null,"BF-BF",null,null,null,null,{"$f":"INDEX('Data 1'!B19:F24,MATCH('Qbiss One elements'!H10,'Data 1'!A19:A24,0),MATCH('Qbiss One elements'!A10,'Data 1'!B18:F18,0))","v":"BF_BF_Vertical"},null,null,null,null,null,null,null,null,null,null,null,null,null,null,"T-","element thickness [mm]: (80, 100, 120, 133, 150, 172, 200, 220, 240, 250)"]
[null,null,null,null,null,null,null,null,null,null,null,null,null,null,null,null,null,null,null,null,null,null,null,null,null,null,null,"M-","element module width [mm]: from 600 up to 1200"]
[null,null,null,null,null,null,null,null,null,null,null,null,null,null,null,null,null,null,null,null,null,null,null,null,null,null,null,"R-","element length [mm]:  from 500 up to 6500",null,null,null,null,"*except element type 5,6,7,8,9,10,11,12:  550mm < R < 6475mm"]
[null,null,null,null,null,null,null,null,null,null,null,null,null,null,null,null,null,null,null,null,null,null,null,null,null,null,null,null,"Element lenght is measured and scheduled between fixing (joint centres) - SEE PICTURES BELOW !!!"]
[]
[]
[]
[]
[]
[]
["STEP 3:"]
[1,2,3,4,5,null,null,6,7,8,9,10,11,12,13,14,15,16,17]
["PHASE / FACADE /","ELEMENT REF:","QTY:","Core type","UNIT DIMENSIONS [mm]",null,null,"EXTERNAL STEEL SHEET",null,null,null,"INTERNAL STEEL SHEET",null,null,null,"ELEMENT Type","FIXING POINT","Other notes","TOTAL [m2]","STATUS"]
["BUILDING",null,null,"Mineral wool","T","M","R","Thickness [mm]","Colour","Profile","Coating","Thickness [mm]","Colour","Profile","Coating",null,"QTY",null,null,null,null,null,null,null,"M*QTY","Total fixing points"]
[null,null,null,null,null,null,null,0.7,null,"G",{"$f":"IFERROR(VLOOKUP(I24,'Data 2'!$A$1:$B$29,2,FALSE),\"\")","v":""},null,null,null,null,null,null,{"$f":"IF(AND(OR(AND(G24>1,536>G24),G24>6488),OR(P24=5,P24=6,P24=7,P24=8,P24=9,P24=10,P24=11,P24=12)),\"El.Length 550mm<R<6475mm!!!\",IF(ISBLANK(G24),\"\",\"\"))","v":""},{"$f":"C24*F24/1000*G24/1000","v":0},{"$f":"IF(OR($A$10=\"\",$H$10=\"\",C24=\"\",D24=\"\",E24=\"\",F24=\"\",G24=\"\",I24=\"\",L24=\"\",M24=\"\",N24=\"\",O24=\"\",P24=\"\",Q24=\"\"),\"Not OK\",\"OK\")","v":"Not OK"},null,null,null,null,{"$f":"C24*F24","v":0},{"$f":"Q24*C24","v":0}]
[]
[null,"TOTAL QTY",{"$f":"SUM(C24:C25)","v":0},null,null,null,null,null,null,null,null,null,null,null,null,null,null,"TOTAL m2 of facade elements",{"$f":"SUM(S24:S25)","v":0}]
[null,"Module x QTY [m]:",{"$f":"SUM(Y24:Y25)/1000","v":0},null,null,null,null,null,null,null,null,null,null,null,null,null,null,"TOTAL fixing points",{"$f":"SUM(Z24:Z25)","v":0}]
[]
[]
[null,"Required fields"]
[null,"Input data doesn't meet Qbiss One limitations - see INSTRUCTIONS on the right"]
[]
[]
[null,null,null,null,null,null,null,null,null,null," "]
[null,"Automatically filled"]
[null,null,null,null,null,null,null,null,null,null,null,null,null,null,null,null,null,null,null,null,null,null,null,null,null,null,"6 External steel sheet thickness","In case of Qbiss elements, to achieve perfect flatness, we always use 0,7 mm thick steel sheet"]
[null,null,null,null,null,null,null,null,null,null,null,null,null,null,null,null,null,null,null,null,null,null,null,null,null,null,"7 External steel sheet colour","Select avaliable standard colours. Find more about standard colours from following link",null,null,null,null,null,null,null,"Qbiss Colour Chart"]
[null,null,null,null,null,null,null,null,null,null,null,null,null,null,null,null,null,null,null,null,null,null,null,null,null,null,"8 External steel sheet profile","All Qbiss One elements have smooth external steel sheet profile"]
[null,null,null,null,null,null,null,null,null,null,null,null,null,null,null,null,null,null,null,null,null,null,null,null,null,null,"9 External steel sheet coating","Based on colour selection, steel sheet coating is selected automaticaly"]
[null,null,null,null,null,null,null,null,null,null,null,null,null,null,null,null,null,null,null,null,null,null,null,null,null,null,"10 Internal steel sheet thickness","Choose among 0,5mm; 0,55mm; 0,6mm; 0,7mm according to offer and structural calculation made by Trimo"]
[null,null,null,null,null,null,null,null,null,null,null,null,null,null,null,null,null,null,null,null,null,null,null,null,null,null,"11 Internal steel sheet colour","Select avaliable standard colours. Find more about standard colours from following link",null,null,null,null,null,null,null,"Qbiss Colour Chart"]
[null,null,null,null,null,null,null,null,null,null,null,null,null,null,null,null,null,null,null,null,null,null,null,null,null,null,"12 Internal steel sheet profile","Choose among: g; s; v; v2; m2 profiles. Find out more about possibilities"]
[null,null,null,null,null,null,null,null,null,null,null,null,null,null,null,null,null,null,null,null,null,null,null,null,null,null,"13 Internal steel sheet coating","Considering project requirements, you can choose what type of coating is appropriate. ",null,null,null,null,null,null,null,null,"SP - Polyester"]
[null,null,null,null,null,null,null,null,null,null,null,null,null,null,null,null,null,null,null,null,null,null,null,null,null,null,null,null,null,null,null,null,null,null,null,null,"PVDF - Polyvinylidene fluoride"]
[null,null,null,null,null,null,null,null,null,null,null,null,null,null,null,null,null,null,null,null,null,null,null,null,null,null,null,null,null,null,null,null,null,null,null,null,"PUR - Polyurethane"]
[null,null,null,null,null,null,null,null,null,null,null,null,null,null,null,null,null,null,null,null,null,null,null,null,null,null,null,null,null,null,null,null,null,null,null,null,"PVC - Polyvinyl chlodide"]
[null,null,null,null,null,null,null,null,null,null,null,null,null,null,null,null,null,null,null,null,null,null,null,null,null,null,"14 Element type","Based on direction of assembly, choose appropriate type of element"]
[]
[]
[]
[]
[]
[]
[]
[]
[]
[]
[]
[]
[]
[]
[]
[]
[]
[]
[]
[]
[]
[]
[]
[]
[]
[]
[]
[]
[]
[]
[]
[]
[]
[]
[]
[]
[]
[]
[]
[]
[]
[]
[]
[]
[]
[null,null,null,null,null,null,null,null,null,null,null,null,null,null,null,null,null,null,null,null,null,null,null,null,null,null,"15 Fixing point","Select quantity of fixing points on Qbiss element according to structural calculation, made by Trimo technical support"]
[null,null,null,null,null,null,null,null,null,null,null,null,null,null,null,null,null,null,null,null,null,null,null,null,null,null,null,"Limitations: 2 < number of fixing points < 6",null,null,null,"(only on one side of the element)"]
[]
[]
[]
[]
[]
[]
[]
[]
[]
[]
[]
[]
[]
[]
[]
[]
[null,null,null,null,null,null,null,null,null,null,null,null,null,null,null,null,null,null,null,null,null,null,null,null,null,null,"Printscreen from structural calculation in SandStat"]
[]
[null,null,null,null,null,null,null,null,null,null,null,null,null,null,null,null,null,null,null,null,null,null,null,null,null,null,"16 Other notes"]
[null,null,null,null,null,null,null,null,null,null,null,null,null,null,null,null,null,null,null,null,null,null,null,null,null,null,"17 Total","Total amount of facade elements - automatically calculated"]
[null,null,null,null,null,null,null,null,null,null,null,null,null,null,null,null,null,null,null,null,null,null,null,null,null,null,"STATUS","OK","\"- element completely defined"]
[null,null,null,null,null,null,null,null,null,null,null,null,null,null,null,null,null,null,null,null,null,null,null,null,null,null,null,"Not OK","\"- Some caracteristics of the element are missing, please fulfill all required cells."]

{"sheet":"Transversal corner elements","index":2,"n_rows":118,"n_cols":41,"rows_kept":118,"cut":false,"hidden":false,"merged":[[22,39,22,41],[34,1,34,2],[21,23,22,23],[30,1,33,2],[21,2,22,2],[21,4,21,9],[21,10,21,13],[21,14,21,17],[21,1,22,1],[23,37,23,39],[8,9,8,10],[21,18,22,18],[21,21,22,21],[21,22,22,22],[7,0,7,3],[9,4,18,5],[19,0,19,21],[20,4,20,9],[5,19,5,20],[5,21,5,22],[0,0,0,22],[2,19,2,20],[5,11,5,13],[4,3,4,18],[3,3,3,18],[2,3,2,18],[2,21,2,22],[3,19,3,20],[3,21,3,22],[4,19,4,20],[4,21,4,22]]}
["Qbiss One Cutting list for Transversal corner elements",null,null,null,null,null,null,null,null,null,null,null,null,null,null,null,null,null,null,null,null,null,null,null,null,null,null,null,null,null,"INSTRUCTIONS"]
[null,null,null,null,null,null,null,null,null,null,null,null,null,null,null,null,null,null,null,null,null,null,null,null,null,null,null,null,null,null,"Follow steps"]
[null,"Project name:",null,{"$f":"IF('CUTTING LIST'!C10=\"INSERT TEXT\",\"Insert text on first page\",'CUTTING LIST'!C10)","v":"Insert text on first page"},null,null,null,null,null,null,null,null,null,null,null,null,null,null,null,"Date last saved:",null,{"$f":"'CUTTING LIST'!N1","v":"2023-11-20T07:46:28"},null,null,null,null,null,null,null,null,"1 PHASE / FACADE / BUILDING","Mark positioning of the element according to design shop drawings"]
[null,"Customer name:",null,{"$f":"IF('CUTTING LIST'!C11=\"INSERT TEXT\",\"Insert text on first page\",'CUTTING LIST'!C11)","v":"Insert text on first page"},null,null,null,null,null,null,null,null,null,null,null,null,null,null,null,"Last saved by:",null,{"$f":"'CUTTING LIST'!N2","v":"Slanšek Matic"},null,null,null,null,null,null,null,null,"2 ELEMENT REF","Mark element according to design shop drawings"]
[null,"Customer order no:",null,{"$f":"IF('CUTTING LIST'!C12=\"INSERT TEXT\",\"Insert text on first page\",'CUTTING LIST'!C12)","v":"Insert text on first page"},null,null,null,null,null,null,null,null,null,null,null,null,null,null,null,"Cutting list number:",null,{"$f":"IF('CUTTING LIST'!N3=\"Insert\",\"Insert text on first page\",'CUTTING LIST'!N3)","v":"Insert text on first page"},null,null,null,null,null,null,null,null,"3 QTY","Number of elements"]
[null,null,null,null,null,null,null,null,null,null,null,null,null,null,null,null,null,null,null,"Revision:",null,{"$f":"IF('CUTTING LIST'!N4=\"Insert\",\"Insert text on first page\",'CUTTING LIST'!N4)","v":"Insert text on first page"},null,null,null,null,null,null,null,null,"4 Core type","Power T","90 kg/m3"]
[null,null,null,null,null,null,null,null,null,null,null,null,null,null,null,null,null,null,null,null,null,null,null,null,null,null,null,null,null,null,null,"Power S","120 kg/m3"]
["STEP 1:",null,null,null,null,null,null,null,null,null,null,null,null,null,null,null,null,null,null,null,null,null,null,null,null,null,null,null,null,null,null,"Perform C","120 kg/m3"]
["Type of installation:",null,null,null,null,null,null,null,null,"Marking corner's sides",null,null,null,null,null,null,null,null,null,null,null,null,null,null,null,null,null,null,null,null,"5 Unit dimensions"]
["Transversal_corner",null,null,null,null,null,null,null,null,null,null,null,null,null,null,null,null,null,null,null,null,null,null,null,null,null,null,null,null,null,"T-","element thickness [mm]: (80, 100, 120, 133, 150, 172, 200, 220, 240, 250)"]
[null,null,null,null,null,null,null,null,null,null,null,null,null,null,null,null,null,null,null,null,null,null,null,null,null,null,null,null,null,null,"M-","element module width [mm]: from 600 up to 1200"]
[null,null,null,null,null,null,null,null,null,null,null,null,null,null,null,null,null,null,null,null,null,null,null,null,null,null,null,null,null,null,"R-","element length [mm]:  from 500 up to 3100",null,null,null,null,"*except element type 5,6,7,8,9,10,11,12:  550mm < R < 3100mm"]
[null,null,null,null,null,null,null,null,null,null,null,null,null,null,null,null,null,null,null,null,null,null,null,null,null,null,null,null,null,null,null,"Element lenght is measured and scheduled between fixing (joint centres) - SEE PICTURES BELOW !!!"]
[null,null,null,null,null,null,null,null,null,null,null,null,null,null,null,null,null,null,null,null,null,null,null,null,null,null,null,null,null,null,"A-","one side of corner element"]
[null,null,null,null,null,null,null,null,null,null,null,null,null,null,null,null,null,null,null,null,null,null,null,null,null,null,null,null,null,null,"B-","other side of corner element"]
[null,null,null,null,null,null,null,null,null,null,null,null,null,null,null,null,null,null,null,null,null,null,null,null,null,null,null,null,null,null,"Angle [α]-","60 degrees to 175 degrees"]
[null,null,null,null,null,null,null,null,null,null,null,null,null,null,null,null,null,null,null,null,null,null,null,null,null,null,null,null,null,null,"Limitations:","Amin and Bmin > ( T + 150 mm)"]
[null,null,null,null,null,null,null,null,null,null,null,null,null,null,null,null,null,null,null,null,null,null,null,null,null,null,null,null,null,null,null,"(A + B)min > 500 mm"]
[null,null,null,null,null,null,null,null,null,null,null,null,null,null,null,null,null,null,null,null,null,null,null,null,null,null,null,null,null,null,null,"A or B > 600 mm; (A + B)max ≤ 2000 mm"]
["STEP 2:",null,null,null,null,null,null,null,null,null,null,null,null,null,null,null,null,null,null,null,null,null,null,null,null,null,null,null,null,null,null,"A or B ≤ 600 mm; (A + B)max ≤ 3100 mm"]
[1,2,3,4,5,null,null,null,null,null,6,7,8,9,10,11,12,13,14,15,16,17,18]
["PHASE / FACADE /","ELEMENT REF:","QTY:","Core type","UNIT DIMENSIONS [mm]",null,null,null,null,null,"EXTERNAL STEEL SHEET",null,null,null,"INTERNAL STEEL SHEET",null,null,null,"ELEMENT Type","Installation","FIXING POINT","Other notes","TOTAL [m2]","STATUS"]
["BUILDING",null,null,"Mineral wool","T","M","R","A","B","Angle","Thickness [mm]","Colour","Profile","Coating","Thickness [mm]","Colour","Profile","Coating",null,"direction","QTY",null,null,null,null,null,null,null,"M*QTY","Total fixing point QTY",null,null,null,null,null,null,null,null,null,"Marking corner's sides"]
[null,null,null,null,null,null,{"$f":"H24+I24","v":0},null,null,null,{"$f":"Thickness_of_external_steel_sheet","v":0.7},null,"G",{"$f":"IFERROR(VLOOKUP(L24,'Data 2'!$A$1:$B$29,2,FALSE),\"\")","v":""},null,null,"\"V\" (standard)",null,null,{"$f":"IF(ISNUMBER(SEARCH(\"horizontal\",'Qbiss One elements'!$A$10)),\"horizontal\",\"vertical\")","v":"vertical"},null,{"$f":"IF(AND(OR(AND(G24>1,536>G24),G24>6488),OR(S24=5,S24=6,S24=7,S24=8,S24=9,S24=10,S24=11,S24=12)),\"El.Length 550mm<R<6475mm!!!\",IF(ISBLANK(G24),\"\",\"\"))","v":""},{"$f":"C24*F24/1000*G24/1000","v":0},{"$f":"IF(OR($A$10=\"\",C24=\"\",D24=\"\",E24=\"\",F24=\"\",H24=\"\",I24=\"\",J24=\"\",L24=\"\",O24=\"\",P24=\"\",Q24=\"\",R24=\"\",S24=\"\",U24=\"\"),\"Not OK\",\"OK\")","v":"Not OK"},null,null,null,null,{"$f":"C24*F24","v":0},{"$f":"U24*C24","v":0}]
[]
[null,"TOTAL QTY",{"$f":"SUM(C24:C25)","v":0},null,null,null,null,null,null,null,null,null,null,null,null,null,null,null,null,null,null,"TOTAL m2 of facade elements",{"$f":"SUM(W24:W25)","v":0}]
[null,"Module x QTY [m]:",{"$f":"SUM(AC24:AC25)/1000","v":0},null,null,null,null,null,null,null,null,null,null,null,null,null,null,null,null,null,null,"TOTAL fixing points",{"$f":"SUM(AD24:AD25)","v":0}]
[]
[]
[null,"Required fields"]
[null,"Input data doesn't meet Qbiss One limitations - see INSTRUCTIONS on the right"]
[]
[]
[]
[null,"Automatically filled"]
[]
[]
[]
[]
[null,null,null,null,null,null,null,null,null,null,null,null,null,null,null,null,null,null,null,null,null,null,null,null,null,null,null,null,null,null,"6 External steel sheet thickness","In case of Qbiss elements, to achieve perfect flatness, we always use 0,7 mm thick steel sheet"]
[null,null,null,null,null,null,null,null,null,null,null,null,null,null,null,null,null,null,null,null,null,null,null,null,null,null,null,null,null,null,"7 External steel sheet colour","Select avaliable standard colours. Find more about standard colours from following link",null,null,null,null,null,null,null,null,"Qbiss Colour Chart"]
[null,null,null,null,null,null,null,null,null,null,null,null,null,null,null,null,null,null,null,null,null,null,null,null,null,null,null,null,null,null,"8 External steel sheet profile","All Qbiss One elements have smooth external steel sheet profile"]
[null,null,null,null,null,null,null,null,null,null,null,null,null,null,null,null,null,null,null,null,null,null,null,null,null,null,null,null,null,null,"9 External steel sheet coating","Based on colour selection, steel sheet coating is selected automaticaly"]
[null,null,null,null,null,null,null,null,null,null,null,null,null,null,null,null,null,null,null,null,null,null,null,null,null,null,null,null,null,null,"10 Internal steel sheet thickness","Choose among 0,5mm; 0,55mm; 0,6mm; 0,7mm according to offer and structural calculation made by Trimo"]
[null,null,null,null,null,null,null,null,null,null,null,null,null,null,null,null,null,null,null,null,null,null,null,null,null,null,null,null,null,null,"11 Internal steel sheet colour","Select avaliable standard colours. Find more about standard colours from following link",null,null,null,null,null,null,null,null,"Qbiss Colour Chart"]
[null,null,null,null,null,null,null,null,null,null,null,null,null,null,null,null,null,null,null,null,null,null,null,null,null,null,null,null,null,null,"12 Internal steel sheet profile","Choose among: g; s; v; v2; m2 profiles. Find out more about possibilities"]
[null,null,null,null,null,null,null,null,null,null,null,null,null,null,null,null,null,null,null,null,null,null,null,null,null,null,null,null,null,null,"13 Internal steel sheet coating","Considering project requirements, you can choose what type of coating is appropriate. ",null,null,null,null,null,null,null,null,"SP - Polyester"]
[null,null,null,null,null,null,null,null,null,null,null,null,null,null,null,null,null,null,null,null,null,null,null,null,null,null,null,null,null,null,null,null,null,null,null,null,null,null,null,null,"PVDF - Polyvinylidene fluoride"]
[null,null,null,null,null,null,null,null,null,null,null,null,null,null,null,null,null,null,null,null,null,null,null,null,null,null,null,null,null,null,null,null,null,null,null,null,null,null,null,null,"PUR - Polyurethane"]
[null,null,null,null,null,null,null,null,null,null,null,null,null,null,null,null,null,null,null,null,null,null,null,null,null,null,null,null,null,null,null,null,null,null,null,null,null,null,null,null,"PVC - Polyvinyl chlodide"]
[null,null,null,null,null,null,null,null,null,null,null,null,null,null,null,null,null,null,null,null,null,null,null,null,null,null,null,null,null,null,"14 Element type","Based on direction of assembly, choose appropriate type of element"]
[]
[]
[]
[]
[]
[]
[]
[]
[]
[]
[]
[]
[]
[]
[]
[]
[]
[]
[]
[]
[]
[]
[]
[]
[]
[]
[]
[]
[]
[]
[]
[]
[]
[]
[]
[]
[]
[]
[]
[]
[]
[]
[]
[null,null,null,null,null,null,null,null,null,null,null,null,null,null,null,null,null,null,null,null,null,null,null,null,null,null,null,null,null,null,"15 Installation direction: The same as orientation of elements. Fulfilled automatically"]
[null,null,null,null,null,null,null,null,null,null,null,null,null,null,null,null,null,null,null,null,null,null,null,null,null,null,null,null,null,null,"16 Fixing point","Select quantity of fixing points on Qbiss element according to structural calculation, made by Trimo technical support"]
[null,null,null,null,null,null,null,null,null,null,null,null,null,null,null,null,null,null,null,null,null,null,null,null,null,null,null,null,null,null,null,"Limitations: 2 < number of fixing points < 6",null,null,null,null,"(only on one side of the element)"]
[]
[]
[]
[]
[]
[]
[]
[]
[]
[]
[]
[]
[]
[]
[]
[]
[null,null,null,null,null,null,null,null,null,null,null,null,null,null,null,null,null,null,null,null,null,null,null,null,null,null,null,null,null,null,"Printscreen from structural calculation in SandStat"]
[null,null,null,null,null,null,null,null,null,null,null,null,null,null,null,null,null,null,null,null,null,null,null,null,null,null,null,null,null,null,"17  Other notes"]
[null,null,null,null,null,null,null,null,null,null,null,null,null,null,null,null,null,null,null,null,null,null,null,null,null,null,null,null,null,null,"18 Total","Total amount of facade elements - calculated automatically"]
[null,null,null,null,null,null,null,null,null,null,null,null,null,null,null,null,null,null,null,null,null,null,null,null,null,null,null,null,null,null,"STATUS","OK","\"- element completely defined"]
[null,null,null,null,null,null,null,null,null,null,null,null,null,null,null,null,null,null,null,null,null,null,null,null,null,null,null,null,null,null,null,"Not OK","\"- Some caracteristics of the element are missing, please fulfill all required cells."]

{"sheet":"Transversal spliced corner el.","index":3,"n_rows":118,"n_cols":41,"rows_kept":118,"cut":false,"hidden":false,"merged":[[0,0,0,22],[2,3,2,18],[2,19,2,20],[2,21,2,22],[3,3,3,18],[3,19,3,20],[3,21,3,22],[4,3,4,18],[4,19,4,20],[4,21,4,22],[5,11,5,13],[5,19,5,20],[5,21,5,22],[21,23,22,23],[23,37,23,39],[7,0,7,3],[8,9,8,10],[9,4,18,5],[19,0,19,21],[20,4,20,9],[21,1,22,1],[21,2,22,2],[21,4,21,9],[21,10,21,13],[21,14,21,17],[9,0,9,1],[30,1,33,2],[34,1,34,2],[21,18,22,18],[21,21,22,21],[21,22,22,22]]}
["Qbiss One Cutting list for Transversal spliced corner elements",null,null,null,null,null,null,null,null,null,null,null,null,null,null,null,null,null,null,null,null,null,null,null,null,null,null,null,null,null,"INSTRUCTIONS"]
[null,null,null,null,null,null,null,null,null,null,null,null,null,null,null,null,null,null,null,null,null,null,null,null,null,null,null,null,null,null,"Follow steps"]
[null,"Project name:",null,{"$f":"IF('CUTTING LIST'!C10=\"INSERT TEXT\",\"Insert text on first page\",'CUTTING LIST'!C10)","v":"Insert text on first page"},null,null,null,null,null,null,null,null,null,null,null,null,null,null,null,"Date last saved:",null,{"$f":"'CUTTING LIST'!N1","v":"2023-11-20T07:46:28"},null,null,null,null,null,null,null,null,"1 PHASE / FACADE / BUILDING","Mark positioning of the element according to design shop drawings"]
[null,"Customer name:",null,{"$f":"IF('CUTTING LIST'!C11=\"INSERT TEXT\",\"Insert text on first page\",'CUTTING LIST'!C11)","v":"Insert text on first page"},null,null,null,null,null,null,null,null,null,null,null,null,null,null,null,"Last saved by:",null,{"$f":"'CUTTING LIST'!N2","v":"Slanšek Matic"},null,null,null,null,null,null,null,null,"2 ELEMENT REF","Mark element according to design shop drawings"]
[null,"Customer order no:",null,{"$f":"IF('CUTTING LIST'!C12=\"INSERT TEXT\",\"Insert text on first page\",'CUTTING LIST'!C12)","v":"Insert text on first page"},null,null,null,null,null,null,null,null,null,null,null,null,null,null,null,"Cutting list number:",null,{"$f":"IF('CUTTING LIST'!N3=\"Insert\",\"Insert text on first page\",'CUTTING LIST'!N3)","v":"Insert text on first page"},null,null,null,null,null,null,null,null,"3 QTY","Number of elements"]
[null,null,null,null,null,null,null,null,null,null,null,null,null,null,null,null,null,null,null,"Revision:",null,{"$f":"IF('CUTTING LIST'!N4=\"Insert\",\"Insert text on first page\",'CUTTING LIST'!N4)","v":"Insert text on first page"},null,null,null,null,null,null,null,null,"4 Core type","Power T","90 kg/m3"]
[null,null,null,null,null,null,null,null,null,null,null,null,null,null,null,null,null,null,null,null,null,null,null,null,null,null,null,null,null,null,null,"Power S","120 kg/m3"]
["STEP 1:",null,null,null,null,null,null,null,null,null,null,null,null,null,null,null,null,null,null,null,null,null,null,null,null,null,null,null,null,null,null,"Perform C","120 kg/m3"]
["Type of installation:",null,null,null,null,null,null,null,null,"Marking corner's sides",null,null,null,null,null,null,null,null,null,null,null,null,null,null,null,null,null,null,null,null,"5 Unit dimensions"]
["Transversal_spliced_corner",null,null,null,null,null,null,null,null,null,null,null,null,null,null,null,null,null,null,null,null,null,null,null,null,null,null,null,null,null,"T-","element thickness [mm]: (80, 100, 120, 133, 150, 172, 200, 220, 240, 250)"]
[null,null,null,null,null,null,null,null,null,null,null,null,null,null,null,null,null,null,null,null,null,null,null,null,null,null,null,null,null,null,"M-","element module width [mm]: from 600 up to 1200"]
[null,null,null,null,null,null,null,null,null,null,null,null,null,null,null,null,null,null,null,null,null,null,null,null,null,null,null,null,null,null,"R-","element length [mm]:  from 500 up to 3100",null,null,null,null,"*except element type 5,6,7,8,9,10,11,12:  550mm < R < 3100mm"]
[null,null,null,null,null,null,null,null,null,null,null,null,null,null,null,null,null,null,null,null,null,null,null,null,null,null,null,null,null,null,null,"Element lenght is measured and scheduled between fixing (joint centres) - SEE PICTURES BELOW !!!"]
[null,null,null,null,null,null,null,null,null,null,null,null,null,null,null,null,null,null,null,null,null,null,null,null,null,null,null,null,null,null,"A-","one side of corner element"]
[null,null,null,null,null,null,null,null,null,null,null,null,null,null,null,null,null,null,null,null,null,null,null,null,null,null,null,null,null,null,"B-","other side of corner element"]
[null,null,null,null,null,null,null,null,null,null,null,null,null,null,null,null,null,null,null,null,null,null,null,null,null,null,null,null,null,null,"Angle [α]-","60 degrees to 175 degrees"]
[null,null,null,null,null,null,null,null,null,null,null,null,null,null,null,null,null,null,null,null,null,null,null,null,null,null,null,null,null,null,"Limitations:","Amin and Bmin > ( T + 150 mm)"]
[null,null,null,null,null,null,null,null,null,null,null,null,null,null,null,null,null,null,null,null,null,null,null,null,null,null,null,null,null,null,null,"(A + B)min > 500 mm"]
[null,null,null,null,null,null,null,null,null,null,null,null,null,null,null,null,null,null,null,null,null,null,null,null,null,null,null,null,null,null,null,"A or B > 600 mm; (A + B)max ≤ 2000 mm"]
["STEP 2:",null,null,null,null,null,null,null,null,null,null,null,null,null,null,null,null,null,null,null,null,null,null,null,null,null,null,null,null,null,null,"A or B ≤ 600 mm; (A + B)max ≤ 3100 mm"]
[1,2,3,4,5,null,null,null,null,null,6,7,8,9,10,11,12,13,14,15,16,17,18]
["PHASE / FACADE /","ELEMENT REF:","QTY:","Core type","UNIT DIMENSIONS [mm]",null,null,null,null,null,"EXTERNAL STEEL SHEET",null,null,null,"INTERNAL STEEL SHEET",null,null,null,"ELEMENT Type","Installation","FIXING POINT","Other notes","TOTAL [m2]","STATUS"]
["BUILDING",null,null,"Mineral wool","T","M","R","A","B","Angle","Thickness [mm]","Colour","Profile","Coating","Thickness [mm]","Colour","Profile","Coating",null,"direction","QTY",null,null,null,null,null,null,null,"M*QTY","Total fixing point QTY",null,null,null,null,null,null,null,null,null,"Marking corner's sides"]
[null,null,null,null,null,null,{"$f":"H24+I24","v":0},null,null,null,{"$f":"Thickness_of_external_steel_sheet","v":0.7},null,"G",{"$f":"IFERROR(VLOOKUP(L24,'Data 2'!$A$1:$B$29,2,FALSE),\"\")","v":""},null,null,null,null,null,{"$f":"IF(ISNUMBER(SEARCH(\"horizontal\",'Qbiss One elements'!$A$10)),\"horizontal\",\"vertical\")","v":"vertical"},null,{"$f":"IF(AND(OR(AND(G24>1,536>G24),G24>6488),OR(S24=5,S24=6,S24=7,S24=8,S24=9,S24=10,S24=11,S24=12)),\"El.Length 550mm<R<6475mm!!!\",IF(ISBLANK(G24),\"\",\"\"))","v":""},{"$f":"C24*F24/1000*G24/1000","v":0},{"$f":"IF(OR($A$10=\"\",C24=\"\",D24=\"\",E24=\"\",F24=\"\",H24=\"\",I24=\"\",J24=\"\",L24=\"\",O24=\"\",P24=\"\",Q24=\"\",R24=\"\",S24=\"\",U24=\"\"),\"Not OK\",\"OK\")","v":"Not OK"},null,null,null,null,{"$f":"C24*F24","v":0},{"$f":"U24*C24","v":0}]
[]
[null,"TOTAL QTY",{"$f":"SUM(C24:C25)","v":0},null,null,null,null,null,null,null,null,null,null,null,null,null,null,null,null,null,null,"TOTAL m2 of facade elements",{"$f":"SUM(W24:W25)","v":0}]
[null,"Module x QTY [m]:",{"$f":"SUM(AC24:AC25)/1000","v":0},null,null,null,null,null,null,null,null,null,null,null,null,null,null,null,null,null,null,"TOTAL fixing points",{"$f":"SUM(AD24:AD25)","v":0}]
[]
[]
[null,"Required fields"]
[null,"Input data doesn't meet Qbiss One limitations - see INSTRUCTIONS on the right"]
[]
[]
[]
[null,"Automatically filled"]
[]
[]
[]
[]
[null,null,null,null,null,null,null,null,null,null,null,null,null,null,null,null,null,null,null,null,null,null,null,null,null,null,null,null,null,null,"6 External steel sheet thickness","In case of Qbiss elements, to achieve perfect flatness, we always use 0,7 mm thick steel sheet"]
[null,null,null,null,null,null,null,null,null,null,null,null,null,null,null,null,null,null,null,null,null,null,null,null,null,null,null,null,null,null,"7 External steel sheet colour","Select avaliable standard colours. Find more about standard colours from following link",null,null,null,null,null,null,null,null,"Qbiss Colour Chart"]
[null,null,null,null,null,null,null,null,null,null,null,null,null,null,null,null,null,null,null,null,null,null,null,null,null,null,null,null,null,null,"8 External steel sheet profile","All Qbiss One elements have smooth external steel sheet profile"]
[null,null,null,null,null,null,null,null,null,null,null,null,null,null,null,null,null,null,null,null,null,null,null,null,null,null,null,null,null,null,"9 External steel sheet coating","Based on colour selection, steel sheet coating is selected automaticaly"]
[null,null,null,null,null,null,null,null,null,null,null,null,null,null,null,null,null,null,null,null,null,null,null,null,null,null,null,null,null,null,"10 Internal steel sheet thickness","Choose among 0,5mm; 0,55mm; 0,6mm; 0,7mm according to offer and structural calculation made by Trimo"]
[null,null,null,null,null,null,null,null,null,null,null,null,null,null,null,null,null,null,null,null,null,null,null,null,null,null,null,null,null,null,"11 Internal steel sheet colour","Select avaliable standard colours. Find more about standard colours from following link",null,null,null,null,null,null,null,null,"Qbiss Colour Chart"]
[null,null,null,null,null,null,null,null,null,null,null,null,null,null,null,null,null,null,null,null,null,null,null,null,null,null,null,null,null,null,"12 Internal steel sheet profile","Choose among: g; s; v; v2; m2 profiles. Find out more about possibilities"]
[null,null,null,null,null,null,null,null,null,null,null,null,null,null,null,null,null,null,null,null,null,null,null,null,null,null,null,null,null,null,"13 Internal steel sheet coating","Considering project requirements, you can choose what type of coating is appropriate. ",null,null,null,null,null,null,null,null,"SP - Polyester"]
[null,null,null,null,null,null,null,null,null,null,null,null,null,null,null,null,null,null,null,null,null,null,null,null,null,null,null,null,null,null,null,null,null,null,null,null,null,null,null,null,"PVDF - Polyvinylidene fluoride"]
[null,null,null,null,null,null,null,null,null,null,null,null,null,null,null,null,null,null,null,null,null,null,null,null,null,null,null,null,null,null,null,null,null,null,null,null,null,null,null,null,"PUR - Polyurethane"]
[null,null,null,null,null,null,null,null,null,null,null,null,null,null,null,null,null,null,null,null,null,null,null,null,null,null,null,null,null,null,null,null,null,null,null,null,null,null,null,null,"PVC - Polyvinyl chlodide"]
[null,null,null,null,null,null,null,null,null,null,null,null,null,null,null,null,null,null,null,null,null,null,null,null,null,null,null,null,null,null,"14 Element type","Based on direction of assembly, choose appropriate type of element"]
[]
[]
[]
[]
[]
[]
[]
[]
[]
[]
[]
[]
[]
[]
[]
[]
[]
[]
[]
[]
[]
[]
[]
[]
[]
[]
[]
[]
[]
[]
[]
[]
[]
[]
[]
[]
[]
[]
[]
[]
[]
[]
[]
[null,null,null,null,null,null,null,null,null,null,null,null,null,null,null,null,null,null,null,null,null,null,null,null,null,null,null,null,null,null,"15 Installation direction: The same as orientation of elements. Fulfilled automatically"]
[null,null,null,null,null,null,null,null,null,null,null,null,null,null,null,null,null,null,null,null,null,null,null,null,null,null,null,null,null,null,"16 Fixing point","Select quantity of fixing points on Qbiss element according to structural calculation, made by Trimo technical support"]
[null,null,null,null,null,null,null,null,null,null,null,null,null,null,null,null,null,null,null,null,null,null,null,null,null,null,null,null,null,null,null,"Limitations: 2 < number of fixing points < 6",null,null,null,null,"(only on one side of the element)"]
[]
[]
[]
[]
[]
[]
[]
[]
[]
[]
[]
[]
[]
[]
[]
[]
[null,null,null,null,null,null,null,null,null,null,null,null,null,null,null,null,null,null,null,null,null,null,null,null,null,null,null,null,null,null,"Printscreen from structural calculation in SandStat"]
[null,null,null,null,null,null,null,null,null,null,null,null,null,null,null,null,null,null,null,null,null,null,null,null,null,null,null,null,null,null,"17  Other notes"]
[null,null,null,null,null,null,null,null,null,null,null,null,null,null,null,null,null,null,null,null,null,null,null,null,null,null,null,null,null,null,"18 Total","Total amount of facade elements - calculated automatically"]
[null,null,null,null,null,null,null,null,null,null,null,null,null,null,null,null,null,null,null,null,null,null,null,null,null,null,null,null,null,null,"STATUS","OK","\"- element completely defined"]
[null,null,null,null,null,null,null,null,null,null,null,null,null,null,null,null,null,null,null,null,null,null,null,null,null,null,null,null,null,null,null,"Not OK","\"- Some caracteristics of the element are missing, please fulfill all required cells."]

{"sheet":"Longitudinal corner elements ","index":4,"n_rows":131,"n_cols":41,"rows_kept":131,"cut":false,"hidden":false,"merged":[[3,25,4,26],[21,10,21,13],[21,14,21,17],[21,1,22,1],[20,4,20,9],[5,11,5,13],[7,0,7,3],[19,0,19,21],[21,18,22,18],[21,21,22,21],[21,22,22,22],[4,3,4,18],[4,19,4,20],[21,23,22,23],[8,9,8,10],[30,1,33,2],[4,21,4,22],[5,19,5,20],[5,21,5,22],[0,0,0,22],[2,3,2,18],[3,3,3,18],[2,19,2,20],[2,21,2,22],[3,19,3,20],[3,21,3,22],[21,2,22,2],[21,4,21,9]]}
["Qbiss One Cutting list for Longitudinal corner elements",null,null,null,null,null,null,null,null,null,null,null,null,null,null,null,null,null,null,null,null,null,null,null,null,null,null,null,null,null,"INSTRUCTIONS"]
[null,null,null,null,null,null,null,null,null,null,null,null,null,null,null,null,null,null,null,null,null,null,null,null,null,null,null,null,null,null,"Follow steps"]
[null,"Project name:",null,{"$f":"IF('CUTTING LIST'!C10=\"INSERT TEXT\",\"Insert text on first page\",'CUTTING LIST'!C10)","v":"Insert text on first page"},null,null,null,null,null,null,null,null,null,null,null,null,null,null,null,"Date last saved:",null,{"$f":"'CUTTING LIST'!N1","v":"2023-11-20T07:46:28"},null,null,null,null,null,null,null,null,"1 PHASE / FACADE / BUILDING","Mark positioning of the element according to design shop drawings"]
[null,"Customer name:",null,{"$f":"IF('CUTTING LIST'!C11=\"INSERT TEXT\",\"Insert text on first page\",'CUTTING LIST'!C11)","v":"Insert text on first page"},null,null,null,null,null,null,null,null,null,null,null,null,null,null,null,"Last saved by:",null,{"$f":"'CUTTING LIST'!N2","v":"Slanšek Matic"},null,null,null,null,null,null,null,null,"2 ELEMENT REF","Mark element according to design shop drawings"]
[null,"Customer order no:",null,{"$f":"IF('CUTTING LIST'!C12=\"INSERT TEXT\",\"Insert text on first page\",'CUTTING LIST'!C12)","v":"Insert text on first page"},null,null,null,null,null,null,null,null,null,null,null,null,null,null,null,"Cutting list number:",null,{"$f":"IF('CUTTING LIST'!N3=\"Insert\",\"Insert text on first page\",'CUTTING LIST'!N3)","v":"Insert text on first page"},null,null,null,null,null,null,null,null,"3 QTY","Number of elements"]
[null,null,null,null,null,null,null,null,null,null,null,null,null,null,null,null,null,null,null,"Revision:",null,{"$f":"IF('CUTTING LIST'!N4=\"Insert\",\"Insert text on first page\",'CUTTING LIST'!N4)","v":"Insert text on first page"},null,null,null,null,null,null,null,null,"4 Core type","Power T","90 kg/m3"]
[null,null,null,null,null,null,null,null,null,null,null,null,null,null,null,null,null,null,null,null,null,null,null,null,null,null,null,null,null,null,null,"Power S","120 kg/m3"]
["STEP 1:",null,null,null,null,null,null,null,null,null,null,null,null,null,null,null,null,null,null,null,null,null,null,null,null,null,null,null,null,null,null,"Perform C","120 kg/m3"]
["Type of installation:",null,null,null,null,null,null,null,null,"Marking corner's sides",null,null,null,null,null,null,null,null,null,null,null,null,null,null,null,null,null,null,null,null,"5 Unit dimensions"]
["Longitudinal_corner",null,null,null,null,null,null,null,null,null,null,null,null,null,null,null,null,null,null,null,null,null,null,null,null,null,null,null,null,null,"T-","element thickness [mm]: (80, 100, 120, 133, 150, 172, 200, 220, 240, 250)"]
[null,null,null,null,null,null,null,null,null,null,null,null,null,null,null,null,null,null,null,null,null,null,null,null,null,null,null,null,null,null,"M-","element module width [mm]: from 600 up to 1200"]
[null,null,null,null,null,null,null,null,null,null,null,null,null,null,null,null,null,null,null,null,null,null,null,null,null,null,null,null,null,null,"R-","element length [mm]:  from 500 up to 6500",null,null,null,null,"*except element type 5,6,7,8,9,10,11,12:  550mm < R < 6475mm"]
[null,null,null,null,null,null,null,null,null,null,null,null,null,null,null,null,null,null,null,null,null,null,null,null,null,null,null,null,null,null,null,"Element lenght is measured and scheduled between fixing (joint centres) - SEE PICTURES BELOW !!!"]
[null,null,null,null,null,null,null,null,null,null,null,null,null,null,null,null,null,null,null,null,null,null,null,null,null,null,null,null,null,null,"A-","one side of corner element"]
[null,null,null,null,null,null,null,null,null,null,null,null,null,null,null,null,null,null,null,null,null,null,null,null,null,null,null,null,null,null,"B-","other side of corner element"]
[null,null,null,null,null,null,null,null,null,null,null,null,null,null,null,null,null,null,null,null,null,null,null,null,null,null,null,null,null,null,"Angle [α]-","80 degrees to 175 degrees"]
[null,null,null,null,null,null,null,null,null,null,null,null,null,null,null,null,null,null,null,null,null,null,null,null,null,null,null,null,null,null,"Limitations:","Amin ≥ 200 mm + T"]
[null,null,null,null,null,null,null,null,null,null,null,null,null,null,null,null,null,null,null,null,null,null,null,null,null,null,null,null,null,null,null,"Bmin ≥ 150 mm + T"]
[null,null,null,null,null,null,null,null,null,null,null,null,null,null,null,null,null,null,null,null,null,null,null,null,null,null,null,null,null,null,null,"(A + B) ≥ 600 mm"]
["STEP 2:",null,null,null,null,null,null,null,null,null,null,null,null,null,null,null,null,null,null,null,null,null,null,null,null,null,null,null,null,null,null,"(A + B) ≤ 1200 mm"]
[1,2,3,4,5,null,null,null,null,null,6,7,8,9,10,11,12,13,14,15,16,17,18]
["PHASE / FACADE /","ELEMENT REF:","QTY:","Core type","UNIT DIMENSIONS [mm]",null,null,null,null,null,"EXTERNAL STEEL SHEET",null,null,null,"INTERNAL STEEL SHEET",null,null,null,"ELEMENT Type","Installation","FIXING POINT","Other notes","TOTAL [m2]","STATUS"]
["BUILDING",null,null,"Mineral wool","T","M","R","A","B","Angle","Thickness [mm]","Colour","Profile","Coating","Thickness [mm]","Colour","Profile","Coating",null,"direction","QTY",null,null,null,null,null,null,null,"M*QTY","Total fixing points"]
[null,null,null,null,null,{"$f":"H24+I24","v":0},null,null,null,null,{"$f":"Thickness_of_external_steel_sheet","v":0.7},null,{"$f":"External_steel_sheet_profilation","v":"G"},{"$f":"IFERROR(VLOOKUP(L24,'Data 2'!$A$1:$B$29,2,FALSE),\"\")","v":""},null,null,null,null,null,{"$f":"IF(ISNUMBER(SEARCH(\"horizontal\",'Qbiss One elements'!$A$10)),\"horizontal\",\"vertical\")","v":"vertical"},null,{"$f":"IF(AND(OR(AND(G24>1,536>G24),G24>6488),OR(S24=5,S24=6,S24=7,S24=8,S24=9,S24=10,S24=11,S24=12)),\"El.Length 550mm<R<6475mm!!!\",IF(ISBLANK(G24),\"\",\"\"))","v":""},{"$f":"C24*F24/1000*G24/1000","v":0},{"$f":"IF(OR($A$10=\"\",C24=\"\",D24=\"\",E24=\"\",G24=\"\",H24=\"\",I24=\"\",J24=\"\",L24=\"\",O24=\"\",P24=\"\",Q24=\"\",R24=\"\",S24=\"\",U24=\"\"),\"Not OK\",\"OK\")","v":"Not OK"},null,null,null,null,{"$f":"C24*F24","v":0},{"$f":"U24*C24","v":0}]
[]
[null,"TOTAL QTY",{"$f":"SUM(C24:C25)","v":0},null,null,null,null,null,null,null,null,null,null,null,null,null,null,null,null,null,null,"TOTAL m2 of facade elements",{"$f":"SUM(W24:W25)","v":0}]
[null,"Module x QTY [m]:",{"$f":"SUM(AC24:AC25)/1000","v":0},null,null,null,null,null,null,null,null,null,null,null,null,null,null,null,null,null,null,"TOTAL fixing points",{"$f":"SUM(AD24:AD25)","v":0}]
[]
[]
[null,"Required fields"]
[null,"Input data doesn't meet Qbiss One limitations - see INSTRUCTIONS on the right"]
[]
[]
[]
[null,"Automatically filled"]
[]
[]
[]
[]
[]
[]
[]
[]
[]
[]
[]
[null,null,null,null,null,null,null,null,null,null,null,null,null,null,null,null,null,null,null,null,null,null,null,null,null,null,null,null,null,null,"6 External steel sheet thickness","In case of Qbiss elements, to achieve perfect flatness, we always use 0,7 mm thick steel sheet"]
[null,null,null,null,null,null,null,null,null,null,null,null,null,null,null,null,null,null,null,null,null,null,null,null,null,null,null,null,null,null,"7 External steel sheet colour","Select avaliable standard colours. Find more about standard colours from following link",null,null,null,null,null,null,null,null,"Qbiss Colour Chart"]
[null,null,null,null,null,null,null,null,null,null,null,null,null,null,null,null,null,null,null,null,null,null,null,null,null,null,null,null,null,null,"8 External steel sheet profile","All Qbiss One elements have smooth external steel sheet profile"]
[null,null,null,null,null,null,null,null,null,null,null,null,null,null,null,null,null,null,null,null,null,null,null,null,null,null,null,null,null,null,"9 External steel sheet coating","Based on colour selection, steel sheet coating is selected automaticaly"]
[null,null,null,null,null,null,null,null,null,null,null,null,null,null,null,null,null,null,null,null,null,null,null,null,null,null,null,null,null,null,"10 Internal steel sheet thickness","Choose among 0,5mm; 0,55mm; 0,6mm; 0,7mm according to offer and structural calculation made by Trimo"]
[null,null,null,null,null,null,null,null,null,null,null,null,null,null,null,null,null,null,null,null,null,null,null,null,null,null,null,null,null,null,"11 Internal steel sheet colour","Select avaliable standard colours. Find more about standard colours from following link",null,null,null,null,null,null,null,null,"Qbiss Colour Chart"]
[null,null,null,null,null,null,null,null,null,null,null,null,null,null,null,null,null,null,null,null,null,null,null,null,null,null,null,null,null,null,"12 Internal steel sheet profile","Choose among: g; s; v; v2; m2 profiles. Find out more about possibilities"]
[null,null,null,null,null,null,null,null,null,null,null,null,null,null,null,null,null,null,null,null,null,null,null,null,null,null,null,null,null,null,"13 Internal steel sheet coating","Considering project requirements, you can choose what type of coating is appropriate. ",null,null,null,null,null,null,null,null,"SP - Polyester"]
[null,null,null,null,null,null,null,null,null,null,null,null,null,null,null,null,null,null,null,null,null,null,null,null,null,null,null,null,null,null,null,null,null,null,null,null,null,null,null,null,"PVDF - Polyvinylidene fluoride"]
[null,null,null,null,null,null,null,null,null,null,null,null,null,null,null,null,null,null,null,null,null,null,null,null,null,null,null,null,null,null,null,null,null,null,null,null,null,null,null,null,"PUR - Polyurethane"]
[null,null,null,null,null,null,null,null,null,null,null,null,null,null,null,null,null,null,null,null,null,null,null,null,null,null,null,null,null,null,null,null,null,null,null,null,null,null,null,null,"PVC - Polyvinyl chlodide"]
[null,null,null,null,null,null,null,null,null,null,null,null,null,null,null,null,null,null,null,null,null,null,null,null,null,null,null,null,null,null,"14 Element type","Based on direction of assembly, choose appropriate type of element"]
[]
[]
[]
[]
[]
[]
[]
[]
[]
[]
[]
[]
[]
[]
[]
[]
[]
[]
[]
[]
[]
[]
[]
[]
[]
[]
[]
[]
[]
[]
[]
[]
[]
[]
[]
[]
[]
[]
[]
[]
[]
[]
[]
[null,null,null,null,null,null,null,null,null,null,null,null,null,null,null,null,null,null,null,null,null,null,null,null,null,null,null,null,null,null,"15 Installation direction: The same as orientation of elements. Fulfilled automatically"]
[null,null,null,null,null,null,null,null,null,null,null,null,null,null,null,null,null,null,null,null,null,null,null,null,null,null,null,null,null,null,"16 Fixing point","Select quantity of fixing points on Qbiss element according to structural calculation, made by Trimo technical support"]
[null,null,null,null,null,null,null,null,null,null,null,null,null,null,null,null,null,null,null,null,null,null,null,null,null,null,null,null,null,null,null,"Limitations: 2 < number of fixing points < 6",null,null,null,null,"(only on one side of the element)"]
[]
[]
[]
[]
[]
[]
[]
[]
[]
[]
[]
[]
[]
[]
[]
[]
[null,null,null,null,null,null,null,null,null,null,null,null,null,null,null,null,null,null,null,null,null,null,null,null,null,null,null,null,null,null,"Printscreen from structural calculation in SandStat"]
[]
[]
[]
[]
[]
[]
[null,null,null,null,null,null,null,null,null,null,null,null,null,null,null,null,null,null,null,null,null,null,null,null,null,null,null,null,null,null,"17  Other notes"]
[null,null,null,null,null,null,null,null,null,null,null,null,null,null,null,null,null,null,null,null,null,null,null,null,null,null,null,null,null,null,"18 Total","Total amount of facade elements - calculated automatically"]
[null,null,null,null,null,null,null,null,null,null,null,null,null,null,null,null,null,null,null,null,null,null,null,null,null,null,null,null,null,null,"STATUS","OK","\"- element completely defined"]
[null,null,null,null,null,null,null,null,null,null,null,null,null,null,null,null,null,null,null,null,null,null,null,null,null,null,null,null,null,null,null,"Not OK","\"- Some caracteristics of the element are missing, please fulfill all required cells."]

{"sheet":"Longitudinal spliced corner el.","index":5,"n_rows":131,"n_cols":41,"rows_kept":131,"cut":false,"hidden":false,"merged":[[21,22,22,22],[21,23,22,23],[30,1,33,2],[9,0,9,1],[7,0,7,3],[8,9,8,10],[19,0,19,21],[20,4,20,9],[21,1,22,1],[21,2,22,2],[21,4,21,9],[21,10,21,13],[21,14,21,17],[21,18,22,18],[21,21,22,21],[3,25,4,26],[4,3,4,18],[4,19,4,20],[4,21,4,22],[5,11,5,13],[5,19,5,20],[5,21,5,22],[0,0,0,22],[2,3,2,18],[2,19,2,20],[2,21,2,22],[3,3,3,18],[3,19,3,20],[3,21,3,22]]}
["Qbiss One Cutting list for Longitudinal spliced corner elements",null,null,null,null,null,null,null,null,null,null,null,null,null,null,null,null,null,null,null,null,null,null,null,null,null,null,null,null,null,"INSTRUCTIONS"]
[null,null,null,null,null,null,null,null,null,null,null,null,null,null,null,null,null,null,null,null,null,null,null,null,null,null,null,null,null,null,"Follow steps"]
[null,"Project name:",null,{"$f":"IF('CUTTING LIST'!C10=\"INSERT TEXT\",\"Insert text on first page\",'CUTTING LIST'!C10)","v":"Insert text on first page"},null,null,null,null,null,null,null,null,null,null,null,null,null,null,null,"Date last saved:",null,{"$f":"'CUTTING LIST'!N1","v":"2023-11-20T07:46:28"},null,null,null,null,null,null,null,null,"1 PHASE / FACADE / BUILDING","Mark positioning of the element according to design shop drawings"]
[null,"Customer name:",null,{"$f":"IF('CUTTING LIST'!C11=\"INSERT TEXT\",\"Insert text on first page\",'CUTTING LIST'!C11)","v":"Insert text on first page"},null,null,null,null,null,null,null,null,null,null,null,null,null,null,null,"Last saved by:",null,{"$f":"'CUTTING LIST'!N2","v":"Slanšek Matic"},null,null,null,null,null,null,null,null,"2 ELEMENT REF","Mark element according to design shop drawings"]
[null,"Customer order no:",null,{"$f":"IF('CUTTING LIST'!C12=\"INSERT TEXT\",\"Insert text on first page\",'CUTTING LIST'!C12)","v":"Insert text on first page"},null,null,null,null,null,null,null,null,null,null,null,null,null,null,null,"Cutting list number:",null,{"$f":"IF('CUTTING LIST'!N3=\"Insert\",\"Insert text on first page\",'CUTTING LIST'!N3)","v":"Insert text on first page"},null,null,null,null,null,null,null,null,"3 QTY","Number of elements"]
[null,null,null,null,null,null,null,null,null,null,null,null,null,null,null,null,null,null,null,"Revision:",null,{"$f":"IF('CUTTING LIST'!N4=\"Insert\",\"Insert text on first page\",'CUTTING LIST'!N4)","v":"Insert text on first page"},null,null,null,null,null,null,null,null,"4 Core type","Power T","90 kg/m3"]
[null,null,null,null,null,null,null,null,null,null,null,null,null,null,null,null,null,null,null,null,null,null,null,null,null,null,null,null,null,null,null,"Power S","120 kg/m3"]
["STEP 1:",null,null,null,null,null,null,null,null,null,null,null,null,null,null,null,null,null,null,null,null,null,null,null,null,null,null,null,null,null,null,"Perform C","120 kg/m3"]
["Type of installation:",null,null,null,null,null,null,null,null,"Marking corner's sides",null,null,null,null,null,null,null,null,null,null,null,null,null,null,null,null,null,null,null,null,"5 Unit dimensions"]
["Longitudinal_spliced_corner",null,null,null,null,null,null,null,null,null,null,null,null,null,null,null,null,null,null,null,null,null,null,null,null,null,null,null,null,null,"T-","element thickness [mm]: (80, 100, 120, 133, 150, 172, 200, 220, 240, 250)"]
[null,null,null,null,null,null,null,null,null,null,null,null,null,null,null,null,null,null,null,null,null,null,null,null,null,null,null,null,null,null,"M-","element module width [mm]: from 600 up to 1200"]
[null,null,null,null,null,null,null,null,null,null,null,null,null,null,null,null,null,null,null,null,null,null,null,null,null,null,null,null,null,null,"R-","element length [mm]:  from 500 up to 6500",null,null,null,null,"*except element type 5,6,7,8,9,10,11,12:  550mm < R < 6475mm"]
[null,null,null,null,null,null,null,null,null,null,null,null,null,null,null,null,null,null,null,null,null,null,null,null,null,null,null,null,null,null,null,"Element lenght is measured and scheduled between fixing (joint centres) - SEE PICTURES BELOW !!!"]
[null,null,null,null,null,null,null,null,null,null,null,null,null,null,null,null,null,null,null,null,null,null,null,null,null,null,null,null,null,null,"A-","one side of corner element"]
[null,null,null,null,null,null,null,null,null,null,null,null,null,null,null,null,null,null,null,null,null,null,null,null,null,null,null,null,null,null,"B-","other side of corner element"]
[null,null,null,null,null,null,null,null,null,null,null,null,null,null,null,null,null,null,null,null,null,null,null,null,null,null,null,null,null,null,"Angle [α]-","70 degrees to 175 degrees"]
[null,null,null,null,null,null,null,null,null,null,null,null,null,null,null,null,null,null,null,null,null,null,null,null,null,null,null,null,null,null,"Limitations:","Amin (Bmin) ≥ 150 mm + T; Bmin (Amin) ≥ 200 mm + T"]
[null,null,null,null,null,null,null,null,null,null,null,null,null,null,null,null,null,null,null,null,null,null,null,null,null,null,null,null,null,null,null,"Amax (Bmax) ≤ 800 mm"]
[]
["STEP 2:"]
[1,2,3,4,5,null,null,null,null,null,6,7,8,9,10,11,12,13,14,15,16,17,18]
["PHASE / FACADE /","ELEMENT REF:","QTY:","Core type","UNIT DIMENSIONS [mm]",null,null,null,null,null,"EXTERNAL STEEL SHEET",null,null,null,"INTERNAL STEEL SHEET",null,null,null,"ELEMENT Type","Installation","FIXING POINT","Other notes","TOTAL [m2]","STATUS"]
["BUILDING",null,null,"Mineral wool","T","M","R","A","B","Angle","Thickness [mm]","Colour","Profile","Coating","Thickness [mm]","Colour","Profile","Coating",null,"direction","QTY",null,null,null,null,null,null,null,"M*QTY","Total fixing points"]
[null,null,null,null,null,{"$f":"H24+I24","v":0},null,null,null,null,{"$f":"Thickness_of_external_steel_sheet","v":0.7},null,{"$f":"External_steel_sheet_profilation","v":"G"},{"$f":"IFERROR(VLOOKUP(L24,'Data 2'!$A$1:$B$29,2,FALSE),\"\")","v":""},null,null,null,null,null,{"$f":"IF(ISNUMBER(SEARCH(\"horizontal\",'Qbiss One elements'!$A$10)),\"horizontal\",\"vertical\")","v":"vertical"},null,{"$f":"IF(AND(OR(AND(G24>1,536>G24),G24>6488),OR(S24=5,S24=6,S24=7,S24=8,S24=9,S24=10,S24=11,S24=12)),\"El.Length 550mm<R<6475mm!!!\",IF(ISBLANK(G24),\"\",\"\"))","v":""},{"$f":"C24*F24/1000*G24/1000","v":0},{"$f":"IF(OR($A$10=\"\",C24=\"\",D24=\"\",E24=\"\",G24=\"\",H24=\"\",I24=\"\",J24=\"\",L24=\"\",O24=\"\",P24=\"\",Q24=\"\",R24=\"\",S24=\"\",U24=\"\"),\"Not OK\",\"OK\")","v":"Not OK"},null,null,null,null,{"$f":"C24*F24","v":0},{"$f":"U24*C24","v":0}]
[]
[null,"TOTAL QTY",{"$f":"SUM(C24:C25)","v":0},null,null,null,null,null,null,null,null,null,null,null,null,null,null,null,null,null,null,"TOTAL m2 of facade elements",{"$f":"SUM(W24:W25)","v":0}]
[null,"Module x QTY [m]:",{"$f":"SUM(AC24:AC25)/1000","v":0},null,null,null,null,null,null,null,null,null,null,null,null,null,null,null,null,null,null,"TOTAL fixing points",{"$f":"SUM(AD24:AD25)","v":0}]
[]
[]
[null,"Required fields"]
[null,"Input data doesn't meet Qbiss One limitations - see INSTRUCTIONS on the right"]
[]
[]
[]
[null,"Automatically filled"]
[]
[]
[]
[]
[]
[]
[]
[]
[]
[]
[]
[null,null,null,null,null,null,null,null,null,null,null,null,null,null,null,null,null,null,null,null,null,null,null,null,null,null,null,null,null,null,"6 External steel sheet thickness","In case of Qbiss elements, to achieve perfect flatness, we always use 0,7 mm thick steel sheet"]
[null,null,null,null,null,null,null,null,null,null,null,null,null,null,null,null,null,null,null,null,null,null,null,null,null,null,null,null,null,null,"7 External steel sheet colour","Select avaliable standard colours. Find more about standard colours from following link",null,null,null,null,null,null,null,null,"Qbiss Colour Chart"]
[null,null,null,null,null,null,null,null,null,null,null,null,null,null,null,null,null,null,null,null,null,null,null,null,null,null,null,null,null,null,"8 External steel sheet profile","All Qbiss One elements have smooth external steel sheet profile"]
[null,null,null,null,null,null,null,null,null,null,null,null,null,null,null,null,null,null,null,null,null,null,null,null,null,null,null,null,null,null,"9 External steel sheet coating","Based on colour selection, steel sheet coating is selected automaticaly"]
[null,null,null,null,null,null,null,null,null,null,null,null,null,null,null,null,null,null,null,null,null,null,null,null,null,null,null,null,null,null,"10 Internal steel sheet thickness","Choose among 0,5mm; 0,55mm; 0,6mm; 0,7mm according to offer and structural calculation made by Trimo"]
[null,null,null,null,null,null,null,null,null,null,null,null,null,null,null,null,null,null,null,null,null,null,null,null,null,null,null,null,null,null,"11 Internal steel sheet colour","Select avaliable standard colours. Find more about standard colours from following link",null,null,null,null,null,null,null,null,"Qbiss Colour Chart"]
[null,null,null,null,null,null,null,null,null,null,null,null,null,null,null,null,null,null,null,null,null,null,null,null,null,null,null,null,null,null,"12 Internal steel sheet profile","Choose among: g; s; v; v2; m2 profiles. Find out more about possibilities"]
[null,null,null,null,null,null,null,null,null,null,null,null,null,null,null,null,null,null,null,null,null,null,null,null,null,null,null,null,null,null,"13 Internal steel sheet coating","Considering project requirements, you can choose what type of coating is appropriate. ",null,null,null,null,null,null,null,null,"SP - Polyester"]
[null,null,null,null,null,null,null,null,null,null,null,null,null,null,null,null,null,null,null,null,null,null,null,null,null,null,null,null,null,null,null,null,null,null,null,null,null,null,null,null,"PVDF - Polyvinylidene fluoride"]
[null,null,null,null,null,null,null,null,null,null,null,null,null,null,null,null,null,null,null,null,null,null,null,null,null,null,null,null,null,null,null,null,null,null,null,null,null,null,null,null,"PUR - Polyurethane"]
[null,null,null,null,null,null,null,null,null,null,null,null,null,null,null,null,null,null,null,null,null,null,null,null,null,null,null,null,null,null,null,null,null,null,null,null,null,null,null,null,"PVC - Polyvinyl chlodide"]
[null,null,null,null,null,null,null,null,null,null,null,null,null,null,null,null,null,null,null,null,null,null,null,null,null,null,null,null,null,null,"14 Element type","Based on direction of assembly, choose appropriate type of element"]
[]
[]
[]
[]
[]
[]
[]
[]
[]
[]
[]
[]
[]
[]
[]
[]
[]
[]
[]
[]
[]
[]
[]
[]
[]
[]
[]
[]
[]
[]
[]
[]
[]
[]
[]
[]
[]
[]
[]
[]
[]
[]
[]
[null,null,null,null,null,null,null,null,null,null,null,null,null,null,null,null,null,null,null,null,null,null,null,null,null,null,null,null,null,null,"15 Installation direction: The same as orientation of elements. Fulfilled automatically"]
[null,null,null,null,null,null,null,null,null,null,null,null,null,null,null,null,null,null,null,null,null,null,null,null,null,null,null,null,null,null,"16 Fixing point","Select quantity of fixing points on Qbiss element according to structural calculation, made by Trimo technical support"]
[null,null,null,null,null,null,null,null,null,null,null,null,null,null,null,null,null,null,null,null,null,null,null,null,null,null,null,null,null,null,null,"Limitations: 2 < number of fixing points < 6",null,null,null,null,"(only on one side of the element)"]
[]
[]
[]
[]
[]
[]
[]
[]
[]
[]
[]
[]
[]
[]
[]
[]
[null,null,null,null,null,null,null,null,null,null,null,null,null,null,null,null,null,null,null,null,null,null,null,null,null,null,null,null,null,null,"Printscreen from structural calculation in SandStat"]
[]
[]
[]
[]
[]
[]
[null,null,null,null,null,null,null,null,null,null,null,null,null,null,null,null,null,null,null,null,null,null,null,null,null,null,null,null,null,null,"17  Other notes"]
[null,null,null,null,null,null,null,null,null,null,null,null,null,null,null,null,null,null,null,null,null,null,null,null,null,null,null,null,null,null,"18 Total","Total amount of facade elements - calculated automatically"]
[null,null,null,null,null,null,null,null,null,null,null,null,null,null,null,null,null,null,null,null,null,null,null,null,null,null,null,null,null,null,"STATUS","OK","\"- element completely defined"]
[null,null,null,null,null,null,null,null,null,null,null,null,null,null,null,null,null,null,null,null,null,null,null,null,null,null,null,null,null,null,null,"Not OK","\"- Some caracteristics of the element are missing, please fulfill all required cells."]

{"sheet":"U-corner elements","index":6,"n_rows":119,"n_cols":42,"rows_kept":119,"cut":false,"hidden":false,"merged":[[21,24,22,24],[0,0,0,23],[21,16,21,19],[21,20,22,20],[21,1,22,1],[20,4,20,11],[5,13,5,15],[7,0,7,3],[19,0,19,22],[21,22,22,22],[21,4,21,11],[21,2,22,2],[21,23,22,23],[21,12,21,15],[2,3,2,19],[2,20,2,21],[2,22,2,23],[3,20,3,21],[3,22,3,23],[30,1,33,2],[5,20,5,21],[5,22,5,23],[4,3,4,19],[3,3,3,19],[4,20,4,21],[4,22,4,23],[9,0,9,1]]}
["Qbiss One Cutting list for U-corner elements",null,null,null,null,null,null,null,null,null,null,null,null,null,null,null,null,null,null,null,null,null,null,null,null,null,null,null,null,null,null,"INSTRUCTIONS"]
[null,null,null,null,null,null,null,null,null,null,null,null,null,null,null,null,null,null,null,null,null,null,null,null,null,null,null,null,null,null,null,"Follow steps"]
[null,"Project name:",null,{"$f":"IF('CUTTING LIST'!C10=\"INSERT TEXT\",\"Insert text on first page\",'CUTTING LIST'!C10)","v":"Insert text on first page"},null,null,null,null,null,null,null,null,null,null,null,null,null,null,null,null,"Date last saved:",null,{"$f":"'CUTTING LIST'!N1","v":"2023-11-20T07:46:28"},null,null,null,null,null,null,null,null,"1 PHASE / FACADE / BUILDING","Mark positioning of the element according to design shop drawings"]
[null,"Customer name:",null,{"$f":"IF('CUTTING LIST'!C11=\"INSERT TEXT\",\"Insert text on first page\",'CUTTING LIST'!C11)","v":"Insert text on first page"},null,null,null,null,null,null,null,null,null,null,null,null,null,null,null,null,"Last saved by:",null,{"$f":"'CUTTING LIST'!N2","v":"Slanšek Matic"},null,null,null,null,null,null,null,null,"2 ELEMENT REF","Mark element according to design shop drawings"]
[null,"Customer order no:",null,{"$f":"IF('CUTTING LIST'!C12=\"INSERT TEXT\",\"Insert text on first page\",'CUTTING LIST'!C12)","v":"Insert text on first page"},null,null,null,null,null,null,null,null,null,null,null,null,null,null,null,null,"Cutting list number:",null,{"$f":"IF('CUTTING LIST'!N3=\"Insert\",\"Insert text on first page\",'CUTTING LIST'!N3)","v":"Insert text on first page"},null,null,null,null,null,null,null,null,"3 QTY","Number of elements"]
[null,null,null,null,null,null,null,null,null,null,null,null,null,null,null,null,null,null,null,null,"Revision:",null,{"$f":"IF('CUTTING LIST'!N4=\"Insert\",\"Insert text on first page\",'CUTTING LIST'!N4)","v":"Insert text on first page"},null,null,null,null,null,null,null,null,"4 Core type","Power T","90 kg/m3"]
[null,null,null,null,null,null,null,null,null,null,null,null,null,null,null,null,null,null,null,null,null,null,null,null,null,null,null,null,null,null,null,null,"Power S","120 kg/m3"]
["STEP 1:",null,null,null,null,null,null,null,null,null,null,null,null,null,null,null,null,null,null,null,null,null,null,null,null,null,null,null,null,null,null,null,"Perform C","120 kg/m3"]
["Type of corner element:",null,null,null,null,null,null,null,null,null,null,null,null,null,null,null,null,null,null,null,null,null,null,null,null,null,null,null,null,null,null,"5 Unit dimensions"]
["U_corner_element",null,null,null,null,null,null,null,null,null,null,null,null,null,null,null,null,null,null,null,null,null,null,null,null,null,null,null,null,null,null,"T-","element thickness [mm]: (80, 100, 120, 133, 150, 172, 200, 220, 240, 250)"]
[null,null,null,null,null,null,null,null,null,null,null,null,null,null,null,null,null,null,null,null,null,null,null,null,null,null,null,null,null,null,null,"M-","element module width [mm]: from 600 up to 1200"]
[null,null,null,null,null,null,null,null,null,null,null,null,null,null,null,null,null,null,null,null,null,null,null,null,null,null,null,null,null,null,null,"R-","element length [mm]:  from 500 up to 3500",null,null,null,null,"*except element type 5,6,7,8,9,10,11,12:  550mm < R < 3500mm"]
[]
[]
[null,null,null,null,null,null,null,null,null,null,null,null,null,null,null,null,null,null,null,null,null,null,null,null,null,null,null,null,null,null,null,null,"Element lenght is measured and scheduled between fixing (joint centres) - SEE PICTURES BELOW !!!"]
[null,null,null,null,null,null,null,null,null,null,null,null,null,null,null,null,null,null,null,null,null,null,null,null,null,null,null,null,null,null,null,"A, B, C-","side of corner element"]
[null,null,null,null,null,null,null,null,null,null,null,null,null,null,null,null,null,null,null,null,null,null,null,null,null,null,null,null,null,null,null,"αAB and αBC-","angle: from 90 degrees to 175 degrees"]
[null,null,null,null,null,null,null,null,null,null,null,null,null,null,null,null,null,null,null,null,null,null,null,null,null,null,null,null,null,null,null,"Limitations:","Amin and Cmin ≥ ( T + 150 mm)"]
[null,null,null,null,null,null,null,null,null,null,null,null,null,null,null,null,null,null,null,null,null,null,null,null,null,null,null,null,null,null,null,null,"Amax and Cmax ≤ 1000 mm"]
["STEP 2:",null,null,null,null,null,null,null,null,null,null,null,null,null,null,null,null,null,null,null,null,null,null,null,null,null,null,null,null,null,null,null,"Bmin ≥ 300 mm + 2xS"]
[1,2,3,4,5,null,null,null,null,null,null,null,6,7,8,9,10,11,12,13,14,15,16,17,null,null,null,null,null,null,null,null,"Bmax ≤ 1500 mm"]
["PHASE / FACADE /","ELEMENT REF:","QTY:","Core type","UNIT DIMENSIONS [mm]",null,null,null,null,null,null,null,"EXTERNAL STEEL SHEET",null,null,null,"INTERNAL STEEL SHEET",null,null,null,"ELEMENT Type","FIXING POINT","Other notes","TOTAL [m2]","STATUS"]
["BUILDING",null,null,"Mineral wool","T","M","R","A","B","C","αAB","αBC","Thickness [mm]","Colour","Profile","Coating","Thickness [mm]","Colour","Profile","Coating",null,"QTY",null,null,null,null,null,null,null,"M*QTY","Total fixing points"]
[null,null,null,null,null,null,{"$f":"H24+I24+J24","v":0},null,null,null,null,null,{"$f":"Thickness_of_external_steel_sheet","v":0.7},null,"G",{"$f":"IFERROR(VLOOKUP(N24,'Data 2'!$A$1:$B$29,2,FALSE),\"\")","v":""},null,null,null,null,null,null,{"$f":"IF(AND(OR(AND(G24>1,536>G24),G24>6488),OR(U24=5,U24=6,U24=7,U24=8,U24=9,U24=10,U24=11,U24=12)),\"El.Length 550mm<R<6475mm!!!\",IF(ISBLANK(G24),\"\",\"\"))","v":""},{"$f":"C24*F24/1000*G24/1000","v":0},{"$f":"IF(OR($A$10=\"\",C24=\"\",D24=\"\",E24=\"\",F24=\"\",H24=\"\",I24=\"\",J24=\"\",K24=\"\",L24=\"\",N24=\"\",Q24=\"\",R24=\"\",S24=\"\",T24=\"\",U24=\"\",V24=\"\"),\"Not OK\",\"OK\")","v":"Not OK"},null,null,null,null,{"$f":"F24*C24","v":0},{"$f":"V24*C24","v":0}]
[]
[null,"TOTAL QTY",{"$f":"SUM(C24:C25)","v":0},null,null,null,null,null,null,null,null,null,null,null,null,null,null,null,null,null,null,null,"TOTAL m2 of facade elements",{"$f":"SUM(X24:X25)","v":0}]
[null,"Module x QTY [m]:",{"$f":"SUM(AD24:AD25)/1000","v":0},null,null,null,null,null,null,null,null,null,null,null,null,null,null,null,null,null,null,null,"TOTAL fixing points",{"$f":"SUM(AE24:AE25)","v":0}]
[]
[]
[null,"Required fields"]
[null,"Input data doesn't meet Qbiss One limitations - see INSTRUCTIONS on the right"]
[]
[]
[]
[null,"Automatically filled"]
[]
[]
[]
[]
[]
[null,null,null,null,null,null,null,null,null,null,null,null,null,null,null,null,null,null,null,null,null,null,null,null,null,null,null,null,null,null,null,"6 External steel sheet thickness","In case of Qbiss elements, to achieve perfect flatness, we always use 0,7 mm thick steel sheet"]
[null,null,null,null,null,null,null,null,null,null,null,null,null,null,null,null,null,null,null,null,null,null,null,null,null,null,null,null,null,null,null,"7 External steel sheet colour","Select avaliable standard colours. Find more about standard colours from following link",null,null,null,null,null,null,null,null,"Qbiss Colour Chart"]
[null,null,null,null,null,null,null,null,null,null,null,null,null,null,null,null,null,null,null,null,null,null,null,null,null,null,null,null,null,null,null,"8 External steel sheet profile","All Qbiss One elements have smooth external steel sheet profile"]
[null,null,null,null,null,null,null,null,null,null,null,null,null,null,null,null,null,null,null,null,null,null,null,null,null,null,null,null,null,null,null,"9 External steel sheet coating","Based on colour selection, steel sheet coating is selected automaticaly"]
[null,null,null,null,null,null,null,null,null,null,null,null,null,null,null,null,null,null,null,null,null,null,null,null,null,null,null,null,null,null,null,"10 Internal steel sheet thickness","Choose among 0,5mm; 0,55mm; 0,6mm; 0,7mm according to offer and structural calculation made by Trimo"]
[null,null,null,null,null,null,null,null,null,null,null,null,null,null,null,null,null,null,null,null,null,null,null,null,null,null,null,null,null,null,null,"11 Internal steel sheet colour","Select avaliable standard colours. Find more about standard colours from following link",null,null,null,null,null,null,null,null,"Qbiss Colour Chart"]
[null,null,null,null,null,null,null,null,null,null,null,null,null,null,null,null,null,null,null,null,null,null,null,null,null,null,null,null,null,null,null,"12 Internal steel sheet profile","Choose among: g; s; v; v2; m2 profiles. Find out more about possibilities"]
[null,null,null,null,null,null,null,null,null,null,null,null,null,null,null,null,null,null,null,null,null,null,null,null,null,null,null,null,null,null,null,"13 Internal steel sheet coating","Considering project requirements, you can choose what type of coating is appropriate. ",null,null,null,null,null,null,null,null,"SP - Polyester"]
[null,null,null,null,null,null,null,null,null,null,null,null,null,null,null,null,null,null,null,null,null,null,null,null,null,null,null,null,null,null,null,null,null,null,null,null,null,null,null,null,null,"PVDF - Polyvinylidene fluoride"]
[null,null,null,null,null,null,null,null,null,null,null,null,null,null,null,null,null,null,null,null,null,null,null,null,null,null,null,null,null,null,null,null,null,null,null,null,null,null,null,null,null,"PUR - Polyurethane"]
[null,null,null,null,null,null,null,null,null,null,null,null,null,null,null,null,null,null,null,null,null,null,null,null,null,null,null,null,null,null,null,null,null,null,null,null,null,null,null,null,null,"PVC - Polyvinyl chlodide"]
[null,null,null,null,null,null,null,null,null,null,null,null,null,null,null,null,null,null,null,null,null,null,null,null,null,null,null,null,null,null,null,"14 Element type","Based on direction of assembly, choose appropriate type of element"]
[]
[]
[]
[]
[]
[]
[]
[]
[]
[]
[]
[]
[]
[]
[]
[]
[]
[]
[]
[]
[]
[]
[]
[]
[]
[]
[]
[]
[]
[]
[]
[]
[]
[]
[]
[]
[]
[]
[]
[]
[]
[]
[]
[]
[null,null,null,null,null,null,null,null,null,null,null,null,null,null,null,null,null,null,null,null,null,null,null,null,null,null,null,null,null,null,null,"15 Fixing point","Select quantity of fixing points on Qbiss element according to structural calculation, made by Trimo technical support"]
[null,null,null,null,null,null,null,null,null,null,null,null,null,null,null,null,null,null,null,null,null,null,null,null,null,null,null,null,null,null,null,null,"Limitations: 2 < number of fixing points < 6",null,null,null,null,"(only on one side of the element)"]
[]
[]
[]
[]
[]
[]
[]
[]
[]
[]
[]
[]
[]
[]
[]
[]
[null,null,null,null,null,null,null,null,null,null,null,null,null,null,null,null,null,null,null,null,null,null,null,null,null,null,null,null,null,null,null,"Printscreen from structural calculation in SandStat"]
[null,null,null,null,null,null,null,null,null,null,null,null,null,null,null,null,null,null,null,null,null,null,null,null,null,null,null,null,null,null,null,"16  Other notes"]
[null,null,null,null,null,null,null,null,null,null,null,null,null,null,null,null,null,null,null,null,null,null,null,null,null,null,null,null,null,null,null,"17 Total","Total amount of facade elements - calculated automatically"]
[null,null,null,null,null,null,null,null,null,null,null,null,null,null,null,null,null,null,null,null,null,null,null,null,null,null,null,null,null,null,null,"STATUS","OK","\"- element completely defined"]
[null,null,null,null,null,null,null,null,null,null,null,null,null,null,null,null,null,null,null,null,null,null,null,null,null,null,null,null,null,null,null,null,"Not OK","\"- Some caracteristics of the element are missing, please fulfill all required cells."]

{"sheet":"Curved elements","index":7,"n_rows":119,"n_cols":39,"rows_kept":119,"cut":false,"hidden":false,"merged":[[0,0,0,19],[30,1,33,2],[21,16,22,16],[21,18,22,18],[21,19,22,19],[5,8,5,10],[7,0,7,3],[19,0,19,18],[20,4,20,6],[21,2,22,2],[21,4,21,6],[21,7,21,10],[21,11,21,14],[21,1,22,1],[4,3,4,15],[3,3,3,15],[14,27,14,28],[14,32,14,35],[21,20,22,20],[2,3,2,15],[13,32,13,35],[2,16,2,17],[2,18,2,19],[3,16,3,17],[3,18,3,19],[4,16,4,17],[4,18,4,19],[5,16,5,17],[5,18,5,19]]}
["Qbiss One Cutting list for curved elements",null,null,null,null,null,null,null,null,null,null,null,null,null,null,null,null,null,null,null,null,null,null,null,null,null,null,"INSTRUCTIONS"]
[null,null,null,null,null,null,null,null,null,null,null,null,null,null,null,null,null,null,null,null,null,null,null,null,null,null,null,"Follow steps"]
[null,"Project name:",null,{"$f":"IF('CUTTING LIST'!C10=\"INSERT TEXT\",\"Insert text on first page\",'CUTTING LIST'!C10)","v":"Insert text on first page"},null,null,null,null,null,null,null,null,null,null,null,null,"Date last saved:",null,{"$f":"'CUTTING LIST'!N1","v":"2023-11-20T07:46:28"},null,null,null,null,null,null,null,null,"1 PHASE / FACADE / BUILDING","Mark positioning of the element according to design shop drawings"]
[null,"Customer name:",null,{"$f":"IF('CUTTING LIST'!C11=\"INSERT TEXT\",\"Insert text on first page\",'CUTTING LIST'!C11)","v":"Insert text on first page"},null,null,null,null,null,null,null,null,null,null,null,null,"Last saved by:",null,{"$f":"'CUTTING LIST'!N2","v":"Slanšek Matic"},null,null,null,null,null,null,null,null,"2 ELEMENT REF","Mark element according to design shop drawings"]
[null,"Customer order no:",null,{"$f":"IF('CUTTING LIST'!C12=\"INSERT TEXT\",\"Insert text on first page\",'CUTTING LIST'!C12)","v":"Insert text on first page"},null,null,null,null,null,null,null,null,null,null,null,null,"Cutting list number:",null,{"$f":"IF('CUTTING LIST'!N3=\"Insert\",\"Insert text on first page\",'CUTTING LIST'!N3)","v":"Insert text on first page"},null,null,null,null,null,null,null,null,"3 QTY","Number of elements"]
[null,null,null,null,null,null,null,null,null,null,null,null,null,null,null,null,"Revision:",null,{"$f":"IF('CUTTING LIST'!N4=\"Insert\",\"Insert text on first page\",'CUTTING LIST'!N4)","v":"Insert text on first page"},null,null,null,null,null,null,null,null,"4 Core type","Power T","90 kg/m3"]
[null,null,null,null,null,null,null,null,null,null,null,null,null,null,null,null,null,null,null,null,null,null,null,null,null,null,null,null,"Power S","120 kg/m3"]
["STEP 1:",null,null,null,null,null,null,null,null,null,null,null,null,null,null,null,null,null,null,null,null,null,null,null,null,null,null,null,"Perform C","120 kg/m3"]
["Select type of curved element:",null,null,null,null,null,null,null,null,null,null,null,null,null,null,null,null,null,null,null,null,null,null,null,null,null,null,"5 Unit dimensions"]
["Transversal",null,null,null,null,null,null,null,null,null,null,null,null,null,null,null,null,null,null,null,null,null,null,null,null,null,null,"T-","element thickness [mm]: (80, 100, 120, 133, 150, 172, 200, 220, 240, 250)"]
[null,null,null,null,null,null,null,null,null,null,null,null,null,{"$f":"A10&\"\"&1","v":"Transversal1"},null,null,null,null,null,null,null,null,null,null,null,null,null,"M-","element module width [mm]: from 600 up to 1200"]
[null,null,null,null,null,null,null,{"$f":"CONCATENATE(A10,\"_\")","v":"Transversal_"},null,null,null,null,null,null,null,null,null,null,null,null,null,null,null,null,null,null,null,"R-","Longitudinal curverd element length [mm]:  from 500 up to 5700",null,null,null,null,null,null,"*except element type 5,6,7,8,9,10,11,12:  550mm < R < 5700mm"]
[null,null,null,null,null,null,null,null,null,null,null,null,null,null,null,null,null,null,null,null,null,null,null,null,null,null,null,null,"Transversal curverd element length [mm]:  from 500 up to 4000",null,null,null,null,null,null,"*except element type 5,6,7,8,9,10,11,12:  550mm < R < 4000mm"]
[null,null,null,null,null,null,null,null,null,null,null,null,null,null,null,null,null,null,null,null,null,null,null,null,null,null,null,null,"Element lenght is measured and scheduled between fixing (joint centres) - SEE PICTURES BELOW !!!"]
[null,null,null,null,null,null,null,null,null,null,null,null,null,null,null,null,null,null,null,null,null,null,null,null,null,null,null,"Transversal curved element",null,null,null,null,"Longitudinal curved element"]
[]
[]
[]
[]
["STEP 2:"]
[1,2,3,4,5,null,null,6,7,8,9,10,11,12,13,14,15,16,17,18]
["PHASE / FACADE / ","ELEMENT REF:","QTY:","Core type","UNIT DIMENSIONS [mm]",null,null,"EXTERNAL STEEL SHEET",null,null,null,"INTERNAL STEEL SHEET",null,null,null,"RADIUS","ELEMENT Type","FIXING POINT","Other notes","TOTAL [m2]","STATUS"]
["BIULDING",null,null,"Mineral wool","T","M","R","Thickness [mm]","Colour","Profile","Coating","Thickness [mm]","Colour","Profile","Coating","[mm]",null,"QTY",null,null,null,null,null,null,null,"M*QTY","Total fixing points"]
[null,null,null,null,null,null,null,{"$f":"Thickness_of_external_steel_sheet","v":0.7},null,"G",{"$f":"IFERROR(VLOOKUP(I24,'Data 2'!$A$1:$B$29,2,FALSE),\"\")","v":""},null,null,null,null,null,null,null,{"$f":"IF(AND(OR(AND(G24>1,536>G24),G24>6488),OR(Q24=5,Q24=6,Q24=7,Q24=8,Q24=9,Q24=10,Q24=11,Q24=12)),\"El.Length 550mm<R<6475mm!!!\",IF(ISBLANK(G24),\"\",\"\"))","v":""},{"$f":"C24*F24/1000*G24/1000","v":0},{"$f":"IF(OR($A$10=\"\",C24=\"\",D24=\"\",E24=\"\",F24=\"\",G24=\"\",I24=\"\",L24=\"\",M24=\"\",N24=\"\",O24=\"\",P24=\"\",Q24=\"\",R24=\"\"),\"Not OK\",\"OK\")","v":"Not OK"},null,null,null,null,{"$f":"C24*F24","v":0},{"$f":"R24*C24","v":0}]
[]
[null,"TOTAL QTY",{"$f":"SUM(C24:C25)","v":0},null,null,null,null,null,null,null,null,null,null,null,null,null,null,null,"TOTAL m2 of facade elements",{"$f":"SUM(T24:T25)","v":0}]
[null,"Module x QTY [m]",{"$f":"SUM(Z24:Z25)/1000","v":0},null,null,null,null,null,null,null,null,null,null,null,null,null,null,null,"TOTAL fixing points",{"$f":"SUM(AA24:AA25)","v":0}]
[]
[]
[null,"Required fields"]
[null,"Input data doesn't meet Qbiss One limitations - see INSTRUCTIONS on the right"]
[]
[]
[]
[null,"Automatically filled"]
[null,null,null,null,null,null,null,null,null,null,null,null,null,null,null,null,null,null,null,null,null,null,null,null,null,null,null,"6 External steel sheet thickness","In case of Qbiss One elements, to achieve perfect flatness, we always use 0,7 mm thick steel sheet"]
[null,null,null,null,null,null,null,null,null,null,null,null,null,null,null,null,null,null,null,null,null,null,null,null,null,null,null,"7 External steel sheet colour","Select avaliable standard colours. Find more about standard colours from following link",null,null,null,null,null,null,null,null,"Qbiss Colour Chart"]
[null,null,null,null,null,null,null,null,null,null,null,null,null,null,null,null,null,null,null,null,null,null,null,null,null,null,null,"8 External steel sheet profile","All Qbiss One elements have smooth external steel sheet profile"]
[null,null,null,null,null,null,null,null,null,null,null,null,null,null,null,null,null,null,null,null,null,null,null,null,null,null,null,"9 External steel sheet coating","Based on colour selection, steel sheet coating is selected automaticaly"]
[null,null,null,null,null,null,null,null,null,null,null,null,null,null,null,null,null,null,null,null,null,null,null,null,null,null,null,"10 Internal steel sheet thickness","Choose among 0,5mm; 0,55mm; 0,6mm; 0,7mm according to offer and structural calculation made by Trimo"]
[null,null,null,null,null,null,null,null,null,null,null,null,null,null,null,null,null,null,null,null,null,null,null,null,null,null,null,"11 Internal steel sheet colour","Select avaliable standard colours. Find more about standard colours from following link",null,null,null,null,null,null,null,null,"Qbiss Colour Chart"]
[null,null,null,null,null,null,null,null,null,null,null,null,null,null,null,null,null,null,null,null,null,null,null,null,null,null,null,"12 Internal steel sheet profile","Choose among: g; s; v; v2; m2 profiles. Find out more about possibilities"]
[null,null,null,null,null,null,null,null,null,null,null,null,null,null,null,null,null,null,null,null,null,null,null,null,null,null,null,"13 Internal steel sheet coating","Considering project requirements, you can choose what type of coating is appropriate. ",null,null,null,null,null,null,null,null,"SP - Polyester"]
[null,null,null,null,null,null,null,null,null,null,null,null,null,null,null,null,null,null,null,null,null,null,null,null,null,null,null,null,null,null,null,null,null,null,null,null,null,"PVDF - Polyvinylidene fluoride"]
[null,null,null,null,null,null,null,null,null,null,null,null,null,null,null,null,null,null,null,null,null,null,null,null,null,null,null,null,null,null,null,null,null,null,null,null,null,"PUR - Polyurethane"]
[null,null,null,null,null,null,null,null,null,null,null,null,null,null,null,null,null,null,null,null,null,null,null,null,null,null,null,null,null,null,null,null,null,null,null,null,null,"PVC - Polyvinyl chlodide"]
[null,null,null,null,null,null,null,null,null,null,null,null,null,null,null,null,null,null,null,null,null,null,null,null,null,null,null,"14 Radius","Insert curvature of the element. Find out more about curved elements."]
[null,null,null,null,null,null,null,null,null,null,null,null,null,null,null,null,null,null,null,null,null,null,null,null,null,null,null,null,null,null,null,null,null,null,"Limitations:",null,"Longitudinal curved",null,"530 mm < R <5700 m"]
[null,null,null,null,null,null,null,null,null,null,null,null,null,null,null,null,null,null,null,null,null,null,null,null,null,null,null,null,null,null,null,null,null,null,null,null,null,null,"r > 4000 mm"]
[null,null,null,null,null,null,null,null,null,null,null,null,null,null,null,null,null,null,null,null,null,null,null,null,null,null,null,null,null,null,null,null,null,null,null,null,"Transversal curved",null,"530 mm < R < 4000 mm"]
[null,null,null,null,null,null,null,null,null,null,null,null,null,null,null,null,null,null,null,null,null,null,null,null,null,null,null,null,null,null,null,null,null,null,null,null,null,null,"r > 4000 mm"]
[]
[null,null,null,null,null,null,null,null,null,null,null,null,null,null,null,null,null,null,null,null,null,null,null,null,null,null,null,"15 Element type","Based on direction of assembly, choose appropriate type of element"]
[]
[]
[]
[]
[]
[]
[]
[]
[]
[]
[]
[]
[]
[]
[]
[]
[]
[]
[]
[]
[]
[]
[]
[]
[]
[]
[]
[]
[]
[]
[]
[]
[]
[]
[]
[]
[]
[]
[]
[]
[]
[]
[]
[null,null,null,null,null,null,null,null,null,null,null,null,null,null,null,null,null,null,null,null,null,null,null,null,null,null,null,"16 Fixing point","Select quantity of fixing points on Qbiss element according to structural calculation, made by Trimo technical support"]
[null,null,null,null,null,null,null,null,null,null,null,null,null,null,null,null,null,null,null,null,null,null,null,null,null,null,null,null,"Limitations: 2 < number of fixing points < 6",null,null,null,null,"(only on one side of the element)"]
[]
[]
[]
[]
[]
[]
[]
[]
[]
[]
[]
[]
[]
[]
[]
[]
[null,null,null,null,null,null,null,null,null,null,null,null,null,null,null,null,null,null,null,null,null,null,null,null,null,null,null,"Printscreen from structural calculation in SandStat"]
[null,null,null,null,null,null,null,null,null,null,null,null,null,null,null,null,null,null,null,null,null,null,null,null,null,null,null,"17 Other notes"]
[null,null,null,null,null,null,null,null,null,null,null,null,null,null,null,null,null,null,null,null,null,null,null,null,null,null,null,"18 Total","Total amount of facade elements - calculated automatically"]
[null,null,null,null,null,null,null,null,null,null,null,null,null,null,null,null,null,null,null,null,null,null,null,null,null,null,null,"STATUS","OK","\"- element completely defined"]
[null,null,null,null,null,null,null,null,null,null,null,null,null,null,null,null,null,null,null,null,null,null,null,null,null,null,null,null,"Not OK","\"- Some caracteristics of the element are missing, please fulfill all required cells."]

{"sheet":"3D diagonal-cut corner elements","index":8,"n_rows":138,"n_cols":43,"rows_kept":138,"cut":false,"hidden":false,"merged":[[0,0,0,23],[2,3,2,19],[2,20,2,21],[2,22,2,23],[3,3,3,19],[3,20,3,21],[3,22,3,23],[4,3,4,19],[4,20,4,21],[4,22,4,23],[5,13,5,15],[5,20,5,21],[5,22,5,23],[21,23,22,23],[21,24,22,24],[30,1,33,2],[9,0,9,1],[7,0,7,3],[19,0,19,22],[20,4,20,11],[21,1,22,1],[21,2,22,2],[21,4,21,11],[21,12,21,15],[21,16,21,19],[21,20,22,20],[21,22,22,22]]}
["Qbiss One Cutting list for 3D-corner elements",null,null,null,null,null,null,null,null,null,null,null,null,null,null,null,null,null,null,null,null,null,null,null,null,null,null,null,null,null,null,"INSTRUCTIONS"]
[null,null,null,null,null,null,null,null,null,null,null,null,null,null,null,null,null,null,null,null,null,null,null,null,null,null,null,null,null,null,null,"Follow steps"]
[null,"Project name:",null,{"$f":"IF('CUTTING LIST'!C10=\"INSERT TEXT\",\"Insert text on first page\",'CUTTING LIST'!C10)","v":"Insert text on first page"},null,null,null,null,null,null,null,null,null,null,null,null,null,null,null,null,"Date last saved:",null,{"$f":"'CUTTING LIST'!N1","v":"2023-11-20T07:46:28"},null,null,null,null,null,null,null,null,"1 PHASE / FACADE / BUILDING","Mark positioning of the element according to design shop drawings"]
[null,"Customer name:",null,{"$f":"IF('CUTTING LIST'!C11=\"INSERT TEXT\",\"Insert text on first page\",'CUTTING LIST'!C11)","v":"Insert text on first page"},null,null,null,null,null,null,null,null,null,null,null,null,null,null,null,null,"Last saved by:",null,{"$f":"'CUTTING LIST'!N2","v":"Slanšek Matic"},null,null,null,null,null,null,null,null,"2 ELEMENT REF","Mark element according to design shop drawings"]
[null,"Customer order no:",null,{"$f":"IF('CUTTING LIST'!C12=\"INSERT TEXT\",\"Insert text on first page\",'CUTTING LIST'!C12)","v":"Insert text on first page"},null,null,null,null,null,null,null,null,null,null,null,null,null,null,null,null,"Cutting list number:",null,{"$f":"IF('CUTTING LIST'!N3=\"Insert\",\"Insert text on first page\",'CUTTING LIST'!N3)","v":"Insert text on first page"},null,null,null,null,null,null,null,null,"3 QTY","Number of elements"]
[null,null,null,null,null,null,null,null,null,null,null,null,null,null,null,null,null,null,null,null,"Revision:",null,{"$f":"IF('CUTTING LIST'!N4=\"Insert\",\"Insert text on first page\",'CUTTING LIST'!N4)","v":"Insert text on first page"},null,null,null,null,null,null,null,null,"4 Core type","Power T","90 kg/m3"]
[null,null,null,null,null,null,null,null,null,null,null,null,null,null,null,null,null,null,null,null,null,null,null,null,null,null,null,null,null,null,null,null,"Power S","120 kg/m3"]
["STEP 1:",null,null,null,null,null,null,null,null,null,null,null,null,null,null,null,null,null,null,null,null,null,null,null,null,null,null,null,null,null,null,null,"Perform C","120 kg/m3"]
["Type of corner element:",null,null,null,null,null,null,null,null,null,null,null,null,null,null,null,null,null,null,null,null,null,null,null,null,null,null,null,null,null,null,"5 Unit dimensions"]
["3D_Corner element - horizontal",null,null,null,null,null,null,null,null,null,null,null,null,null,null,null,null,null,null,null,null,null,null,null,null,null,null,null,null,null,null,"T-","element thickness [mm]: (80, 100, 120, 133, 150, 172, 200, 220, 240, 250)"]
[null,null,null,null,null,null,null,null,null,null,null,null,null,null,null,null,null,null,null,null,null,null,null,null,null,null,null,null,null,null,null,"M-","element module width [mm]: from 600 up to 1200"]
[null,null,null,null,null,null,null,null,null,null,null,null,null,null,null,null,null,null,null,null,null,null,null,null,null,null,null,null,null,null,null,"R-","element length [mm]:  from 500 up to 6500",null,null,null,null,"*except element type 5,6,7,8,9,10,11,12:  550mm < R < 6500mm"]
[null,null,null,null,null,null,null,null,null,null,null,null,null,null,null,null,null,null,null,null,null,null,null,null,null,null,null,null,null,null,null,null,"Element lenght is measured and scheduled between fixing (joint centres) - SEE PICTURES BELOW !!!"]
[null,null,null,null,null,null,null,null,null,null,null,null,null,null,null,null,null,null,null,null,null,null,null,null,null,null,null,null,null,null,null,"A, B, R1,R2 -","side of corner element"]
[null,null,null,null,null,null,null,null,null,null,null,null,null,null,null,null,null,null,null,null,null,null,null,null,null,null,null,null,null,null,null,"αR1R2 -","angle: from 90 degrees to 175 degrees"]
[null,null,null,null,null,null,null,null,null,null,null,null,null,null,null,null,null,null,null,null,null,null,null,null,null,null,null,null,null,null,null,"Limitations:"]
[]
[]
[]
["STEP 2:"]
[1,2,3,4,5,null,null,null,null,null,null,null,6,7,8,9,10,11,12,13,14,15,16,17]
["PHASE / FACADE /","ELEMENT REF:","QTY:","Core type","UNIT DIMENSIONS [mm]",null,null,null,null,null,null,null,"EXTERNAL STEEL SHEET",null,null,null,"INTERNAL STEEL SHEET",null,null,null,"ELEMENT Type","FIXING POINT","Other notes","TOTAL [m2]","STATUS"]
["BUILDING",null,null,"Mineral wool","T","M","R","A","B","R1","R2","αR1R2","Thickness [mm]","Colour","Profile","Coating","Thickness [mm]","Colour","Profile","Coating",null,"QTY",null,null,null,null,null,null,null,"M*QTY","Total fixing points"]
[null,null,null,null,null,{"$f":"H24+I24","v":0},{"$f":"J24+K24","v":0},null,null,null,null,null,{"$f":"Thickness_of_external_steel_sheet","v":0.7},null,"G",{"$f":"IFERROR(VLOOKUP(N24,'Data 2'!$A$1:$B$29,2,FALSE),\"\")","v":""},null,null,null,null,null,null,{"$f":"IF(AND(OR(AND(G24>1,536>G24),G24>6488),OR(U24=5,U24=6,U24=7,U24=8,U24=9,U24=10,U24=11,U24=12)),\"El.Length 550mm<R<6475mm!!!\",IF(ISBLANK(G24),\"\",\"\"))","v":""},{"$f":"C24*F24/1000*G24/1000","v":0},{"$f":"IF(OR($A$10=\"\",C24=\"\",D24=\"\",E24=\"\",F24=\"\",H24=\"\",I24=\"\",J24=\"\",K24=\"\",L24=\"\",N24=\"\",Q24=\"\",R24=\"\",S24=\"\",T24=\"\",U24=\"\",V24=\"\"),\"Not OK\",\"OK\")","v":"Not OK"},null,null,null,null,{"$f":"F24*C24","v":0},{"$f":"V24*C24","v":0}]
[]
[null,"TOTAL QTY",{"$f":"SUM(C24:C25)","v":0},null,null,null,null,null,null,null,null,null,null,null,null,null,null,null,null,null,null,null,"TOTAL m2 of facade elements",{"$f":"SUM(X24:X25)","v":0}]
[null,"Module x QTY [m]:",{"$f":"SUM(AD24:AD25)/1000","v":0},null,null,null,null,null,null,null,null,null,null,null,null,null,null,null,null,null,null,null,"TOTAL fixing points",{"$f":"SUM(AE24:AE25)","v":0},null,null,null,null,null,null,null,null,"M=A+B"]
[null,null,null,null,null,null,null,null,null,null,null,null,null,null,null,null,null,null,null,null,null,null,null,null,null,null,null,null,null,null,null,null,"600 < (A+B) < 1200"]
[null,null,null,null,null,null,null,null,null,null,null,null,null,null,null,null,null,null,null,null,null,null,null,null,null,null,null,null,null,null,null,null,"R=R1+R2"]
[null,"Required fields"]
[null,"Input data doesn't meet Qbiss One limitations - see INSTRUCTIONS on the right"]
[]
[]
[]
[null,"Automatically filled"]
[]
[]
[]
[]
[]
[]
[]
[]
[]
[]
[]
[]
[]
[]
[]
[]
[]
[]
[]
[]
[]
[]
[]
[]
[null,null,null,null,null,null,null,null,null,null,null,null,null,null,null,null,null,null,null,null,null,null,null,null,null,null,null,null,null,null,null,"6 External steel sheet thickness","In case of Qbiss elements, to achieve perfect flatness, we always use 0,7 mm thick steel sheet"]
[null,null,null,null,null,null,null,null,null,null,null,null,null,null,null,null,null,null,null,null,null,null,null,null,null,null,null,null,null,null,null,"7 External steel sheet colour","Select avaliable standard colours. Find more about standard colours from following link",null,null,null,null,null,null,null,"Qbiss Colour Chart"]
[null,null,null,null,null,null,null,null,null,null,null,null,null,null,null,null,null,null,null,null,null,null,null,null,null,null,null,null,null,null,null,"8 External steel sheet profile","All Qbiss One elements have smooth external steel sheet profile"]
[null,null,null,null,null,null,null,null,null,null,null,null,null,null,null,null,null,null,null,null,null,null,null,null,null,null,null,null,null,null,null,"9 External steel sheet coating","Based on colour selection, steel sheet coating is selected automaticaly"]
[null,null,null,null,null,null,null,null,null,null,null,null,null,null,null,null,null,null,null,null,null,null,null,null,null,null,null,null,null,null,null,"10 Internal steel sheet thickness","Choose among 0,5mm; 0,55mm; 0,6mm; 0,7mm according to offer and structural calculation made by Trimo"]
[null,null,null,null,null,null,null,null,null,null,null,null,null,null,null,null,null,null,null,null,null,null,null,null,null,null,null,null,null,null,null,"11 Internal steel sheet colour","Select avaliable standard colours. Find more about standard colours from following link",null,null,null,null,null,null,null,"Qbiss Colour Chart"]
[null,null,null,null,null,null,null,null,null,null,null,null,null,null,null,null,null,null,null,null,null,null,null,null,null,null,null,null,null,null,null,"12 Internal steel sheet profile","Choose among: g; s; v; v2; m2 profiles. Find out more about possibilities"]
[null,null,null,null,null,null,null,null,null,null,null,null,null,null,null,null,null,null,null,null,null,null,null,null,null,null,null,null,null,null,null,"13 Internal steel sheet coating","Considering project requirements, you can choose what type of coating is appropriate. ",null,null,null,null,null,null,null,null,null,"SP - Polyester"]
[null,null,null,null,null,null,null,null,null,null,null,null,null,null,null,null,null,null,null,null,null,null,null,null,null,null,null,null,null,null,null,null,null,null,null,null,null,null,null,null,null,null,"PVDF - Polyvinylidene fluoride"]
[null,null,null,null,null,null,null,null,null,null,null,null,null,null,null,null,null,null,null,null,null,null,null,null,null,null,null,null,null,null,null,null,null,null,null,null,null,null,null,null,null,null,"PUR - Polyurethane"]
[null,null,null,null,null,null,null,null,null,null,null,null,null,null,null,null,null,null,null,null,null,null,null,null,null,null,null,null,null,null,null,null,null,null,null,null,null,null,null,null,null,null,"PVC - Polyvinyl chlodide"]
[null,null,null,null,null,null,null,null,null,null,null,null,null,null,null,null,null,null,null,null,null,null,null,null,null,null,null,null,null,null,null,"14 Element type","Based on direction of assembly, choose appropriate type of element"]
[]
[]
[]
[]
[]
[]
[]
[]
[]
[]
[]
[]
[]
[]
[]
[]
[]
[]
[]
[]
[]
[]
[]
[]
[]
[]
[]
[]
[]
[]
[]
[]
[]
[]
[]
[]
[]
[]
[]
[]
[]
[]
[]
[]
[null,null,null,null,null,null,null,null,null,null,null,null,null,null,null,null,null,null,null,null,null,null,null,null,null,null,null,null,null,null,null,"15 Fixing point","Select quantity of fixing points on Qbiss element according to structural calculation, made by Trimo technical support"]
[null,null,null,null,null,null,null,null,null,null,null,null,null,null,null,null,null,null,null,null,null,null,null,null,null,null,null,null,null,null,null,null,"Limitations: 2 < number of fixing points < 6",null,null,null,null,"(only on one side of the element)"]
[]
[]
[]
[]
[]
[]
[]
[]
[]
[]
[]
[]
[]
[]
[]
[]
[null,null,null,null,null,null,null,null,null,null,null,null,null,null,null,null,null,null,null,null,null,null,null,null,null,null,null,null,null,null,null,"Printscreen from structural calculation in SandStat"]
[null,null,null,null,null,null,null,null,null,null,null,null,null,null,null,null,null,null,null,null,null,null,null,null,null,null,null,null,null,null,null,"16  Other notes"]
[null,null,null,null,null,null,null,null,null,null,null,null,null,null,null,null,null,null,null,null,null,null,null,null,null,null,null,null,null,null,null,"17 Total","Total amount of facade elements - calculated automatically"]
[null,null,null,null,null,null,null,null,null,null,null,null,null,null,null,null,null,null,null,null,null,null,null,null,null,null,null,null,null,null,null,"STATUS","OK","\"- element completely defined"]
[null,null,null,null,null,null,null,null,null,null,null,null,null,null,null,null,null,null,null,null,null,null,null,null,null,null,null,null,null,null,null,null,"Not OK","\"- Some caracteristics of the element are missing, please fulfill all required cells."]

{"sheet":"3D edge-cut corner elements","index":9,"n_rows":139,"n_cols":43,"rows_kept":139,"cut":false,"hidden":false,"merged":[[21,22,22,22],[21,23,22,23],[21,24,22,24],[30,1,33,2],[7,0,7,3],[9,0,9,1],[19,0,19,22],[20,4,20,11],[21,1,22,1],[21,2,22,2],[21,4,21,11],[21,12,21,15],[21,16,21,19],[21,20,22,20],[4,3,4,19],[4,20,4,21],[4,22,4,23],[5,13,5,15],[5,20,5,21],[5,22,5,23],[0,0,0,23],[2,3,2,19],[2,20,2,21],[2,22,2,23],[3,3,3,19],[3,20,3,21],[3,22,3,23]]}
["Qbiss One Cutting list for 3D-corner elements",null,null,null,null,null,null,null,null,null,null,null,null,null,null,null,null,null,null,null,null,null,null,null,null,null,null,null,null,null,null,"INSTRUCTIONS"]
[null,null,null,null,null,null,null,null,null,null,null,null,null,null,null,null,null,null,null,null,null,null,null,null,null,null,null,null,null,null,null,"Follow steps"]
[null,"Project name:",null,{"$f":"IF('CUTTING LIST'!C10=\"INSERT TEXT\",\"Insert text on first page\",'CUTTING LIST'!C10)","v":"Insert text on first page"},null,null,null,null,null,null,null,null,null,null,null,null,null,null,null,null,"Date last saved:",null,{"$f":"'CUTTING LIST'!N1","v":"2023-11-20T07:46:28"},null,null,null,null,null,null,null,null,"1 PHASE / FACADE / BUILDING","Mark positioning of the element according to design shop drawings"]
[null,"Customer name:",null,{"$f":"IF('CUTTING LIST'!C11=\"INSERT TEXT\",\"Insert text on first page\",'CUTTING LIST'!C11)","v":"Insert text on first page"},null,null,null,null,null,null,null,null,null,null,null,null,null,null,null,null,"Last saved by:",null,{"$f":"'CUTTING LIST'!N2","v":"Slanšek Matic"},null,null,null,null,null,null,null,null,"2 ELEMENT REF","Mark element according to design shop drawings"]
[null,"Customer order no:",null,{"$f":"IF('CUTTING LIST'!C12=\"INSERT TEXT\",\"Insert text on first page\",'CUTTING LIST'!C12)","v":"Insert text on first page"},null,null,null,null,null,null,null,null,null,null,null,null,null,null,null,null,"Cutting list number:",null,{"$f":"IF('CUTTING LIST'!N3=\"Insert\",\"Insert text on first page\",'CUTTING LIST'!N3)","v":"Insert text on first page"},null,null,null,null,null,null,null,null,"3 QTY","Number of elements"]
[null,null,null,null,null,null,null,null,null,null,null,null,null,null,null,null,null,null,null,null,"Revision:",null,{"$f":"IF('CUTTING LIST'!N4=\"Insert\",\"Insert text on first page\",'CUTTING LIST'!N4)","v":"Insert text on first page"},null,null,null,null,null,null,null,null,"4 Core type","Power T","90 kg/m3"]
[null,null,null,null,null,null,null,null,null,null,null,null,null,null,null,null,null,null,null,null,null,null,null,null,null,null,null,null,null,null,null,null,"Power S","120 kg/m3"]
["STEP 1:",null,null,null,null,null,null,null,null,null,null,null,null,null,null,null,null,null,null,null,null,null,null,null,null,null,null,null,null,null,null,null,"Perform C","120 kg/m3"]
["Type of corner element:",null,null,null,null,null,null,null,null,null,null,null,null,null,null,null,null,null,null,null,null,null,null,null,null,null,null,null,null,null,null,"5 Unit dimensions"]
["3D_Corner element - horizontal",null,null,null,null,null,null,null,null,null,null,null,null,null,null,null,null,null,null,null,null,null,null,null,null,null,null,null,null,null,null,"T-","element thickness [mm]: (80, 100, 120, 133, 150, 172, 200, 220, 240, 250)"]
[null,null,null,null,null,null,null,null,null,null,null,null,null,null,null,null,null,null,null,null,null,null,null,null,null,null,null,null,null,null,null,"M-","element module width [mm]: from 600 up to 1200"]
[null,null,null,null,null,null,null,null,null,null,null,null,null,null,null,null,null,null,null,null,null,null,null,null,null,null,null,null,null,null,null,"R-","element length [mm]:  from 500 up to 6500",null,null,null,null,"*except element type 5,6,7,8,9,10,11,12:  550mm < R < 6500mm"]
[]
[]
[null,null,null,null,null,null,null,null,null,null,null,null,null,null,null,null,null,null,null,null,null,null,null,null,null,null,null,null,null,null,null,null,"Element lenght is measured and scheduled between fixing (joint centres) - SEE PICTURES BELOW !!!"]
[null,null,null,null,null,null,null,null,null,null,null,null,null,null,null,null,null,null,null,null,null,null,null,null,null,null,null,null,null,null,null,"A, B, R1,R2 -","side of corner element"]
[null,null,null,null,null,null,null,null,null,null,null,null,null,null,null,null,null,null,null,null,null,null,null,null,null,null,null,null,null,null,null,"αR1R2 -","angle: from 90 degrees to 175 degrees"]
[null,null,null,null,null,null,null,null,null,null,null,null,null,null,null,null,null,null,null,null,null,null,null,null,null,null,null,null,null,null,null,"Limitations:"]
[]
["STEP 2:"]
[1,2,3,4,5,null,null,null,null,null,null,null,6,7,8,9,10,11,12,13,14,15,16,17]
["PHASE / FACADE /","ELEMENT REF:","QTY:","Core type","UNIT DIMENSIONS [mm]",null,null,null,null,null,null,null,"EXTERNAL STEEL SHEET",null,null,null,"INTERNAL STEEL SHEET",null,null,null,"ELEMENT Type","FIXING POINT","Other notes","TOTAL [m2]","STATUS"]
["BUILDING",null,null,"Mineral wool","T","M","R","A","B","R1","R2","αR1R2","Thickness [mm]","Colour","Profile","Coating","Thickness [mm]","Colour","Profile","Coating",null,"QTY",null,null,null,null,null,null,null,"M*QTY","Total fixing points"]
[null,null,null,null,null,{"$f":"H24+I24","v":0},{"$f":"J24+K24","v":0},null,null,null,null,null,{"$f":"Thickness_of_external_steel_sheet","v":0.7},null,"G",{"$f":"IFERROR(VLOOKUP(N24,'Data 2'!$A$1:$B$29,2,FALSE),\"\")","v":""},null,null,null,null,null,null,{"$f":"IF(AND(OR(AND(G24>1,536>G24),G24>6488),OR(U24=5,U24=6,U24=7,U24=8,U24=9,U24=10,U24=11,U24=12)),\"El.Length 550mm<R<6475mm!!!\",IF(ISBLANK(G24),\"\",\"\"))","v":""},{"$f":"C24*F24/1000*G24/1000","v":0},{"$f":"IF(OR($A$10=\"\",C24=\"\",D24=\"\",E24=\"\",F24=\"\",H24=\"\",I24=\"\",J24=\"\",K24=\"\",L24=\"\",N24=\"\",Q24=\"\",R24=\"\",S24=\"\",T24=\"\",U24=\"\",V24=\"\"),\"Not OK\",\"OK\")","v":"Not OK"},null,null,null,null,{"$f":"F24*C24","v":0},{"$f":"V24*C24","v":0}]
[]
[null,"TOTAL QTY",{"$f":"SUM(C24:C25)","v":0},null,null,null,null,null,null,null,null,null,null,null,null,null,null,null,null,null,null,null,"TOTAL m2 of facade elements",{"$f":"SUM(X24:X25)","v":0}]
[null,"Module x QTY [m]:",{"$f":"SUM(AD24:AD25)/1000","v":0},null,null,null,null,null,null,null,null,null,null,null,null,null,null,null,null,null,null,null,"TOTAL fixing points",{"$f":"SUM(AE24:AE25)","v":0}]
[]
[]
[null,"Required fields"]
[null,"Input data doesn't meet Qbiss One limitations - see INSTRUCTIONS on the right"]
[null,null,null,null,null,null,null,null,null,null,null,null,null,null,null,null,null,null,null,null,null,null,null,null,null,null,null,null,null,null,null,null,"M=A+B"]
[null,null,null,null,null,null,null,null,null,null,null,null,null,null,null,null,null,null,null,null,null,null,null,null,null,null,null,null,null,null,null,null,"600 < (A+B) < 1200"]
[null,null,null,null,null,null,null,null,null,null,null,null,null,null,null,null,null,null,null,null,null,null,null,null,null,null,null,null,null,null,null,null,"R=R1+R2"]
[null,"Automatically filled"]
[]
[]
[]
[]
[]
[]
[]
[]
[]
[]
[]
[]
[]
[]
[]
[]
[]
[]
[]
[]
[]
[]
[]
[]
[]
[null,null,null,null,null,null,null,null,null,null,null,null,null,null,null,null,null,null,null,null,null,null,null,null,null,null,null,null,null,null,null,"6 External steel sheet thickness","In case of Qbiss elements, to achieve perfect flatness, we always use 0,7 mm thick steel sheet"]
[null,null,null,null,null,null,null,null,null,null,null,null,null,null,null,null,null,null,null,null,null,null,null,null,null,null,null,null,null,null,null,"7 External steel sheet colour","Select avaliable standard colours. Find more about standard colours from following link",null,null,null,null,null,null,null,"Qbiss Colour Chart"]
[null,null,null,null,null,null,null,null,null,null,null,null,null,null,null,null,null,null,null,null,null,null,null,null,null,null,null,null,null,null,null,"8 External steel sheet profile","All Qbiss One elements have smooth external steel sheet profile"]
[null,null,null,null,null,null,null,null,null,null,null,null,null,null,null,null,null,null,null,null,null,null,null,null,null,null,null,null,null,null,null,"9 External steel sheet coating","Based on colour selection, steel sheet coating is selected automaticaly"]
[null,null,null,null,null,null,null,null,null,null,null,null,null,null,null,null,null,null,null,null,null,null,null,null,null,null,null,null,null,null,null,"10 Internal steel sheet thickness","Choose among 0,5mm; 0,55mm; 0,6mm; 0,7mm according to offer and structural calculation made by Trimo"]
[null,null,null,null,null,null,null,null,null,null,null,null,null,null,null,null,null,null,null,null,null,null,null,null,null,null,null,null,null,null,null,"11 Internal steel sheet colour","Select avaliable standard colours. Find more about standard colours from following link",null,null,null,null,null,null,null,"Qbiss Colour Chart"]
[null,null,null,null,null,null,null,null,null,null,null,null,null,null,null,null,null,null,null,null,null,null,null,null,null,null,null,null,null,null,null,"12 Internal steel sheet profile","Choose among: g; s; v; v2; m2 profiles. Find out more about possibilities"]
[null,null,null,null,null,null,null,null,null,null,null,null,null,null,null,null,null,null,null,null,null,null,null,null,null,null,null,null,null,null,null,"13 Internal steel sheet coating","Considering project requirements, you can choose what type of coating is appropriate. ",null,null,null,null,null,null,null,null,null,"SP - Polyester"]
[null,null,null,null,null,null,null,null,null,null,null,null,null,null,null,null,null,null,null,null,null,null,null,null,null,null,null,null,null,null,null,null,null,null,null,null,null,null,null,null,null,null,"PVDF - Polyvinylidene fluoride"]
[null,null,null,null,null,null,null,null,null,null,null,null,null,null,null,null,null,null,null,null,null,null,null,null,null,null,null,null,null,null,null,null,null,null,null,null,null,null,null,null,null,null,"PUR - Polyurethane"]
[null,null,null,null,null,null,null,null,null,null,null,null,null,null,null,null,null,null,null,null,null,null,null,null,null,null,null,null,null,null,null,null,null,null,null,null,null,null,null,null,null,null,"PVC - Polyvinyl chlodide"]
[null,null,null,null,null,null,null,null,null,null,null,null,null,null,null,null,null,null,null,null,null,null,null,null,null,null,null,null,null,null,null,"14 Element type","Based on direction of assembly, choose appropriate type of element"]
[]
[]
[]
[]
[]
[]
[]
[]
[]
[]
[]
[]
[]
[]
[]
[]
[]
[]
[]
[]
[]
[]
[]
[]
[]
[]
[]
[]
[]
[]
[]
[]
[]
[]
[]
[]
[]
[]
[]
[]
[]
[]
[]
[]
[null,null,null,null,null,null,null,null,null,null,null,null,null,null,null,null,null,null,null,null,null,null,null,null,null,null,null,null,null,null,null,"15 Fixing point","Select quantity of fixing points on Qbiss element according to structural calculation, made by Trimo technical support"]
[null,null,null,null,null,null,null,null,null,null,null,null,null,null,null,null,null,null,null,null,null,null,null,null,null,null,null,null,null,null,null,null,"Limitations: 2 < number of fixing points < 6",null,null,null,null,"(only on one side of the element)"]
[]
[]
[]
[]
[]
[]
[]
[]
[]
[]
[]
[]
[]
[]
[]
[]
[null,null,null,null,null,null,null,null,null,null,null,null,null,null,null,null,null,null,null,null,null,null,null,null,null,null,null,null,null,null,null,"Printscreen from structural calculation in SandStat"]
[null,null,null,null,null,null,null,null,null,null,null,null,null,null,null,null,null,null,null,null,null,null,null,null,null,null,null,null,null,null,null,"16  Other notes"]
[null,null,null,null,null,null,null,null,null,null,null,null,null,null,null,null,null,null,null,null,null,null,null,null,null,null,null,null,null,null,null,"17 Total","Total amount of facade elements - calculated automatically"]
[null,null,null,null,null,null,null,null,null,null,null,null,null,null,null,null,null,null,null,null,null,null,null,null,null,null,null,null,null,null,null,"STATUS","OK","\"- element completely defined"]
[null,null,null,null,null,null,null,null,null,null,null,null,null,null,null,null,null,null,null,null,null,null,null,null,null,null,null,null,null,null,null,null,"Not OK","\"- Some caracteristics of the element are missing, please fulfill all required cells."]

{"sheet":"Accessories","index":10,"n_rows":45,"n_cols":27,"rows_kept":45,"cut":false,"hidden":false,"merged":[[5,26,5,28],[9,3,11,3],[9,2,11,2],[9,0,11,1],[9,9,9,16],[9,7,11,8],[9,5,11,6],[9,4,11,4],[7,0,7,2],[3,22,3,24],[5,22,5,24],[51,0,51,1],[45,0,45,1],[46,0,46,1],[47,0,47,1],[48,0,48,1],[49,0,49,1],[50,0,50,1],[44,0,44,1],[33,0,33,1],[34,0,34,1],[38,0,38,1],[39,0,39,1],[40,0,40,1],[42,0,42,1],[12,6,17,6],[29,0,29,1],[24,0,24,1],[25,0,25,1],[26,0,26,1],[12,4,17,4],[12,5,17,5],[18,2,23,2],[18,3,23,3],[18,4,23,4],[18,5,23,5],[12,0,17,1],[12,2,17,2],[12,3,17,3],[0,0,0,20],[5,17,5,18],[5,19,5,20],[5,12,5,13],[2,17,2,18],[2,19,2,20],[3,17,3,18],[3,19,3,20],[4,17,4,18],[4,19,4,20],[12,7,17,7],[12,8,17,8],[4,22,4,25],[29,22,29,26],[18,6,23,6],[18,7,23,7],[18,8,23,8],[18,9,19,16],[20,9,21,11],[22,9,22,11],[23,9,23,11],[20,12,21,13],[22,12,22,13],[23,12,23,13],[20,14,21,14],[20,15,21,16],[22,15,22,16],[23,15,23,16],[30,14,30,18],[32,14,32,18],[28,22,28,24],[31,19,32,19],[31,20,32,20],[28,26,28,28],[27,0,28,1],[27,2,28,2],[27,3,28,3],[27,8,28,8],[27,7,28,7],[27,6,28,6],[27,5,28,5],[27,4,28,4],[27,22,27,24],[27,26,27,28],[30,0,30,1],[46,22,46,26],[33,22,33,26],[34,22,34,24],[34,26,34,28],[43,22,43,26],[35,22,35,26],[37,22,37,24],[37,26,37,28],[43,0,43,1],[35,0,35,1],[31,0,31,1],[32,0,32,1],[41,0,41,1],[36,0,36,1]]}
["Qbiss One Accessories",null,null,null,null,null,null,null,null,null,null,null,null,null,null,null,null,null,null,null,null,null,"INSTRUCTIONS"]
[]
[null,"Project name:",null,{"$f":"IF('CUTTING LIST'!C10=\"INSERT TEXT\",\"Insert text on first page\",'CUTTING LIST'!C10)","v":"Insert text on first page"},null,null,null,null,null,null,null,null,null,null,null,null,null,"Date last saved:",null,{"$f":"ProfessorExcelLastSaveDate()","v":"2023-02-28T11:02:36"},null,null,"1 Type of fixation: select whether you would like to fix Qbiss One elements with Self-drilling or self-tapping screws"]
[null,"Customer name:",null,{"$f":"IF('CUTTING LIST'!C11=\"INSERT TEXT\",\"Insert text on first page\",'CUTTING LIST'!C11)","v":"Insert text on first page"},null,null,null,null,null,null,null,null,null,null,null,null,null,"Laste saved by:",null,{"$f":"ProfessorExcelLastSavedBy()","v":"Slanšek Matic"},null,null,"2 Fixing method:"]
[null,"Customer order no:",null,{"$f":"IF('CUTTING LIST'!C12=\"INSERT TEXT\",\"Insert text on first page\",'CUTTING LIST'!C18)","v":"Insert text on first page"},null,null,null,null,null,null,null,null,null,null,null,null,null,"Cutting list number:",null,{"$f":"IF('CUTTING LIST'!N3=\"Insert\",\"Insert text on first page\",'CUTTING LIST'!N3)","v":"Insert text on first page"},null,null,"OPTION X - Fixing through Qbiss One element joint (wind load)"]
[null,null,{"$f":"'Qbiss One elements'!M10","v":"BF_BF_Vertical"},null,null,null,null,null,null,null,null,null,null,null,null,null,null,"Revision:",null,{"$f":"IF('CUTTING LIST'!N4=\"Insert\",\"Insert text on first page\",'CUTTING LIST'!N4)","v":"Insert text on first page"},null,null,"Self-drilling screw",null,null,null,"Self-tapping screw"]
[]
["LIST OF Accessories",null,null,null,null,null,null,null,null,null,null,null,"Required fields"]
[null,null,null,null,null,null,null,null,null,null,null,null,"Automatically filled"]
["NAME",null,"PICTURE","DESCRIPTION","Note","ESTIMATED NET quantity*",null,"ORDER quantity",null,"S p e c i f y   f i x a t i o n    s c r e w  ( w i n d - l o a d )"]
[null,null,null,null,null,null,null,null,null,"1.",null,"2.","3.","4.","5.","6.","7."]
[null,null,null,null,null,null,null,null,null,"Type of fixation",null,"Fixing method (see instructions)","Thickness of substructure (mm)","Thickness of Qbiss One (mm)","Name of fixing screw","Quantity (pcs)","Code of fixing screw"]
[{"$f":"IF(ISNUMBER(SEARCH(\"horizontal\",'Qbiss One elements'!$M$10)),'Data 3 Accessories'!A8,IF(ISNUMBER(SEARCH(\"vertical\",'Qbiss One elements'!$M$10)),'Data 3 Accessories'!A32,\"\"))","v":"Fixation_screw_in_panel_panel_joint_without_thread_under_the_head_and_without_washer"},null,null,{"$f":"IF(ISNUMBER(SEARCH(\"horizontal\",$C$6)),INDEX('Data 3 Accessories'!$D$8:$AM$21,MATCH(Accessories!$A19,'Data 3 Accessories'!$A$8:$A$21,0),MATCH(Accessories!$C$6,'Data 3 Accessories'!$D$1:$AM$1,0)),INDEX('Data 3 Accessories'!$D$32:$S$45,MATCH(Accessories!$A19,'Data 3 Accessories'!$A$32:$A$45,0),MATCH(Accessories!$C$6,'Data 3 Accessories'!$D$23:$S$23,0)))","v":"self-tapping or self-drilling; see table"},{"$f":"IF(ISNUMBER(SEARCH(\"horizontal\",$C$6)),INDEX('Data 3 Accessories'!$D$8:$AM$21,MATCH(Accessories!$A13,'Data 3 Accessories'!$A$8:$A$21,0),MATCH(Accessories!$C$6,'Data 3 Accessories'!$D$1:$AM$1,0)+1),INDEX('Data 3 Accessories'!$D$32:$S$44,MATCH(Accessories!$A13,'Data 3 Accessories'!$A$32:$A$44,0),MATCH(Accessories!$C$6,'Data 3 Accessories'!$D$23:$S$23,0)+1))","v":"NOT included in element price; Number of fixing screws is determined with structural calculation provided by Trimo Technical Support"},{"$f":"SUM('Qbiss One elements'!S27,'Longitudinal corner elements '!W27,'Transversal corner elements'!W27,'U-corner elements'!X27,'Curved elements'!T27,'Transversal spliced corner el.'!W27,'Longitudinal spliced corner el.'!W27,'U-corner elements'!X27)","v":0},{"$f":"VLOOKUP(A13,'Data 3 Accessories'!$A$8:$C$44,2,FALSE)","v":"pcs"},null,{"$f":"G19","v":"pcs"},null,{"$f":"M13&N13&L13","v":""},null,null,null,{"$f":"IF(J13=\"Self-drilling\",VLOOKUP(K13,'Fixing material data'!$A$18:$E$319,5,FALSE),VLOOKUP(K13,'Fixing material data'!$H$19:$L$51,5,FALSE))","v":{"$error":"#N/A"}},null,{"$f":"IF(J13=\"Self-drilling\",VLOOKUP(K13,'Fixing material data'!$A$18:$E$319,4,FALSE),VLOOKUP(K13,'Fixing material data'!$H$19:$L$51,4,FALSE))","v":{"$error":"#N/A"}}]
[null,null,null,null,null,null,null,null,null,null,{"$f":"M14&N14&L14","v":""},null,null,null,{"$f":"IF(J14=\"Self-drilling\",VLOOKUP(K14,'Fixing material data'!$A$18:$E$319,5,FALSE),VLOOKUP(K14,'Fixing material data'!$H$19:$L$51,5,FALSE))","v":{"$error":"#N/A"}},null,{"$f":"IF(J14=\"Self-drilling\",VLOOKUP(K14,'Fixing material data'!$A$18:$E$319,4,FALSE),VLOOKUP(K14,'Fixing material data'!$H$19:$L$51,4,FALSE))","v":{"$error":"#N/A"}}]
[null,null,null,null,null,null,null,null,null,null,"",null,null,null,{"$f":"IF(J15=\"Self-drilling\",VLOOKUP(K15,'Fixing material data'!$A$18:$E$319,5,FALSE),VLOOKUP(K15,'Fixing material data'!$H$19:$L$51,5,FALSE))","v":{"$error":"#N/A"}},null,{"$f":"IF(J15=\"Self-drilling\",VLOOKUP(K15,'Fixing material data'!$A$18:$E$319,4,FALSE),VLOOKUP(K15,'Fixing material data'!$H$19:$L$51,4,FALSE))","v":{"$error":"#N/A"}}]
[null,null,null,null,null,null,null,null,null,null,"",null,null,null,{"$f":"IF(J16=\"Self-drilling\",VLOOKUP(K16,'Fixing material data'!$A$18:$E$319,5,FALSE),VLOOKUP(K16,'Fixing material data'!$H$19:$L$51,5,FALSE))","v":{"$error":"#N/A"}},null,{"$f":"IF(J16=\"Self-drilling\",VLOOKUP(K16,'Fixing material data'!$A$18:$E$319,4,FALSE),VLOOKUP(K16,'Fixing material data'!$H$19:$L$51,4,FALSE))","v":{"$error":"#N/A"}}]
[null,null,null,null,null,null,null,null,null,null,"",null,null,null,{"$f":"IF(J17=\"Self-drilling\",VLOOKUP(K17,'Fixing material data'!$A$18:$E$319,5,FALSE),VLOOKUP(K17,'Fixing material data'!$H$19:$L$51,5,FALSE))","v":{"$error":"#N/A"}},null,{"$f":"IF(J17=\"Self-drilling\",VLOOKUP(K17,'Fixing material data'!$A$18:$E$319,4,FALSE),VLOOKUP(K17,'Fixing material data'!$H$19:$L$51,4,FALSE))","v":{"$error":"#N/A"}}]
[null,null,null,null,null,null,null,null,null,null,"",null,null,null,{"$f":"IF(J18=\"Self-drilling\",VLOOKUP(K18,'Fixing material data'!$A$18:$E$319,5,FALSE),VLOOKUP(K18,'Fixing material data'!$H$19:$L$51,5,FALSE))","v":{"$error":"#N/A"}},null,{"$f":"IF(J18=\"Self-drilling\",VLOOKUP(K18,'Fixing material data'!$A$18:$E$319,4,FALSE),VLOOKUP(K18,'Fixing material data'!$H$19:$L$51,4,FALSE))","v":{"$error":"#N/A"}}]
[{"$f":"IF(ISNUMBER(SEARCH(\"horizontal\",'Qbiss One elements'!$M$10)),'Data 3 Accessories'!A9,IF(ISNUMBER(SEARCH(\"vertical\",'Qbiss One elements'!$M$10)),'Data 3 Accessories'!A33,\"\"))","v":"Fixation_screw_through_internal_steel_sheet"},null,null,{"$f":"IF(ISNUMBER(SEARCH(\"horizontal\",$C$6)),INDEX('Data 3 Accessories'!$D$8:$AM$21,MATCH(Accessories!$A19,'Data 3 Accessories'!$A$8:$A$21,0),MATCH(Accessories!$C$6,'Data 3 Accessories'!$D$1:$AM$1,0)),INDEX('Data 3 Accessories'!$D$32:$S$45,MATCH(Accessories!$A19,'Data 3 Accessories'!$A$32:$A$45,0),MATCH(Accessories!$C$6,'Data 3 Accessories'!$D$23:$S$23,0)))","v":"self-tapping or self-drilling; see table"},{"$f":"IF(ISNUMBER(SEARCH(\"horizontal\",$C$6)),INDEX('Data 3 Accessories'!$D$8:$AM$21,MATCH(Accessories!$A19,'Data 3 Accessories'!$A$8:$A$21,0),MATCH(Accessories!$C$6,'Data 3 Accessories'!$D$1:$AM$1,0)+1),INDEX('Data 3 Accessories'!$D$32:$S$44,MATCH(Accessories!$A19,'Data 3 Accessories'!$A$32:$A$44,0),MATCH(Accessories!$C$6,'Data 3 Accessories'!$D$23:$S$23,0)+1))","v":"NOT included in element price; suggested quantity of screws 1-2 pcs per each facade element (depends on type and size of element)"},{"$f":"2*('Qbiss One elements'!C26+'Longitudinal corner elements '!C26+'Transversal corner elements'!C26+'U-corner elements'!C26+'Curved elements'!C26+'Transversal spliced corner el.'!C26+'Longitudinal spliced corner el.'!C26)","v":0},{"$f":"VLOOKUP(A19,'Data 3 Accessories'!$A$8:$C$44,2,FALSE)","v":"pcs"},null,{"$f":"G19","v":"pcs"},"S p e c i f y   f i x a t i o n   t h r o u g h   i n t e r n a l   s t e e l   s h e e t  ( s e l f - w e i g h t )"]
[]
[null,null,null,null,null,null,null,null,null,"Thickness of substructure",null,null,"Name of fixing screw",null,"Quantity (pcs)","Code of fixing screw"]
[]
[null,null,null,null,null,null,null,null,null,"2mm - 5mm",null,null,"SCREW EJOT JT3-6-6,3x25",null,null,30024305]
[null,null,null,null,null,null,null,null,null,"4mm - 16mm",null,null,"SCREW EJOT JT2-18-5,5-40",null,null,30036018]
[{"$f":"IF(ISNUMBER(SEARCH(\"horizontal\",'Qbiss One elements'!$M$10)),'Data 3 Accessories'!A10,IF(ISNUMBER(SEARCH(\"vertical\",'Qbiss One elements'!$M$10)),'Data 3 Accessories'!A34,\"\"))","v":"EPDM_Transversal_Gasket"},null,null,{"$f":"IF(ISNUMBER(SEARCH(\"horizontal\",$C$6)),INDEX('Data 3 Accessories'!$D$8:$AM$21,MATCH(Accessories!$A25,'Data 3 Accessories'!$A$8:$A$21,0),MATCH(Accessories!$C$6,'Data 3 Accessories'!$D$1:$AM$1,0)),INDEX('Data 3 Accessories'!$D$32:$S$45,MATCH(Accessories!$A25,'Data 3 Accessories'!$A$32:$A$45,0),MATCH(Accessories!$C$6,'Data 3 Accessories'!$D$23:$S$23,0)))","v":"T052\n30014372\ncut to size for brick"},{"$f":"IF(ISNUMBER(SEARCH(\"horizontal\",$C$6)),INDEX('Data 3 Accessories'!$D$8:$AM$21,MATCH(Accessories!$A25,'Data 3 Accessories'!$A$8:$A$21,0),MATCH(Accessories!$C$6,'Data 3 Accessories'!$D$1:$AM$1,0)+1),INDEX('Data 3 Accessories'!$D$32:$S$44,MATCH(Accessories!$A25,'Data 3 Accessories'!$A$32:$A$44,0),MATCH(Accessories!$C$6,'Data 3 Accessories'!$D$23:$S$23,0)+1))","v":"included in element price; quantity of transversal (horizontal) joint"},{"$f":"SUM('Qbiss One elements'!C27,'Longitudinal corner elements '!C27,'Transversal corner elements'!C27,'U-corner elements'!C27,'Curved elements'!C27,'Transversal spliced corner el.'!C27,'Longitudinal spliced corner el.'!C27)","v":0},{"$f":"VLOOKUP(A25,'Data 3 Accessories'!$A$8:$C$44,2,FALSE)","v":"m"},null,"m"]
[{"$f":"IF(ISNUMBER(SEARCH(\"horizontal\",'Qbiss One elements'!$M$10)),'Data 3 Accessories'!A11,IF(ISNUMBER(SEARCH(\"vertical\",'Qbiss One elements'!$M$10)),'Data 3 Accessories'!A35,\"\"))","v":"Decorative_ALU_Extrusion"},null,null,{"$f":"IF(ISNUMBER(SEARCH(\"horizontal\",$C$6)),INDEX('Data 3 Accessories'!$D$8:$AM$21,MATCH(Accessories!$A26,'Data 3 Accessories'!$A$8:$A$21,0),MATCH(Accessories!$C$6,'Data 3 Accessories'!$D$1:$AM$1,0)),INDEX('Data 3 Accessories'!$D$32:$S$45,MATCH(Accessories!$A26,'Data 3 Accessories'!$A$32:$A$45,0),MATCH(Accessories!$C$6,'Data 3 Accessories'!$D$23:$S$23,0)))","v":"A097 (HF52)\nSAP code colour specific\ncut to size for brick ???\n30018981 tesnilo EPDM 20X20X15 ?"},{"$f":"IF(ISNUMBER(SEARCH(\"horizontal\",$C$6)),INDEX('Data 3 Accessories'!$D$8:$AM$21,MATCH(Accessories!$A26,'Data 3 Accessories'!$A$8:$A$21,0),MATCH(Accessories!$C$6,'Data 3 Accessories'!$D$1:$AM$1,0)+1),INDEX('Data 3 Accessories'!$D$32:$S$44,MATCH(Accessories!$A26,'Data 3 Accessories'!$A$32:$A$44,0),MATCH(Accessories!$C$6,'Data 3 Accessories'!$D$23:$S$23,0)+1))","v":"included in element price; quantity of transversal (horizontal) joint; supplied in 4 m lenghts; specify color"},{"$f":"F25","v":0},{"$f":"VLOOKUP(A26,'Data 3 Accessories'!$A$8:$C$44,2,FALSE)","v":"m"},null,"m"]
[{"$f":"IF(ISNUMBER(SEARCH(\"horizontal\",'Qbiss One elements'!$M$10)),'Data 3 Accessories'!A12,IF(ISNUMBER(SEARCH(\"vertical\",'Qbiss One elements'!$M$10)),'Data 3 Accessories'!A36,\"\"))","v":"Joint_Profile_20x25x1"},null,null,{"$f":"IF(ISNUMBER(SEARCH(\"horizontal\",$C$6)),INDEX('Data 3 Accessories'!$D$8:$AM$21,MATCH(Accessories!$A27,'Data 3 Accessories'!$A$8:$A$21,0),MATCH(Accessories!$C$6,'Data 3 Accessories'!$D$1:$AM$1,0)),INDEX('Data 3 Accessories'!$D$32:$S$45,MATCH(Accessories!$A27,'Data 3 Accessories'!$A$32:$A$45,0),MATCH(Accessories!$C$6,'Data 3 Accessories'!$D$23:$S$23,0)))","v":"N544\n30031874"},{"$f":"IF(ISNUMBER(SEARCH(\"horizontal\",$C$6)),INDEX('Data 3 Accessories'!$D$8:$AM$21,MATCH(Accessories!$A27,'Data 3 Accessories'!$A$8:$A$21,0),MATCH(Accessories!$C$6,'Data 3 Accessories'!$D$1:$AM$1,0)+1),INDEX('Data 3 Accessories'!$D$32:$S$44,MATCH(Accessories!$A27,'Data 3 Accessories'!$A$32:$A$44,0),MATCH(Accessories!$C$6,'Data 3 Accessories'!$D$23:$S$23,0)+1))","v":"NOT included in element price; quantity of transversal (horizontal) joint"},{"$f":"IF(ISNUMBER(SEARCH(\"horizontal\",C6)),SUM('Qbiss One elements'!C26,'Longitudinal corner elements '!C26,'Transversal corner elements'!C26,'U-corner elements'!C26,'Curved elements'!C26,'Longitudinal spliced corner el.'!C26,'Transversal spliced corner el.'!C26),Accessories!F26)","v":0},{"$f":"VLOOKUP(A27,'Data 3 Accessories'!$A$8:$C$44,2,FALSE)","v":"m"},null,"m",null,null,null,null,null,null,null,null,null,null,null,null,null,"OPTION Y - Fixing through Qbiss One element"]
[{"$f":"IF(ISNUMBER(SEARCH(\"horizontal\",'Qbiss One elements'!$M$10)),'Data 3 Accessories'!A13,IF(ISNUMBER(SEARCH(\"vertical\",'Qbiss One elements'!$M$10)),'Data 3 Accessories'!A37,\"\"))","v":"PE_Butyl_Tape"},null,null,{"$f":"IF(ISNUMBER(SEARCH(\"horizontal\",$C$6)),INDEX('Data 3 Accessories'!$D$8:$AM$21,MATCH(Accessories!$A28,'Data 3 Accessories'!$A$8:$A$21,0),MATCH(Accessories!$C$6,'Data 3 Accessories'!$D$1:$AM$1,0)),INDEX('Data 3 Accessories'!$D$32:$S$45,MATCH(Accessories!$A28,'Data 3 Accessories'!$A$32:$A$45,0),MATCH(Accessories!$C$6,'Data 3 Accessories'!$D$23:$S$23,0)))","v":"T102\n30016941"},{"$f":"IF(ISNUMBER(SEARCH(\"horizontal\",$C$6)),INDEX('Data 3 Accessories'!$D$8:$AM$21,MATCH(Accessories!$A28,'Data 3 Accessories'!$A$8:$A$21,0),MATCH(Accessories!$C$6,'Data 3 Accessories'!$D$1:$AM$1,0)+1),INDEX('Data 3 Accessories'!$D$32:$S$44,MATCH(Accessories!$A28,'Data 3 Accessories'!$A$32:$A$44,0),MATCH(Accessories!$C$6,'Data 3 Accessories'!$D$23:$S$23,0)+1))","v":"NOT included in element price; quantity min. 1 piece per façade element"},{"$f":"IF(ISNUMBER(SEARCH(\"horizontal\",C6)),ROUNDUP(SUM('Qbiss One elements'!S26,'Longitudinal corner elements '!W26,'Transversal corner elements'!W26,'U-corner elements'!X26,'Curved elements'!T26,'Longitudinal spliced corner el.'!W26,'Transversal spliced corner el.'!W26)/500,0),SUM('Qbiss One elements'!C26,'Longitudinal corner elements '!C26,'Transversal corner elements'!C26,'U-corner elements'!C26,'Curved elements'!C26,'Longitudinal spliced corner el.'!C26,'Transversal spliced corner el.'!C26))","v":0},{"$f":"VLOOKUP(A28,'Data 3 Accessories'!$A$8:$C$44,2,FALSE)","v":"pcs"},null,{"$f":"G28","v":"pcs"},null,null,null,null,null,null,null,null,null,null,null,null,null,"Self-drilling screw",null,null,null,"Self-tapping screw"]
[]
[{"$f":"IF(ISNUMBER(SEARCH(\"horizontal\",'Qbiss One elements'!$M$10)),'Data 3 Accessories'!A14,IF(ISNUMBER(SEARCH(\"vertical\",'Qbiss One elements'!$M$10)),'Data 3 Accessories'!A38,\"\"))","v":"Installation_Kit_Package_includes_spacer_crosses_wooden_pad_spray_with_soapy_water_and_installation_manual"},null,null,{"$f":"IF(ISNUMBER(SEARCH(\"horizontal\",$C$6)),INDEX('Data 3 Accessories'!$D$8:$AM$21,MATCH(Accessories!$A30,'Data 3 Accessories'!$A$8:$A$21,0),MATCH(Accessories!$C$6,'Data 3 Accessories'!$D$1:$AM$1,0)),INDEX('Data 3 Accessories'!$D$32:$S$45,MATCH(Accessories!$A30,'Data 3 Accessories'!$A$32:$A$45,0),MATCH(Accessories!$C$6,'Data 3 Accessories'!$D$23:$S$23,0)))","v":"Installation Kit Package - vertical\n30030437\n\nNavodilo (imamo za B) - potrebno dopolnit.\nKriž od B je ustrezen."},{"$f":"IF(ISNUMBER(SEARCH(\"horizontal\",$C$6)),INDEX('Data 3 Accessories'!$D$8:$AM$21,MATCH(Accessories!$A30,'Data 3 Accessories'!$A$8:$A$21,0),MATCH(Accessories!$C$6,'Data 3 Accessories'!$D$1:$AM$1,0)+1),INDEX('Data 3 Accessories'!$D$32:$S$44,MATCH(Accessories!$A30,'Data 3 Accessories'!$A$32:$A$44,0),MATCH(Accessories!$C$6,'Data 3 Accessories'!$D$23:$S$23,0)+1))","v":"included in element price; quantity 1 pcs per order plus additional 1 pcs for each 500 m2"},{"$f":"IF(ISNUMBER(SEARCH(\"vertical\",C6)),ROUNDUP(SUM('Qbiss One elements'!S26,'Longitudinal corner elements '!W26,'Transversal corner elements'!W26,'U-corner elements'!X26,'Curved elements'!T26)/500,0),\"not defined\")","v":0},{"$f":"VLOOKUP(A30,'Data 3 Accessories'!$A$8:$C$44,2,FALSE)","v":"pcs"},null,"pcs"]
[{"$f":"IF(ISNUMBER(SEARCH(\"horizontal\",'Qbiss One elements'!$M$10)),'Data 3 Accessories'!A15,IF(ISNUMBER(SEARCH(\"vertical\",'Qbiss One elements'!$M$10)),'Data 3 Accessories'!A39,\"\"))","v":"Sealing_tape_5x10"},null,null,{"$f":"IF(ISNUMBER(SEARCH(\"horizontal\",$C$6)),INDEX('Data 3 Accessories'!$D$8:$AM$21,MATCH(Accessories!$A31,'Data 3 Accessories'!$A$8:$A$21,0),MATCH(Accessories!$C$6,'Data 3 Accessories'!$D$1:$AM$1,0)),INDEX('Data 3 Accessories'!$D$32:$S$45,MATCH(Accessories!$A31,'Data 3 Accessories'!$A$32:$A$45,0),MATCH(Accessories!$C$6,'Data 3 Accessories'!$D$23:$S$23,0)))","v":"T060\n30006985"},{"$f":"IF(ISNUMBER(SEARCH(\"horizontal\",$C$6)),INDEX('Data 3 Accessories'!$D$8:$AM$21,MATCH(Accessories!$A31,'Data 3 Accessories'!$A$8:$A$21,0),MATCH(Accessories!$C$6,'Data 3 Accessories'!$D$1:$AM$1,0)+1),INDEX('Data 3 Accessories'!$D$32:$S$44,MATCH(Accessories!$A31,'Data 3 Accessories'!$A$32:$A$44,0),MATCH(Accessories!$C$6,'Data 3 Accessories'!$D$23:$S$23,0)+1))","v":"NOT included in element price; quantity as per details"},"Not defined",{"$f":"VLOOKUP(A31,'Data 3 Accessories'!$A$8:$C$44,2,FALSE)","v":"m"},null,"m"]
[{"$f":"IF(ISNUMBER(SEARCH(\"horizontal\",'Qbiss One elements'!$M$10)),'Data 3 Accessories'!A16,IF(ISNUMBER(SEARCH(\"vertical\",'Qbiss One elements'!$M$10)),'Data 3 Accessories'!A40,\"\"))","v":"EPDM_Cube_Gasket_26x26x30"},null,null,{"$f":"IF(ISNUMBER(SEARCH(\"horizontal\",$C$6)),INDEX('Data 3 Accessories'!$D$8:$AM$21,MATCH(Accessories!$A32,'Data 3 Accessories'!$A$8:$A$21,0),MATCH(Accessories!$C$6,'Data 3 Accessories'!$D$1:$AM$1,0)),INDEX('Data 3 Accessories'!$D$32:$S$45,MATCH(Accessories!$A32,'Data 3 Accessories'!$A$32:$A$45,0),MATCH(Accessories!$C$6,'Data 3 Accessories'!$D$23:$S$23,0)))","v":"not required"},{"$f":"IF(ISNUMBER(SEARCH(\"horizontal\",$C$6)),INDEX('Data 3 Accessories'!$D$8:$AM$21,MATCH(Accessories!$A32,'Data 3 Accessories'!$A$8:$A$21,0),MATCH(Accessories!$C$6,'Data 3 Accessories'!$D$1:$AM$1,0)+1),INDEX('Data 3 Accessories'!$D$32:$S$44,MATCH(Accessories!$A32,'Data 3 Accessories'!$A$32:$A$44,0),MATCH(Accessories!$C$6,'Data 3 Accessories'!$D$23:$S$23,0)+1))","v":"NOT included in element price; quantity as per details"},"Not defined",{"$f":"VLOOKUP(A32,'Data 3 Accessories'!$A$8:$C$44,2,FALSE)","v":"pcs"},null,"pcs"]
[{"$f":"IF(ISNUMBER(SEARCH(\"horizontal\",'Qbiss One elements'!$M$10)),'Data 3 Accessories'!A17,IF(ISNUMBER(SEARCH(\"vertical\",'Qbiss One elements'!$M$10)),'Data 3 Accessories'!A41,\"\"))","v":"Load_Bearing_Fixing_Plate"},null,null,{"$f":"IF(ISNUMBER(SEARCH(\"horizontal\",$C$6)),INDEX('Data 3 Accessories'!$D$8:$AM$21,MATCH(Accessories!$A33,'Data 3 Accessories'!$A$8:$A$21,0),MATCH(Accessories!$C$6,'Data 3 Accessories'!$D$1:$AM$1,0)),INDEX('Data 3 Accessories'!$D$32:$S$45,MATCH(Accessories!$A33,'Data 3 Accessories'!$A$32:$A$45,0),MATCH(Accessories!$C$6,'Data 3 Accessories'!$D$23:$S$23,0)))","v":"N637\n30033030"},{"$f":"IF(ISNUMBER(SEARCH(\"horizontal\",$C$6)),INDEX('Data 3 Accessories'!$D$8:$AM$21,MATCH(Accessories!$A33,'Data 3 Accessories'!$A$8:$A$21,0),MATCH(Accessories!$C$6,'Data 3 Accessories'!$D$1:$AM$1,0)+1),INDEX('Data 3 Accessories'!$D$32:$S$44,MATCH(Accessories!$A33,'Data 3 Accessories'!$A$32:$A$44,0),MATCH(Accessories!$C$6,'Data 3 Accessories'!$D$23:$S$23,0)+1))","v":"Included in element price, depending on type of element, any additional elements required for i.e. connection to other facade system not included, quantity subject to design information"},"Not defined",{"$f":"VLOOKUP(A33,'Data 3 Accessories'!$A$8:$C$44,2,FALSE)","v":"pcs"},null,"pcs"]
[{"$f":"IF(ISNUMBER(SEARCH(\"horizontal\",'Qbiss One elements'!$M$10)),'Data 3 Accessories'!A18,IF(ISNUMBER(SEARCH(\"vertical\",'Qbiss One elements'!$M$10)),'Data 3 Accessories'!A42,\"\"))","v":"Seaming_tool_recomended"},null,null,{"$f":"IF(ISNUMBER(SEARCH(\"horizontal\",$C$6)),INDEX('Data 3 Accessories'!$D$8:$AM$21,MATCH(Accessories!$A34,'Data 3 Accessories'!$A$8:$A$21,0),MATCH(Accessories!$C$6,'Data 3 Accessories'!$D$1:$AM$1,0)),INDEX('Data 3 Accessories'!$D$32:$S$45,MATCH(Accessories!$A34,'Data 3 Accessories'!$A$32:$A$45,0),MATCH(Accessories!$C$6,'Data 3 Accessories'!$D$23:$S$23,0)))","v":"PS 130\n30029421"},{"$f":"IF(ISNUMBER(SEARCH(\"horizontal\",$C$6)),INDEX('Data 3 Accessories'!$D$8:$AM$21,MATCH(Accessories!$A34,'Data 3 Accessories'!$A$8:$A$21,0),MATCH(Accessories!$C$6,'Data 3 Accessories'!$D$1:$AM$1,0)+1),INDEX('Data 3 Accessories'!$D$32:$S$44,MATCH(Accessories!$A34,'Data 3 Accessories'!$A$32:$A$44,0),MATCH(Accessories!$C$6,'Data 3 Accessories'!$D$23:$S$23,0)+1))","v":"NOT included in element price; quantity as required by installation company"},"Not defined",{"$f":"VLOOKUP(A34,'Data 3 Accessories'!$A$8:$C$44,2,FALSE)","v":"pcs"},null,"pcs",null,null,null,null,null,null,null,null,null,null,null,null,null,"OPTION Z - Fixing through longitudinal joint of Qbiss One element"]
[{"$f":"IF(ISNUMBER(SEARCH(\"horizontal\",'Qbiss One elements'!$M$10)),'Data 3 Accessories'!A19,IF(ISNUMBER(SEARCH(\"vertical\",'Qbiss One elements'!$M$10)),'Data 3 Accessories'!A43,\"\"))","v":"Mastic_seal_MS_polymer_based_or_PUR_based_required_for_EPDM_cube_and_internal_joint_sealing"},null,null,{"$f":"IF(ISNUMBER(SEARCH(\"horizontal\",$C$6)),INDEX('Data 3 Accessories'!$D$8:$AM$21,MATCH(Accessories!$A35,'Data 3 Accessories'!$A$8:$A$21,0),MATCH(Accessories!$C$6,'Data 3 Accessories'!$D$1:$AM$1,0)),INDEX('Data 3 Accessories'!$D$32:$S$45,MATCH(Accessories!$A35,'Data 3 Accessories'!$A$32:$A$45,0),MATCH(Accessories!$C$6,'Data 3 Accessories'!$D$23:$S$23,0)))","v":"Mastic seal MS polymer TEKA FLEX MS15 black 600ml          SAP:30031854\n"},{"$f":"IF(ISNUMBER(SEARCH(\"horizontal\",$C$6)),INDEX('Data 3 Accessories'!$D$8:$AM$21,MATCH(Accessories!$A35,'Data 3 Accessories'!$A$8:$A$21,0),MATCH(Accessories!$C$6,'Data 3 Accessories'!$D$1:$AM$1,0)+1),INDEX('Data 3 Accessories'!$D$32:$S$44,MATCH(Accessories!$A35,'Data 3 Accessories'!$A$32:$A$44,0),MATCH(Accessories!$C$6,'Data 3 Accessories'!$D$23:$S$23,0)+1))","v":"NOT included in element price; quantity as required by installation company"},"Not defined",{"$f":"VLOOKUP(A35,'Data 3 Accessories'!$A$8:$C$44,2,FALSE)","v":"pcs"},null,"pcs",null,null,null,null,null,null,null,null,null,null,null,null,null,"Self-drilling screw",null,null,null,"Self-tapping screw"]
[{"$f":"IF(ISNUMBER(SEARCH(\"horizontal\",'Qbiss One elements'!$M$10)),'Data 3 Accessories'!A20,IF(ISNUMBER(SEARCH(\"vertical\",'Qbiss One elements'!$M$10)),'Data 3 Accessories'!A44,\"\"))","v":"EPDM_Gasket_Cube_for_BF-BF_joint"},null,null,{"$f":"IF(ISNUMBER(SEARCH(\"horizontal\",$C$6)),INDEX('Data 3 Accessories'!$D$8:$AM$21,MATCH(Accessories!$A36,'Data 3 Accessories'!$A$8:$A$21,0),MATCH(Accessories!$C$6,'Data 3 Accessories'!$D$1:$AM$1,0)),INDEX('Data 3 Accessories'!$D$32:$S$45,MATCH(Accessories!$A36,'Data 3 Accessories'!$A$32:$A$45,0),MATCH(Accessories!$C$6,'Data 3 Accessories'!$D$23:$S$23,0)))","v":"SAP: 30018981 "},{"$f":"IF(ISNUMBER(SEARCH(\"horizontal\",$C$6)),INDEX('Data 3 Accessories'!$D$8:$AM$21,MATCH(Accessories!$A36,'Data 3 Accessories'!$A$8:$A$21,0),MATCH(Accessories!$C$6,'Data 3 Accessories'!$D$1:$AM$1,0)+1),INDEX('Data 3 Accessories'!$D$32:$S$44,MATCH(Accessories!$A36,'Data 3 Accessories'!$A$32:$A$44,0),MATCH(Accessories!$C$6,'Data 3 Accessories'!$D$23:$S$23,0)+1))","v":"Included in element price"},"Not defined",{"$f":"VLOOKUP(A36,'Data 3 Accessories'!$A$8:$C$44,2,FALSE)","v":"pcs"},null,"pcs"]
[{"$f":"IF(ISNUMBER(SEARCH(\"horizontal\",'Qbiss One elements'!$M$10)),'Data 3 Accessories'!A21,IF(ISNUMBER(SEARCH(\"vertical\",'Qbiss One elements'!$M$10)),'Data 3 Accessories'!A45,\"\"))","v":"EMPTY"},null,null,{"$f":"IF(ISNUMBER(SEARCH(\"horizontal\",$C$6)),INDEX('Data 3 Accessories'!$D$8:$AM$21,MATCH(Accessories!$A37,'Data 3 Accessories'!$A$8:$A$21,0),MATCH(Accessories!$C$6,'Data 3 Accessories'!$D$1:$AM$1,0)),INDEX('Data 3 Accessories'!$D$32:$S$45,MATCH(Accessories!$A37,'Data 3 Accessories'!$A$32:$A$45,0),MATCH(Accessories!$C$6,'Data 3 Accessories'!$D$23:$S$23,0)))","v":0},{"$f":"IF(ISNUMBER(SEARCH(\"horizontal\",$C$6)),INDEX('Data 3 Accessories'!$D$8:$AM$21,MATCH(Accessories!$A37,'Data 3 Accessories'!$A$8:$A$21,0),MATCH(Accessories!$C$6,'Data 3 Accessories'!$D$1:$AM$1,0)+1),INDEX('Data 3 Accessories'!$D$32:$S$44,MATCH(Accessories!$A37,'Data 3 Accessories'!$A$32:$A$44,0),MATCH(Accessories!$C$6,'Data 3 Accessories'!$D$23:$S$23,0)+1))","v":{"$error":"#N/A"}},{"$f":"IF(D37=0,\"/\",(F25/4*2+'Qbiss One elements'!C26*2+'Transversal corner elements'!C26*2+'Transversal spliced corner el.'!C26*2+'Longitudinal corner elements '!C26*2+'Longitudinal spliced corner el.'!C26*2+'U-corner elements'!C26*2+'Curved elements'!C26*2+'3D diagonal-cut corner elements'!C26*2+'3D edge-cut corner elements'!C26*2))","v":"/"},"pcs",null,"pcs"]
["* Estimated NET quantity. Values are estimated. Designer needs to calculate values according to project requirements."]
[]
[]
[]
[]
[]
[null,null,null,null,null,null,null,null,null,null,null,null,null,null,null,null,null,null,null,null,null,null,"3 Thickness of substructure: Choose thickness of steel substructure."]
[null,null,null,null,null,null,null,null,null,null,null,null,null,null,null,null,null,null,null,null,null,null,"4 Thickness of Qbiss One element: Based on your selection, you will get appropriate fixing screw."]

{"sheet":"Fixing material data","index":11,"n_rows":319,"n_cols":13,"rows_kept":319,"cut":false,"hidden":true,"merged":[[0,2,0,8]]}
[null,null,"FIXING MATERIAL"]
[]
[null,"Thickness_of_substructure","Thickness_Of_Qbiss_One","Type_of_fixation","Thickness_of_substructure_tapping","Fixing_method"]
[]
[null,1.5,80,"Self-drilling","not relevant","X - through joint"]
[null,1.75,100,"Self-tapping",null,"Y - through element"]
[null,2,120,null,null,"Z - through longitudinal joint"]
[null,2.5,133]
[null,3,150]
[null,4,172]
[null,5,200]
[null,6,220]
[null,8,240]
[null,10,250]
[]
[null,"SELF-Drilling",null,null,null,null,null,null,"SELF-tapping"]
[null,"Thickness_of_Qbiss_One_element_data","Thickness_of_substructure_data","Code_of_fixing_screw_data","Name_of_fixing_screw_data","TYP of fixing",null,null,"Thickness_of_Qbiss_One_element_data_tapping","Thickness_of_substructure_data_tapping","Code_of_fixing_screw_data_tapping","Name_of_fixing_screw_data_tapping","TYP of fixing"]
[{"$f":"C18&B18&F18","v":"1,580X - through joint"},80,1.5,"30023341","EJOT JT3-6-5,5x 70","X - through joint"]
[{"$f":"C19&B19&F19","v":"1,7580X - through joint"},80,1.75,"30023341","EJOT JT3-6-5,5x 70","X - through joint",null,{"$f":"J19&I19&M19","v":"not relevant80X - through joint"},80,"not relevant","30025142","EJOT JZ3 6,3x 64","X - through joint"]
["280X - through joint",80,2,"30023341","EJOT JT3-6-5,5x 70","X - through joint",null,{"$f":"J20&I20&M20","v":"not relevant100X - through joint"},100,"not relevant","30025146","EJOT JZ3 6,3x 90","X - through joint"]
["2,580X - through joint",80,2.5,"30023341","EJOT JT3-6-5,5x 70","X - through joint",null,"not relevant120X - through joint",120,"not relevant","30025247","EJOT JZ3 6,3x115","X - through joint"]
["380X - through joint",80,3,"30023341","EJOT JT3-6-5,5x 70","X - through joint",null,"not relevant133X - through joint",133,"not relevant","30025136","EJOT JZ3 6,3x125","X - through joint"]
["480X - through joint",80,4,"30023341","EJOT JT3-6-5,5x 70","X - through joint",null,"not relevant150X - through joint",150,"not relevant","30025138","EJOT JZ3 6,3x150","X - through joint"]
["580X - through joint",80,5,"30023751","EJOT JT3-12-5,5x 78","X - through joint",null,"not relevant172X - through joint",172,"not relevant","30025140","EJOT JZ3 6,3x175","X - through joint"]
["680X - through joint",80,6,"30023751","EJOT JT3-12-5,5x 78","X - through joint",null,"not relevant200X - through joint",200,"not relevant","30025262","EJOT JZ3 6,3x200","X - through joint"]
["880X - through joint",80,8,"30023751","EJOT JT3-12-5,5x 78","X - through joint",null,"not relevant220X - through joint",220,"not relevant","30028705","EJOT JZ3 6,3x220","X - through joint"]
["1080X - through joint",80,10,"30023751","EJOT JT3-12-5,5x 78","X - through joint",null,"not relevant240X - through joint",240,"not relevant","30028705","EJOT JZ3 6,3x220","X - through joint"]
["1,5100X - through joint",100,1.5,"30023413","EJOT JT3-6-5,5x 90","X - through joint",null,"not relevant250X - through joint",250,"not relevant","30028705","EJOT JZ3 6,3x220","X - through joint"]
["1,75100X - through joint",100,1.75,"30023413","EJOT JT3-6-5,5x 90","X - through joint"]
["2100X - through joint",100,2,"30023413","EJOT JT3-6-5,5x 90","X - through joint"]
["2,5100X - through joint",100,2.5,"30023413","EJOT JT3-6-5,5x 90","X - through joint",null,{"$f":"J31&I31&M31","v":"not relevant80Y - through element"},80,"not relevant","30025246","SCREW JZ3 6,3x100 E19","Y - through element"]
["3100X - through joint",100,3,"30023413","EJOT JT3-6-5,5x 90","X - through joint",null,{"$f":"J32&I32&M32","v":"not relevant100Y - through element"},100,"not relevant","30025137","SCREW JZ3 6,3x125 E19","Y - through element"]
["4100X - through joint",100,4,"30023413","EJOT JT3-6-5,5x 90","X - through joint",null,"not relevant120Y - through element",120,"not relevant","30025139","SCREW JZ3 6,3x150 E19","Y - through element"]
["5100X - through joint",100,5,"30023757","EJOT JT3-12-5,5x 98","X - through joint",null,"not relevant133Y - through element",133,"not relevant","30024291","SCREW JZ3 6,3x175 E19","Y - through element"]
["6100X - through joint",100,6,"30023757","EJOT JT3-12-5,5x 98","X - through joint",null,"not relevant150Y - through element",150,"not relevant","30024291","SCREW JZ3 6,3x175 E19","Y - through element"]
["8100X - through joint",100,8,"30023757","EJOT JT3-12-5,5x 98","X - through joint",null,"not relevant172Y - through element",172,"not relevant","30025261","SCREW JZ3 6,3x200 E19","Y - through element"]
["10100X - through joint",100,10,"30023757","EJOT JT3-12-5,5x 98","X - through joint",null,"not relevant200Y - through element",200,"not relevant","30025935","SCREW JZ3 6,3x220 E19","Y - through element"]
["1,5120X - through joint",120,1.5,"30023414","EJOT JT3-6-5,5x110","X - through joint",null,{"$f":"J38&I38&M38","v":"not relevant220Y - through element"},220,"not relevant","30025333","SCREW JZ3 6,3x270 E19","Y - through element"]
["1,75120X - through joint",120,1.75,"30023414","EJOT JT3-6-5,5x110","X - through joint",null,{"$f":"J39&I39&M39","v":"not relevant240Y - through element"},240,"not relevant","30025333","SCREW JZ3 6,3x270 E19","Y - through element"]
["2120X - through joint",120,2,"30023414","EJOT JT3-6-5,5x110","X - through joint",null,{"$f":"J40&I40&M40","v":"not relevant250Y - through element"},250,"not relevant","30025333","SCREW JZ3 6,3x270 E19","Y - through element"]
["2,5120X - through joint",120,2.5,"30023414","EJOT JT3-6-5,5x110","X - through joint"]
["3120X - through joint",120,3,"30023414","EJOT JT3-6-5,5x110","X - through joint",null,{"$f":"J42&I42&M42","v":"not relevant80Z - through longitudinal joint"},80,"not relevant","30024250","SCREW JZ3 6,3x 80 E19","Z - through longitudinal joint"]
["4120X - through joint",120,4,"30023414","EJOT JT3-6-5,5x110","X - through joint",null,{"$f":"J43&I43&M43","v":"not relevant100Z - through longitudinal joint"},100,"not relevant","30025145","SCREW JZ3 6,3x 90 E19","Z - through longitudinal joint"]
["5120X - through joint",120,5,"30023591","EJOT JT3-12-5,5x118","X - through joint",null,"not relevant120Z - through longitudinal joint",120,"not relevant","30025248","SCREW JZ3 6,3x115 E19","Z - through longitudinal joint"]
["6120X - through joint",120,6,"30023591","EJOT JT3-12-5,5x118","X - through joint",null,"not relevant133Z - through longitudinal joint",133,"not relevant","30025137","SCREW JZ3 6,3x125 E19","Z - through longitudinal joint"]
["8120X - through joint",120,8,"30023591","EJOT JT3-12-5,5x118","X - through joint",null,"not relevant150Z - through longitudinal joint",150,"not relevant","30025139","SCREW JZ3 6,3x150 E19","Z - through longitudinal joint"]
["10120X - through joint",120,10,"30023591","EJOT JT3-12-5,5x118","X - through joint",null,"not relevant172Z - through longitudinal joint",172,"not relevant","30024291","SCREW JZ3 6,3x175 E19","Z - through longitudinal joint"]
["1,5133X - through joint",133,1.5,"30023416","EJOT JT3-6-5,5x130","X - through joint",null,"not relevant200Z - through longitudinal joint",200,"not relevant","30025261","SCREW JZ3 6,3x200 E19","Z - through longitudinal joint"]
["1,75133X - through joint",133,1.75,"30023416","EJOT JT3-6-5,5x130","X - through joint",null,"not relevant220Z - through longitudinal joint",220,"not relevant","30025935","SCREW JZ3 6,3x220 E19","Z - through longitudinal joint"]
["2133X - through joint",133,2,"30023416","EJOT JT3-6-5,5x130","X - through joint",null,"not relevant240Z - through longitudinal joint",240,"not relevant","30025333","SCREW JZ3 6,3x270 E19","Z - through longitudinal joint"]
["2,5133X - through joint",133,2.5,"30023416","EJOT JT3-6-5,5x130","X - through joint",null,"not relevant250Z - through longitudinal joint",250,"not relevant","30025333","SCREW JZ3 6,3x270 E19","Z - through longitudinal joint"]
["3133X - through joint",133,3,"30023416","EJOT JT3-6-5,5x130","X - through joint"]
["4133X - through joint",133,4,"30023416","EJOT JT3-6-5,5x130","X - through joint"]
["5133X - through joint",133,5,"30023592","EJOT JT3-12-5,5x138","X - through joint"]
["6133X - through joint",133,6,"30023592","EJOT JT3-12-5,5x138","X - through joint"]
["8133X - through joint",133,8,"30023592","EJOT JT3-12-5,5x138","X - through joint"]
["10133X - through joint",133,10,"30023592","EJOT JT3-12-5,5x138","X - through joint"]
["1,5150X - through joint",150,1.5,"30023416","EJOT JT3-6-5,5x130","X - through joint"]
["1,75150X - through joint",150,1.75,"30023416","EJOT JT3-6-5,5x130","X - through joint"]
["2150X - through joint",150,2,"30023416","EJOT JT3-6-5,5x130","X - through joint"]
["2,5150X - through joint",150,2.5,"30023416","EJOT JT3-6-5,5x130","X - through joint"]
["3150X - through joint",150,3,"30023416","EJOT JT3-6-5,5x130","X - through joint"]
["4150X - through joint",150,4,"30023416","EJOT JT3-6-5,5x130","X - through joint"]
["5150X - through joint",150,5,"30023592","EJOT JT3-12-5,5x138","X - through joint"]
["6150X - through joint",150,6,"30023592","EJOT JT3-12-5,5x138","X - through joint"]
["8150X - through joint",150,8,"30023592","EJOT JT3-12-5,5x138","X - through joint"]
["10150X - through joint",150,10,"30023592","EJOT JT3-12-5,5x138","X - through joint"]
["1,5172X - through joint",172,1.5,"30023468","EJOT JT3-6-5,5x150","X - through joint"]
["1,75172X - through joint",172,1.75,"30023468","EJOT JT3-6-5,5x150","X - through joint"]
["2172X - through joint",172,2,"30023468","EJOT JT3-6-5,5x150","X - through joint"]
["2,5172X - through joint",172,2.5,"30023468","EJOT JT3-6-5,5x150","X - through joint"]
["3172X - through joint",172,3,"30023468","EJOT JT3-6-5,5x150","X - through joint"]
["4172X - through joint",172,4,"30023468","EJOT JT3-6-5,5x150","X - through joint"]
["5172X - through joint",172,5,"30023410","EJOT JT3-12-5,5x158","X - through joint"]
["6172X - through joint",172,6,"30023410","EJOT JT3-12-5,5x158","X - through joint"]
["8172X - through joint",172,8,"30023410","EJOT JT3-12-5,5x158","X - through joint"]
["10172X - through joint",172,10,"30023410","EJOT JT3-12-5,5x158","X - through joint"]
["1,5200X - through joint",200,1.5,"30023607","EJOT JT3-6-5,5x190","X - through joint"]
["1,75200X - through joint",200,1.75,"30023607","EJOT JT3-6-5,5x190","X - through joint"]
["2200X - through joint",200,2,"30023607","EJOT JT3-6-5,5x190","X - through joint"]
["2,5200X - through joint",200,2.5,"30023607","EJOT JT3-6-5,5x190","X - through joint"]
["3200X - through joint",200,3,"30023607","EJOT JT3-6-5,5x190","X - through joint"]
[{"$f":"C83&B83&F83","v":"4200X - through joint"},200,4,"30023607","EJOT JT3-6-5,5x190","X - through joint"]
["5200X - through joint",200,5,"30023758","EJOT JT3-12-5,5x198","X - through joint"]
["6200X - through joint",200,6,"30023758","EJOT JT3-12-5,5x198","X - through joint"]
["8200X - through joint",200,8,"30023758","EJOT JT3-12-5,5x198","X - through joint"]
["10200X - through joint",200,10,"30023758","EJOT JT3-12-5,5x198","X - through joint"]
["1,5220X - through joint",220,1.5,"30023820","EJOT JT3-D-6H-5,5/6,3 x 237","X - through joint"]
["1,75220X - through joint",220,1.75,"30023820","EJOT JT3-D-6H-5,5/6,3 x 237","X - through joint"]
["2220X - through joint",220,2,"30023820","EJOT JT3-D-6H-5,5/6,3 x 237","X - through joint"]
["2,5220X - through joint",220,2.5,"30023820","EJOT JT3-D-6H-5,5/6,3 x 237","X - through joint"]
["3220X - through joint",220,3,"30023820","EJOT JT3-D-6H-5,5/6,3 x 237","X - through joint"]
["4220X - through joint",220,4,"30023820","EJOT JT3-D-6H-5,5/6,3 x 237","X - through joint"]
["5220X - through joint",220,5,"30024059","EJOT JT3-D-12H-5,5/6,6x245","X - through joint"]
["6220X - through joint",220,6,"30024059","EJOT JT3-D-12H-5,5/6,6x245","X - through joint"]
["8220X - through joint",220,8,"30024059","EJOT JT3-D-12H-5,5/6,6x245","X - through joint"]
["10220X - through joint",220,10,"30024059","EJOT JT3-D-12H-5,5/6,6x245","X - through joint"]
["1,5240X - through joint",240,1.5,"30023820","EJOT JT3-D-6H-5,5/6,3 x 237","X - through joint"]
["1,75240X - through joint",240,1.75,"30023820","EJOT JT3-D-6H-5,5/6,3 x 237","X - through joint"]
["2240X - through joint",240,2,"30023820","EJOT JT3-D-6H-5,5/6,3 x 237","X - through joint"]
["2,5240X - through joint",240,2.5,"30023820","EJOT JT3-D-6H-5,5/6,3 x 237","X - through joint"]
["3240X - through joint",240,3,"30023820","EJOT JT3-D-6H-5,5/6,3 x 237","X - through joint"]
["4240X - through joint",240,4,"30023820","EJOT JT3-D-6H-5,5/6,3 x 237","X - through joint"]
["5240X - through joint",240,5,"30024059","EJOT JT3-D-12H-5,5/6,6x245","X - through joint"]
["6240X - through joint",240,6,"30024059","EJOT JT3-D-12H-5,5/6,6x245","X - through joint"]
["8240X - through joint",240,8,"30024059","EJOT JT3-D-12H-5,5/6,6x245","X - through joint"]
["10240X - through joint",240,10,"30024059","EJOT JT3-D-12H-5,5/6,6x245","X - through joint"]
["1,5250X - through joint",250,1.5,"30023820","EJOT JT3-D-6H-5,5/6,3 x 237","X - through joint"]
["1,75250X - through joint",250,1.75,"30023820","EJOT JT3-D-6H-5,5/6,3 x 237","X - through joint"]
["2250X - through joint",250,2,"30023820","EJOT JT3-D-6H-5,5/6,3 x 237","X - through joint"]
["2,5250X - through joint",250,2.5,"30023820","EJOT JT3-D-6H-5,5/6,3 x 237","X - through joint"]
["3250X - through joint",250,3,"30023820","EJOT JT3-D-6H-5,5/6,3 x 237","X - through joint"]
["4250X - through joint",250,4,"30023820","EJOT JT3-D-6H-5,5/6,3 x 237","X - through joint"]
["5250X - through joint",250,5,"30024059","EJOT JT3-D-12H-5,5/6,6x245","X - through joint"]
["6250X - through joint",250,6,"30024059","EJOT JT3-D-12H-5,5/6,6x245","X - through joint"]
["8250X - through joint",250,8,"30024059","EJOT JT3-D-12H-5,5/6,6x245","X - through joint"]
["10250X - through joint",250,10,"30024059","EJOT JT3-D-12H-5,5/6,6x245","X - through joint"]
[]
[{"$f":"C119&B119&F119","v":"1,580Y - through element"},80,1.5,{"$f":"VLOOKUP(B119,$H$119:$M$130,IF(C119>4,4,2),FALSE)","v":"30024462"},{"$f":"VLOOKUP(B119,$H$119:$M$130,IF(C119>4,5,3),FALSE)","v":"EJOT JT3-D-6H-5,5/6,3x127 E19"},"Y - through element",null,null,"Tip pritrjevanja Y (čez panel)"]
[{"$f":"C120&B120&F120","v":"1,7580Y - through element"},80,1.75,{"$f":"VLOOKUP(B120,$H$119:$M$130,IF(C120>4,4,2),FALSE)","v":"30024462"},{"$f":"VLOOKUP(B120,$H$119:$M$130,IF(C120>4,5,3),FALSE)","v":"EJOT JT3-D-6H-5,5/6,3x127 E19"},"Y - through element",null,null,"Do debeline 4mm",null,"nad debelino 4mm"]
["280Y - through element",80,2,"30024462","EJOT JT3-D-6H-5,5/6,3x127 E19","Y - through element",null,80,"30024462","EJOT JT3-D-6H-5,5/6,3x127 E19","30024463","EJOT JT3-D-12H-5,5/6,3x135 E19"]
["2,580Y - through element",80,2.5,"30024462","EJOT JT3-D-6H-5,5/6,3x127 E19","Y - through element",null,100,"30024462","EJOT JT3-D-6H-5,5/6,3x127 E19","30027301","EJOT JT3-D-12H-5,5/6,3x155 E19"]
["380Y - through element",80,3,"30024462","EJOT JT3-D-6H-5,5/6,3x127 E19","Y - through element",null,120,"30024990","EJOT JT3-D-6H-5,5/6,3x167 E19","30027306","EJOT JT3-D-12H-5,5/6,3x175 E19"]
["480Y - through element",80,4,"30024462","EJOT JT3-D-6H-5,5/6,3x127 E19","Y - through element",null,133,"30024990","EJOT JT3-D-6H-5,5/6,3x167 E19","30027306","EJOT JT3-D-12H-5,5/6,3x175 E19"]
["580Y - through element",80,5,"30024463","EJOT JT3-D-12H-5,5/6,3x135 E19","Y - through element",null,150,"30011562","EJOT JT3-D-6H-5,5/6,3x197 E19","30027305","EJOT JT3-D-12H-5,5/6,3x195 E19"]
["680Y - through element",80,6,"30024463","EJOT JT3-D-12H-5,5/6,3x135 E19","Y - through element",null,172,"30023821","EJOT JT3-D-6H-5,5/6,3x237 E19","30024060","EJOT JT3-D-12H-5,5/6,3x245 E19"]
["880Y - through element",80,8,"30024463","EJOT JT3-D-12H-5,5/6,3x135 E19","Y - through element",null,200,"30023821","EJOT JT3-D-6H-5,5/6,3x237 E19","30024060","EJOT JT3-D-12H-5,5/6,3x245 E19"]
["1080Y - through element",80,10,"30024463","EJOT JT3-D-12H-5,5/6,3x135 E19","Y - through element",null,220,"30027310","EJOT JT3-D-6H-5,5/6,3x267 E19","30027304","EJOT JT3-D-12H-5,5/6,3x275 E19"]
["1,5100Y - through element",100,1.5,"30024462","EJOT JT3-D-6H-5,5/6,3x127 E19","Y - through element",null,240,"30027310","EJOT JT3-D-6H-5,5/6,3x267 E19","30027304","EJOT JT3-D-12H-5,5/6,3x275 E19"]
["1,75100Y - through element",100,1.75,"30024462","EJOT JT3-D-6H-5,5/6,3x127 E19","Y - through element",null,250,"xx","xx",30024102,"EJOT JT3-D-12H-5,5/6,3x300 E19"]
["2100Y - through element",100,2,"30024462","EJOT JT3-D-6H-5,5/6,3x127 E19","Y - through element"]
["2,5100Y - through element",100,2.5,"30024462","EJOT JT3-D-6H-5,5/6,3x127 E19","Y - through element"]
["3100Y - through element",100,3,"30024462","EJOT JT3-D-6H-5,5/6,3x127 E19","Y - through element"]
["4100Y - through element",100,4,"30024462","EJOT JT3-D-6H-5,5/6,3x127 E19","Y - through element"]
["5100Y - through element",100,5,"30027301","EJOT JT3-D-12H-5,5/6,3x155 E19","Y - through element"]
["6100Y - through element",100,6,"30027301","EJOT JT3-D-12H-5,5/6,3x155 E19","Y - through element"]
["8100Y - through element",100,8,"30027301","EJOT JT3-D-12H-5,5/6,3x155 E19","Y - through element"]
["10100Y - through element",100,10,"30027301","EJOT JT3-D-12H-5,5/6,3x155 E19","Y - through element"]
["1,5120Y - through element",120,1.5,"30024990","EJOT JT3-D-6H-5,5/6,3x167 E19","Y - through element"]
["1,75120Y - through element",120,1.75,"30024990","EJOT JT3-D-6H-5,5/6,3x167 E19","Y - through element"]
["2120Y - through element",120,2,"30024990","EJOT JT3-D-6H-5,5/6,3x167 E19","Y - through element"]
["2,5120Y - through element",120,2.5,"30024990","EJOT JT3-D-6H-5,5/6,3x167 E19","Y - through element"]
["3120Y - through element",120,3,"30024990","EJOT JT3-D-6H-5,5/6,3x167 E19","Y - through element"]
["4120Y - through element",120,4,"30024990","EJOT JT3-D-6H-5,5/6,3x167 E19","Y - through element"]
["5120Y - through element",120,5,"30027306","EJOT JT3-D-12H-5,5/6,3x175 E19","Y - through element"]
["6120Y - through element",120,6,"30027306","EJOT JT3-D-12H-5,5/6,3x175 E19","Y - through element"]
["8120Y - through element",120,8,"30027306","EJOT JT3-D-12H-5,5/6,3x175 E19","Y - through element"]
["10120Y - through element",120,10,"30027306","EJOT JT3-D-12H-5,5/6,3x175 E19","Y - through element"]
["1,5133Y - through element",133,1.5,"30024990","EJOT JT3-D-6H-5,5/6,3x167 E19","Y - through element"]
["1,75133Y - through element",133,1.75,"30024990","EJOT JT3-D-6H-5,5/6,3x167 E19","Y - through element"]
["2133Y - through element",133,2,"30024990","EJOT JT3-D-6H-5,5/6,3x167 E19","Y - through element"]
["2,5133Y - through element",133,2.5,"30024990","EJOT JT3-D-6H-5,5/6,3x167 E19","Y - through element"]
["3133Y - through element",133,3,"30024990","EJOT JT3-D-6H-5,5/6,3x167 E19","Y - through element"]
["4133Y - through element",133,4,"30024990","EJOT JT3-D-6H-5,5/6,3x167 E19","Y - through element"]
["5133Y - through element",133,5,"30027306","EJOT JT3-D-12H-5,5/6,3x175 E19","Y - through element"]
["6133Y - through element",133,6,"30027306","EJOT JT3-D-12H-5,5/6,3x175 E19","Y - through element"]
["8133Y - through element",133,8,"30027306","EJOT JT3-D-12H-5,5/6,3x175 E19","Y - through element"]
["10133Y - through element",133,10,"30027306","EJOT JT3-D-12H-5,5/6,3x175 E19","Y - through element"]
["1,5150Y - through element",150,1.5,"30011562","EJOT JT3-D-6H-5,5/6,3x197 E19","Y - through element"]
["1,75150Y - through element",150,1.75,"30011562","EJOT JT3-D-6H-5,5/6,3x197 E19","Y - through element"]
["2150Y - through element",150,2,"30011562","EJOT JT3-D-6H-5,5/6,3x197 E19","Y - through element"]
["2,5150Y - through element",150,2.5,"30011562","EJOT JT3-D-6H-5,5/6,3x197 E19","Y - through element"]
["3150Y - through element",150,3,"30011562","EJOT JT3-D-6H-5,5/6,3x197 E19","Y - through element"]
["4150Y - through element",150,4,"30011562","EJOT JT3-D-6H-5,5/6,3x197 E19","Y - through element"]
["5150Y - through element",150,5,"30027305","EJOT JT3-D-12H-5,5/6,3x195 E19","Y - through element"]
["6150Y - through element",150,6,"30027305","EJOT JT3-D-12H-5,5/6,3x195 E19","Y - through element"]
["8150Y - through element",150,8,"30027305","EJOT JT3-D-12H-5,5/6,3x195 E19","Y - through element"]
["10150Y - through element",150,10,"30027305","EJOT JT3-D-12H-5,5/6,3x195 E19","Y - through element"]
["1,5172Y - through element",172,1.5,"30023821","EJOT JT3-D-6H-5,5/6,3x237 E19","Y - through element"]
["1,75172Y - through element",172,1.75,"30023821","EJOT JT3-D-6H-5,5/6,3x237 E19","Y - through element"]
["2172Y - through element",172,2,"30023821","EJOT JT3-D-6H-5,5/6,3x237 E19","Y - through element"]
["2,5172Y - through element",172,2.5,"30023821","EJOT JT3-D-6H-5,5/6,3x237 E19","Y - through element"]
["3172Y - through element",172,3,"30023821","EJOT JT3-D-6H-5,5/6,3x237 E19","Y - through element"]
["4172Y - through element",172,4,"30023821","EJOT JT3-D-6H-5,5/6,3x237 E19","Y - through element"]
["5172Y - through element",172,5,"30024060","EJOT JT3-D-12H-5,5/6,3x245 E19","Y - through element"]
["6172Y - through element",172,6,"30024060","EJOT JT3-D-12H-5,5/6,3x245 E19","Y - through element"]
["8172Y - through element",172,8,"30024060","EJOT JT3-D-12H-5,5/6,3x245 E19","Y - through element"]
["10172Y - through element",172,10,"30024060","EJOT JT3-D-12H-5,5/6,3x245 E19","Y - through element"]
["1,5200Y - through element",200,1.5,"30023821","EJOT JT3-D-6H-5,5/6,3x237 E19","Y - through element"]
["1,75200Y - through element",200,1.75,"30023821","EJOT JT3-D-6H-5,5/6,3x237 E19","Y - through element"]
["2200Y - through element",200,2,"30023821","EJOT JT3-D-6H-5,5/6,3x237 E19","Y - through element"]
["2,5200Y - through element",200,2.5,"30023821","EJOT JT3-D-6H-5,5/6,3x237 E19","Y - through element"]
["3200Y - through element",200,3,"30023821","EJOT JT3-D-6H-5,5/6,3x237 E19","Y - through element"]
[{"$f":"C184&B184&F184","v":"4200Y - through element"},200,4,{"$f":"VLOOKUP(B184,$H$119:$M$130,IF(C184>4,4,2),FALSE)","v":"30023821"},{"$f":"VLOOKUP(B184,$H$119:$M$130,IF(C184>4,5,3),FALSE)","v":"EJOT JT3-D-6H-5,5/6,3x237 E19"},"Y - through element"]
["5200Y - through element",200,5,"30024060","EJOT JT3-D-12H-5,5/6,3x245 E19","Y - through element"]
["6200Y - through element",200,6,"30024060","EJOT JT3-D-12H-5,5/6,3x245 E19","Y - through element"]
["8200Y - through element",200,8,"30024060","EJOT JT3-D-12H-5,5/6,3x245 E19","Y - through element"]
["10200Y - through element",200,10,"30024060","EJOT JT3-D-12H-5,5/6,3x245 E19","Y - through element"]
["1,5220Y - through element",220,1.5,"30027310","EJOT JT3-D-6H-5,5/6,3x267 E19","Y - through element"]
["1,75220Y - through element",220,1.75,"30027310","EJOT JT3-D-6H-5,5/6,3x267 E19","Y - through element"]
["2220Y - through element",220,2,"30027310","EJOT JT3-D-6H-5,5/6,3x267 E19","Y - through element"]
["2,5220Y - through element",220,2.5,"30027310","EJOT JT3-D-6H-5,5/6,3x267 E19","Y - through element"]
["3220Y - through element",220,3,"30027310","EJOT JT3-D-6H-5,5/6,3x267 E19","Y - through element"]
["4220Y - through element",220,4,"30027310","EJOT JT3-D-6H-5,5/6,3x267 E19","Y - through element"]
["5220Y - through element",220,5,"30027304","EJOT JT3-D-12H-5,5/6,3x275 E19","Y - through element"]
["6220Y - through element",220,6,"30027304","EJOT JT3-D-12H-5,5/6,3x275 E19","Y - through element"]
["8220Y - through element",220,8,"30027304","EJOT JT3-D-12H-5,5/6,3x275 E19","Y - through element"]
["10220Y - through element",220,10,"30027304","EJOT JT3-D-12H-5,5/6,3x275 E19","Y - through element"]
["1,5240Y - through element",240,1.5,"30027310","EJOT JT3-D-6H-5,5/6,3x267 E19","Y - through element"]
["1,75240Y - through element",240,1.75,"30027310","EJOT JT3-D-6H-5,5/6,3x267 E19","Y - through element"]
["2240Y - through element",240,2,"30027310","EJOT JT3-D-6H-5,5/6,3x267 E19","Y - through element"]
["2,5240Y - through element",240,2.5,"30027310","EJOT JT3-D-6H-5,5/6,3x267 E19","Y - through element"]
["3240Y - through element",240,3,"30027310","EJOT JT3-D-6H-5,5/6,3x267 E19","Y - through element"]
["4240Y - through element",240,4,"30027310","EJOT JT3-D-6H-5,5/6,3x267 E19","Y - through element"]
["5240Y - through element",240,5,"30027304","EJOT JT3-D-12H-5,5/6,3x275 E19","Y - through element"]
["6240Y - through element",240,6,"30027304","EJOT JT3-D-12H-5,5/6,3x275 E19","Y - through element"]
["8240Y - through element",240,8,"30027304","EJOT JT3-D-12H-5,5/6,3x275 E19","Y - through element"]
["10240Y - through element",240,10,"30027304","EJOT JT3-D-12H-5,5/6,3x275 E19","Y - through element"]
["1,5250Y - through element",250,1.5,"xx","xx","Y - through element"]
["1,75250Y - through element",250,1.75,"xx","xx","Y - through element"]
["2250Y - through element",250,2,"xx","xx","Y - through element"]
["2,5250Y - through element",250,2.5,"xx","xx","Y - through element"]
["3250Y - through element",250,3,"xx","xx","Y - through element"]
["4250Y - through element",250,4,"xx","xx","Y - through element"]
["5250Y - through element",250,5,30024102,"EJOT JT3-D-12H-5,5/6,3x300 E19","Y - through element"]
["6250Y - through element",250,6,30024102,"EJOT JT3-D-12H-5,5/6,3x300 E19","Y - through element"]
["8250Y - through element",250,8,30024102,"EJOT JT3-D-12H-5,5/6,3x300 E19","Y - through element"]
["10250Y - through element",250,10,30024102,"EJOT JT3-D-12H-5,5/6,3x300 E19","Y - through element"]
[]
[{"$f":"C220&B220&F220","v":"1,580Z - through longitudinal joint"},80,1.5,{"$f":"VLOOKUP(B220,$H$224:$M$235,IF(C220>4,4,2),FALSE)","v":"30027331"},{"$f":"VLOOKUP(B220,$H$224:$M$235,IF(C220>4,5,3),FALSE)","v":"SCREW JT3-D-6H-5,5/6,3x 87 E19"},"Z - through longitudinal joint"]
[{"$f":"C221&B221&F221","v":"1,7580Z - through longitudinal joint"},80,1.75,{"$f":"VLOOKUP(B221,$H$224:$M$235,IF(C221>4,4,2),FALSE)","v":"30027331"},{"$f":"VLOOKUP(B221,$H$224:$M$235,IF(C221>4,5,3),FALSE)","v":"SCREW JT3-D-6H-5,5/6,3x 87 E19"},"Z - through longitudinal joint"]
["280Z - through longitudinal joint",80,2,"30027331","SCREW JT3-D-6H-5,5/6,3x 87 E19","Z - through longitudinal joint"]
["2,580Z - through longitudinal joint",80,2.5,"30027331","SCREW JT3-D-6H-5,5/6,3x 87 E19","Z - through longitudinal joint"]
["380Z - through longitudinal joint",80,3,"30027331","SCREW JT3-D-6H-5,5/6,3x 87 E19","Z - through longitudinal joint",null,null,"Tip pritrjevanja Z (v moškem spoju)"]
["480Z - through longitudinal joint",80,4,"30027331","SCREW JT3-D-6H-5,5/6,3x 87 E19","Z - through longitudinal joint",null,null,"Do debeline 4mm",null,"nad debelino 4mm"]
["580Z - through longitudinal joint",80,5,"30027308","EJOT JT3-D-12H-5,5/6,3x 95 E19","Z - through longitudinal joint",null,80,"30027331","SCREW JT3-D-6H-5,5/6,3x 87 E19","30027308","EJOT JT3-D-12H-5,5/6,3x 95 E19"]
["680Z - through longitudinal joint",80,6,"30027308","EJOT JT3-D-12H-5,5/6,3x 95 E19","Z - through longitudinal joint",null,100,"30026964","EJOT JT3-D-6H-5,5/6,3x107 E19","30027307","EJOT JT3-D-12H-5,5/6,3x115 E19"]
["880Z - through longitudinal joint",80,8,"30027308","EJOT JT3-D-12H-5,5/6,3x 95 E19","Z - through longitudinal joint",null,120,"30024462","EJOT JT3-D-6H-5,5/6,3x127 E19","30024463","EJOT JT3-D-12H-5,5/6,3x135 E19"]
["1080Z - through longitudinal joint",80,10,"30027308","EJOT JT3-D-12H-5,5/6,3x 95 E19","Z - through longitudinal joint",null,133,"30027300","EJOT JT3-D-6H-5,5/6,3x147 E19","30027301","EJOT JT3-D-12H-5,5/6,3x155 E19"]
["1,5100Z - through longitudinal joint",100,1.5,"30026964","EJOT JT3-D-6H-5,5/6,3x107 E19","Z - through longitudinal joint",null,150,"30024990","EJOT JT3-D-6H-5,5/6,3x167 E19","30027306","EJOT JT3-D-12H-5,5/6,3x175 E19"]
["1,75100Z - through longitudinal joint",100,1.75,"30026964","EJOT JT3-D-6H-5,5/6,3x107 E19","Z - through longitudinal joint",null,172,"30011562","EJOT JT3-D-6H-5,5/6,3x197 E19","30027305","EJOT JT3-D-12H-5,5/6,3x195 E19"]
["2100Z - through longitudinal joint",100,2,"30026964","EJOT JT3-D-6H-5,5/6,3x107 E19","Z - through longitudinal joint",null,200,"30023821","EJOT JT3-D-6H-5,5/6,3x237 E19","30024060","EJOT JT3-D-12H-5,5/6,3x245 E19"]
["2,5100Z - through longitudinal joint",100,2.5,"30026964","EJOT JT3-D-6H-5,5/6,3x107 E19","Z - through longitudinal joint",null,220,"30023821","EJOT JT3-D-6H-5,5/6,3x237 E19","30024060","EJOT JT3-D-12H-5,5/6,3x245 E19"]
["3100Z - through longitudinal joint",100,3,"30026964","EJOT JT3-D-6H-5,5/6,3x107 E19","Z - through longitudinal joint",null,240,"30027310","EJOT JT3-D-6H-5,5/6,3x267 E19","30027304","EJOT JT3-D-12H-5,5/6,3x275 E19"]
["4100Z - through longitudinal joint",100,4,"30026964","EJOT JT3-D-6H-5,5/6,3x107 E19","Z - through longitudinal joint",null,250,"30027310","EJOT JT3-D-6H-5,5/6,3x267 E19","30027304","EJOT JT3-D-12H-5,5/6,3x275 E19"]
["5100Z - through longitudinal joint",100,5,"30027307","EJOT JT3-D-12H-5,5/6,3x115 E19","Z - through longitudinal joint"]
["6100Z - through longitudinal joint",100,6,"30027307","EJOT JT3-D-12H-5,5/6,3x115 E19","Z - through longitudinal joint"]
["8100Z - through longitudinal joint",100,8,"30027307","EJOT JT3-D-12H-5,5/6,3x115 E19","Z - through longitudinal joint"]
["10100Z - through longitudinal joint",100,10,"30027307","EJOT JT3-D-12H-5,5/6,3x115 E19","Z - through longitudinal joint"]
["1,5120Z - through longitudinal joint",120,1.5,"30024462","EJOT JT3-D-6H-5,5/6,3x127 E19","Z - through longitudinal joint"]
["1,75120Z - through longitudinal joint",120,1.75,"30024462","EJOT JT3-D-6H-5,5/6,3x127 E19","Z - through longitudinal joint"]
["2120Z - through longitudinal joint",120,2,"30024462","EJOT JT3-D-6H-5,5/6,3x127 E19","Z - through longitudinal joint"]
["2,5120Z - through longitudinal joint",120,2.5,"30024462","EJOT JT3-D-6H-5,5/6,3x127 E19","Z - through longitudinal joint"]
["3120Z - through longitudinal joint",120,3,"30024462","EJOT JT3-D-6H-5,5/6,3x127 E19","Z - through longitudinal joint"]
["4120Z - through longitudinal joint",120,4,"30024462","EJOT JT3-D-6H-5,5/6,3x127 E19","Z - through longitudinal joint"]
["5120Z - through longitudinal joint",120,5,"30024463","EJOT JT3-D-12H-5,5/6,3x135 E19","Z - through longitudinal joint"]
["6120Z - through longitudinal joint",120,6,"30024463","EJOT JT3-D-12H-5,5/6,3x135 E19","Z - through longitudinal joint"]
["8120Z - through longitudinal joint",120,8,"30024463","EJOT JT3-D-12H-5,5/6,3x135 E19","Z - through longitudinal joint"]
["10120Z - through longitudinal joint",120,10,"30024463","EJOT JT3-D-12H-5,5/6,3x135 E19","Z - through longitudinal joint"]
["1,5133Z - through longitudinal joint",133,1.5,"30027300","EJOT JT3-D-6H-5,5/6,3x147 E19","Z - through longitudinal joint"]
["1,75133Z - through longitudinal joint",133,1.75,"30027300","EJOT JT3-D-6H-5,5/6,3x147 E19","Z - through longitudinal joint"]
["2133Z - through longitudinal joint",133,2,"30027300","EJOT JT3-D-6H-5,5/6,3x147 E19","Z - through longitudinal joint"]
["2,5133Z - through longitudinal joint",133,2.5,"30027300","EJOT JT3-D-6H-5,5/6,3x147 E19","Z - through longitudinal joint"]
["3133Z - through longitudinal joint",133,3,"30027300","EJOT JT3-D-6H-5,5/6,3x147 E19","Z - through longitudinal joint"]
["4133Z - through longitudinal joint",133,4,"30027300","EJOT JT3-D-6H-5,5/6,3x147 E19","Z - through longitudinal joint"]
["5133Z - through longitudinal joint",133,5,"30027301","EJOT JT3-D-12H-5,5/6,3x155 E19","Z - through longitudinal joint"]
["6133Z - through longitudinal joint",133,6,"30027301","EJOT JT3-D-12H-5,5/6,3x155 E19","Z - through longitudinal joint"]
["8133Z - through longitudinal joint",133,8,"30027301","EJOT JT3-D-12H-5,5/6,3x155 E19","Z - through longitudinal joint"]
["10133Z - through longitudinal joint",133,10,"30027301","EJOT JT3-D-12H-5,5/6,3x155 E19","Z - through longitudinal joint"]
["1,5150Z - through longitudinal joint",150,1.5,"30024990","EJOT JT3-D-6H-5,5/6,3x167 E19","Z - through longitudinal joint"]
["1,75150Z - through longitudinal joint",150,1.75,"30024990","EJOT JT3-D-6H-5,5/6,3x167 E19","Z - through longitudinal joint"]
["2150Z - through longitudinal joint",150,2,"30024990","EJOT JT3-D-6H-5,5/6,3x167 E19","Z - through longitudinal joint"]
["2,5150Z - through longitudinal joint",150,2.5,"30024990","EJOT JT3-D-6H-5,5/6,3x167 E19","Z - through longitudinal joint"]
["3150Z - through longitudinal joint",150,3,"30024990","EJOT JT3-D-6H-5,5/6,3x167 E19","Z - through longitudinal joint"]
["4150Z - through longitudinal joint",150,4,"30024990","EJOT JT3-D-6H-5,5/6,3x167 E19","Z - through longitudinal joint"]
["5150Z - through longitudinal joint",150,5,"30027306","EJOT JT3-D-12H-5,5/6,3x175 E19","Z - through longitudinal joint"]
["6150Z - through longitudinal joint",150,6,"30027306","EJOT JT3-D-12H-5,5/6,3x175 E19","Z - through longitudinal joint"]
["8150Z - through longitudinal joint",150,8,"30027306","EJOT JT3-D-12H-5,5/6,3x175 E19","Z - through longitudinal joint"]
["10150Z - through longitudinal joint",150,10,"30027306","EJOT JT3-D-12H-5,5/6,3x175 E19","Z - through longitudinal joint"]
["1,5172Z - through longitudinal joint",172,1.5,"30011562","EJOT JT3-D-6H-5,5/6,3x197 E19","Z - through longitudinal joint"]
["1,75172Z - through longitudinal joint",172,1.75,"30011562","EJOT JT3-D-6H-5,5/6,3x197 E19","Z - through longitudinal joint"]
["2172Z - through longitudinal joint",172,2,"30011562","EJOT JT3-D-6H-5,5/6,3x197 E19","Z - through longitudinal joint"]
["2,5172Z - through longitudinal joint",172,2.5,"30011562","EJOT JT3-D-6H-5,5/6,3x197 E19","Z - through longitudinal joint"]
["3172Z - through longitudinal joint",172,3,"30011562","EJOT JT3-D-6H-5,5/6,3x197 E19","Z - through longitudinal joint"]
["4172Z - through longitudinal joint",172,4,"30011562","EJOT JT3-D-6H-5,5/6,3x197 E19","Z - through longitudinal joint"]
["5172Z - through longitudinal joint",172,5,"30027305","EJOT JT3-D-12H-5,5/6,3x195 E19","Z - through longitudinal joint"]
["6172Z - through longitudinal joint",172,6,"30027305","EJOT JT3-D-12H-5,5/6,3x195 E19","Z - through longitudinal joint"]
["8172Z - through longitudinal joint",172,8,"30027305","EJOT JT3-D-12H-5,5/6,3x195 E19","Z - through longitudinal joint"]
["10172Z - through longitudinal joint",172,10,"30027305","EJOT JT3-D-12H-5,5/6,3x195 E19","Z - through longitudinal joint"]
["1,5200Z - through longitudinal joint",200,1.5,"30023821","EJOT JT3-D-6H-5,5/6,3x237 E19","Z - through longitudinal joint"]
["1,75200Z - through longitudinal joint",200,1.75,"30023821","EJOT JT3-D-6H-5,5/6,3x237 E19","Z - through longitudinal joint"]
["2200Z - through longitudinal joint",200,2,"30023821","EJOT JT3-D-6H-5,5/6,3x237 E19","Z - through longitudinal joint"]
["2,5200Z - through longitudinal joint",200,2.5,"30023821","EJOT JT3-D-6H-5,5/6,3x237 E19","Z - through longitudinal joint"]
["3200Z - through longitudinal joint",200,3,"30023821","EJOT JT3-D-6H-5,5/6,3x237 E19","Z - through longitudinal joint"]
[{"$f":"C285&B285&F285","v":"4200Z - through longitudinal joint"},200,4,{"$f":"VLOOKUP(B285,$H$224:$M$235,IF(C285>4,4,2),FALSE)","v":"30023821"},{"$f":"VLOOKUP(B285,$H$224:$M$235,IF(C285>4,5,3),FALSE)","v":"EJOT JT3-D-6H-5,5/6,3x237 E19"},"Z - through longitudinal joint"]
["5200Z - through longitudinal joint",200,5,"30024060","EJOT JT3-D-12H-5,5/6,3x245 E19","Z - through longitudinal joint"]
["6200Z - through longitudinal joint",200,6,"30024060","EJOT JT3-D-12H-5,5/6,3x245 E19","Z - through longitudinal joint"]
["8200Z - through longitudinal joint",200,8,"30024060","EJOT JT3-D-12H-5,5/6,3x245 E19","Z - through longitudinal joint"]
["10200Z - through longitudinal joint",200,10,"30024060","EJOT JT3-D-12H-5,5/6,3x245 E19","Z - through longitudinal joint"]
["1,5220Z - through longitudinal joint",220,1.5,"30023821","EJOT JT3-D-6H-5,5/6,3x237 E19","Z - through longitudinal joint"]
["1,75220Z - through longitudinal joint",220,1.75,"30023821","EJOT JT3-D-6H-5,5/6,3x237 E19","Z - through longitudinal joint"]
["2220Z - through longitudinal joint",220,2,"30023821","EJOT JT3-D-6H-5,5/6,3x237 E19","Z - through longitudinal joint"]
["2,5220Z - through longitudinal joint",220,2.5,"30023821","EJOT JT3-D-6H-5,5/6,3x237 E19","Z - through longitudinal joint"]
["3220Z - through longitudinal joint",220,3,"30023821","EJOT JT3-D-6H-5,5/6,3x237 E19","Z - through longitudinal joint"]
["4220Z - through longitudinal joint",220,4,"30023821","EJOT JT3-D-6H-5,5/6,3x237 E19","Z - through longitudinal joint"]
["5220Z - through longitudinal joint",220,5,"30024060","EJOT JT3-D-12H-5,5/6,3x245 E19","Z - through longitudinal joint"]
["6220Z - through longitudinal joint",220,6,"30024060","EJOT JT3-D-12H-5,5/6,3x245 E19","Z - through longitudinal joint"]
["8220Z - through longitudinal joint",220,8,"30024060","EJOT JT3-D-12H-5,5/6,3x245 E19","Z - through longitudinal joint"]
["10220Z - through longitudinal joint",220,10,"30024060","EJOT JT3-D-12H-5,5/6,3x245 E19","Z - through longitudinal joint"]
["1,5240Z - through longitudinal joint",240,1.5,"30027310","EJOT JT3-D-6H-5,5/6,3x267 E19","Z - through longitudinal joint"]
["1,75240Z - through longitudinal joint",240,1.75,"30027310","EJOT JT3-D-6H-5,5/6,3x267 E19","Z - through longitudinal joint"]
["2240Z - through longitudinal joint",240,2,"30027310","EJOT JT3-D-6H-5,5/6,3x267 E19","Z - through longitudinal joint"]
["2,5240Z - through longitudinal joint",240,2.5,"30027310","EJOT JT3-D-6H-5,5/6,3x267 E19","Z - through longitudinal joint"]
["3240Z - through longitudinal joint",240,3,"30027310","EJOT JT3-D-6H-5,5/6,3x267 E19","Z - through longitudinal joint"]
["4240Z - through longitudinal joint",240,4,"30027310","EJOT JT3-D-6H-5,5/6,3x267 E19","Z - through longitudinal joint"]
["5240Z - through longitudinal joint",240,5,"30027304","EJOT JT3-D-12H-5,5/6,3x275 E19","Z - through longitudinal joint"]
["6240Z - through longitudinal joint",240,6,"30027304","EJOT JT3-D-12H-5,5/6,3x275 E19","Z - through longitudinal joint"]
["8240Z - through longitudinal joint",240,8,"30027304","EJOT JT3-D-12H-5,5/6,3x275 E19","Z - through longitudinal joint"]
["10240Z - through longitudinal joint",240,10,"30027304","EJOT JT3-D-12H-5,5/6,3x275 E19","Z - through longitudinal joint"]
["1,5250Z - through longitudinal joint",250,1.5,"30027310","EJOT JT3-D-6H-5,5/6,3x267 E19","Z - through longitudinal joint"]
["1,75250Z - through longitudinal joint",250,1.75,"30027310","EJOT JT3-D-6H-5,5/6,3x267 E19","Z - through longitudinal joint"]
["2250Z - through longitudinal joint",250,2,"30027310","EJOT JT3-D-6H-5,5/6,3x267 E19","Z - through longitudinal joint"]
["2,5250Z - through longitudinal joint",250,2.5,"30027310","EJOT JT3-D-6H-5,5/6,3x267 E19","Z - through longitudinal joint"]
["3250Z - through longitudinal joint",250,3,"30027310","EJOT JT3-D-6H-5,5/6,3x267 E19","Z - through longitudinal joint"]
["4250Z - through longitudinal joint",250,4,"30027310","EJOT JT3-D-6H-5,5/6,3x267 E19","Z - through longitudinal joint"]
["5250Z - through longitudinal joint",250,5,"30027304","EJOT JT3-D-12H-5,5/6,3x275 E19","Z - through longitudinal joint"]
["6250Z - through longitudinal joint",250,6,"30027304","EJOT JT3-D-12H-5,5/6,3x275 E19","Z - through longitudinal joint"]
["8250Z - through longitudinal joint",250,8,"30027304","EJOT JT3-D-12H-5,5/6,3x275 E19","Z - through longitudinal joint"]
["10250Z - through longitudinal joint",250,10,"30027304","EJOT JT3-D-12H-5,5/6,3x275 E19","Z - through longitudinal joint"]

{"sheet":"Transport","index":12,"n_rows":59,"n_cols":24,"rows_kept":59,"cut":false,"hidden":false,"merged":[[55,1,57,2],[5,16,5,17],[7,0,7,2],[9,6,9,7],[5,7,5,9],[4,14,4,15],[4,16,4,17],[5,14,5,15],[0,0,0,17],[2,14,2,15],[2,16,2,17],[3,14,3,15],[3,16,3,17]]}
["Qbiss One Transport",null,null,null,null,null,null,null,null,null,null,null,null,null,null,null,null,null,null,"INSTRUCTIONS"]
[null,null,null,null,null,null,null,null,null,null,null,null,null,null,null,null,null,null,null,"Follow steps"]
[null,"Project name:",null,{"$f":"IF('CUTTING LIST'!C10=\"\",\"Insert text on first page\",'CUTTING LIST'!C10)","v":"Insert text"},null,null,null,null,null,null,null,null,null,null,"Date last saved:",null,{"$f":"ProfessorExcelLastSaveDate()","v":"2022-05-13T13:18:16"},null,null,"STEP 1: Select type of transport","You can select among Truck, Train, Ship transport. Click more for description."]
[null,"Customer name:",null,{"$f":"IF('CUTTING LIST'!C11=\"\",\"Insert text on first page\",'CUTTING LIST'!C11)","v":"Insert text"},null,null,null,null,null,null,null,null,null,null,"Laste saved by:",null,{"$f":"ProfessorExcelLastSavedBy()","v":"Slanšek Matic"},null,null,"STEP 2: Select type of packaging","Select among standard and extended packaging. See the difference on the following link"]
[null,"Customer order no:",null,{"$f":"IF('CUTTING LIST'!C12=\"\",\"Insert text on first page\",'CUTTING LIST'!C12)","v":"Insert text"},null,null,null,null,null,null,null,null,null,null,"Cutting list number:",null,{"$f":"IF('CUTTING LIST'!N3=\"\",\"insert text of first page\",'CUTTING LIST'!N3)","v":"Insert"},null,null,"STEP 3: Select additional options"]
[null,null,null,null,null,null,null,null,null,null,null,null,null,null,"Revision:",null,{"$f":"IF('CUTTING LIST'!N4=\"\",\"insert text of first page\",'CUTTING LIST'!N4)","v":"Insert"},null,null,null,"EPS support blocks",null,null,"Click for explanation"]
[null,null,null,null,null,null,null,null,null,null,null,null,null,null,null,null,null,null,null,null,"Lifting bands",null,null,"Click for explanation"]
["STEP 1:",null,null,null,null,null,"STEP 2:",null,null,null,null,null,null,null,null,null,null,null,null,null,"Reinforcement pallets",null,null,"Click for explanation"]
["Select type of transport:",null,"INFO ","-> link do dokumeta packaging, transport and storage for trimo products page section 2, 2.6, 2.7",null,null,"Select type of packaging:",null,"INFO","-> link do dokumenta packaging, transport and storage for trimo products section 2",null,null,null,null,null,null,null,null,null,null,"Stacking type in case of Qbiss One elements is always 10"]
["No_selection",null,null,null,null,null,"No selection"]
[]
[]
[]
[]
[]
[]
[]
["STEP 3:"]
["Additional packaging elements"]
["EPS support blocks",null,"No selection","INFO (section 2.4)"]
[]
[]
[]
[]
[]
[]
[]
[]
[]
[]
[]
["Lifting bands 12€/package",null,"No selection","INFO (section 2.5)"]
[]
[]
[]
[]
[]
[]
[]
["Reinforcement pallets",null,"No selection","INFO (section 2.5)"]
[]
[]
[]
[]
[]
[]
[]
[]
[]
[]
[]
[]
["Stacking type",null,10,"INFO (section 2.10)"]
[]
[null,"Required fields"]
[null,"Input data doesn't meet Qbiss One limitations - see INSTRUCTIONS on the right"]
[]
[]
[null,"Automatically filled"]

{"sheet":"Data 3 Accessories","index":13,"n_rows":109,"n_cols":39,"rows_kept":109,"cut":false,"hidden":true,"merged":[]}
[null,null,null,"B_B_Horizontal",null,"B_BF_Horizontal",null,"BF_B_Horizontal",null,"BF_BF_Horizontal",null,"F_B_Horizontal",null,"F_BF_Horizontal",null,"B_B_Horizontal_brick",null,"B_BF_Horizontal_brick",null,"BF_B_Horizontal_brick",null,"BF_BF_Horizontal_brick",null,"F_B_Horizontal_brick",null,"F_BF_Horizontal_brick",null,"B_B_Horizontal_assymetrical_brick",null,"B_BF_Horizontal_assymetrical_brick",null,"BF_B_Horizontal_assymetrical_brick",null,"BF_BF_Horizontal_assymetrical_brick",null,"F_B_Horizontal_assymetrical_brick",null,"F_BF_Horizontal_asymmetrical_brick"]
[null,null,null,null,"Note",null,"Note",null,"Note",null,"Note",null,"Note",null,"Note",null,"Note",null,"Note",null,"Note",null,"Note",null,"Note",null,"Note",null,"Note",null,"Note",null,"Note",null,"Note",null,"Note",null,"Note"]
[]
[]
[]
["Primer šifre SAP",null,null,"Q100-1200 9006 PVDF 070/9006 SP 055-KT\nPROFIL HF40 RAL 9006 PVDF 13.1x20 AL\nProfil HF 14 v sklopu panela na linij!",null,"Q100-1200 9006 PVDF 070/9006 SP 055-KT\nPROFIL HF52 RAL9006 PVDF 34.1x21 AL\nProfil HF 14 v sklopu panela na linij!",null,"Q100-1200 9006 PVDF 070/9006 SP 055-KT\nPROFIL HF40 RAL 9006 PVDF 13.1x20 AL\nProfil HF 55 v sklopu panela na linij!",null,"Q100-1200 9006 PVDF 070/9006 SP 055-KT\nPROFIL HF52 RAL9006 PVDF 34.1x21 AL\nProfil HF 55 v sklopu panela na linij!",null,"QFB100-1060 9006 PVDF 70/9002 SP50-KT\nPROFIL HF40 RAL 9006 PVDF 13.1x20 AL\nNi profila v sklopu panela na linij!",null,"QFB100-1060 9006 PVDF 70/9002 SP50-KT\nPROFIL HF52 RAL9006 PVDF 34.1x21 AL\nNi profila v sklopu panela na linij!",null,"Q100-1200 9006 PVDF 070/9006 SP 055-KT\nPROFIL HF40 RAL 9006 PVDF 13.1x20 AL\nProfil HF 14 v sklopu panela na linij!",null,"Q100-1200 9006 PVDF 070/9006 SP 055-KT\nPROFIL HF52 RAL9006 PVDF 34.1x21 AL\nProfil HF 14 v sklopu panela na linij!",null,"Q100-1200 9006 PVDF 070/9006 SP 055-KT\nPROFIL HF40 RAL 9006 PVDF 13.1x20 AL\nProfil HF 55 v sklopu panela na linij!",null,"Q100-1200 9006 PVDF 070/9006 SP 055-KT\nPROFIL HF52 RAL9006 PVDF 34.1x21 AL\nProfil HF 55 v sklopu panela na linij!",null,"QFB100-1060 9006 PVDF 70/9002 SP50-KT\nPROFIL HF40 RAL 9006 PVDF 13.1x20 AL\nNi profila v sklopu panela na linij!",null,"QFB100-1060 9006 PVDF 70/9002 SP50-KT\nPROFIL HF52 RAL9006 PVDF 34.1x21 AL\nNi profila v sklopu panela na linij!",null,"Q100-1200 9006 PVDF 070/9006 SP 055-KT\nPROFIL HF40 RAL 9006 PVDF 13.1x20 AL\nProfil HF 14 v sklopu panela na linij!",null,"Q100-1200 9006 PVDF 070/9006 SP 055-KT\nPROFIL HF52 RAL9006 PVDF 34.1x21 AL\nProfil HF 14 v sklopu panela na linij!",null,"Q100-1200 9006 PVDF 070/9006 SP 055-KT\nPROFIL HF40 RAL 9006 PVDF 13.1x20 AL\nProfil HF 55 v sklopu panela na linij!",null,"Q100-1200 9006 PVDF 070/9006 SP 055-KT\nPROFIL HF52 RAL9006 PVDF 34.1x21 AL\nProfil HF 55 v sklopu panela na linij!",null,"QFB100-1060 9006 PVDF 70/9002 SP50-KT\nPROFIL HF40 RAL 9006 PVDF 13.1x20 AL\nNi profila v sklopu panela na linij!",null,"QFB100-1060 9006 PVDF 70/9002 SP50-KT\nPROFIL HF52 RAL9006 PVDF 34.1x21 AL\nNi profila v sklopu panela na linij!"]
[]
["Fixation_screw_in_panel_panel_joint_without_thread_under_the_head_and_without_washer","pcs",null,"self-tapping or self-drilling; see table","NOT included in element price; Number of fixing screws is determined with structural calculation provided by Trimo Technical Support","self-tapping or self-drilling; see table","NOT included in element price; Number of fixing screws is determined with structural calculation provided by Trimo Technical Support","self-tapping or self-drilling; see table","NOT included in element price; Number of fixing screws is determined with structural calculation provided by Trimo Technical Support","self-tapping or self-drilling; see table","NOT included in element price; Number of fixing screws is determined with structural calculation provided by Trimo Technical Support","self-tapping or self-drilling; see table","NOT included in element price; Number of fixing screws is determined with structural calculation provided by Trimo Technical Support","self-tapping or self-drilling; see table","NOT included in element price; Number of fixing screws is determined with structural calculation provided by Trimo Technical Support","self-tapping or self-drilling; see table","NOT included in element price; Number of fixing screws is determined with structural calculation provided by Trimo Technical Support","self-tapping or self-drilling; see table","NOT included in element price; Number of fixing screws is determined with structural calculation provided by Trimo Technical Support","self-tapping or self-drilling; see table","NOT included in element price; Number of fixing screws is determined with structural calculation provided by Trimo Technical Support","self-tapping or self-drilling; see table","NOT included in element price; Number of fixing screws is determined with structural calculation provided by Trimo Technical Support","self-tapping or self-drilling; see table","NOT included in element price; Number of fixing screws is determined with structural calculation provided by Trimo Technical Support","self-tapping or self-drilling; see table","NOT included in element price; Number of fixing screws is determined with structural calculation provided by Trimo Technical Support","self-tapping or self-drilling; see table","NOT included in element price; Number of fixing screws is determined with structural calculation provided by Trimo Technical Support","self-tapping or self-drilling; see table","NOT included in element price; Number of fixing screws is determined with structural calculation provided by Trimo Technical Support","self-tapping or self-drilling; see table","NOT included in element price; Number of fixing screws is determined with structural calculation provided by Trimo Technical Support","self-tapping or self-drilling; see table","NOT included in element price; Number of fixing screws is determined with structural calculation provided by Trimo Technical Support","self-tapping or self-drilling; see table","NOT included in element price; Number of fixing screws is determined with structural calculation provided by Trimo Technical Support","self-tapping or self-drilling; see table","NOT included in element price; Number of fixing screws is determined with structural calculation provided by Trimo Technical Support"]
["Fixation_screw_through_internal_steel_sheet","pcs",null,"self-tapping or self-drilling; see table","NOT included in element price; suggested quantity of screws 1-2 pcs per each facade element (depends on type and size of element)","self-tapping or self-drilling; see table","NOT included in element price; suggested quantity of screws 1-2 pcs per each facade element (depends on type and size of element)","self-tapping or self-drilling; see table","NOT included in element price; suggested quantity of screws 1-2 pcs per each facade element (depends on type and size of element)","self-tapping or self-drilling; see table","NOT included in element price; suggested quantity of screws 1-2 pcs per each facade element (depends on type and size of element)","self-tapping or self-drilling; see table","NOT included in element price; suggested quantity of screws 1-2 pcs per each facade element (depends on type and size of element)","self-tapping or self-drilling; see table","NOT included in element price; suggested quantity of screws 1-2 pcs per each facade element (depends on type and size of element)","self-tapping or self-drilling; see table","NOT included in element price; suggested quantity of screws 1-2 pcs per each facade element (depends on type and size of element)","self-tapping or self-drilling; see table","NOT included in element price; suggested quantity of screws 1-2 pcs per each facade element (depends on type and size of element)","self-tapping or self-drilling; see table","NOT included in element price; suggested quantity of screws 1-2 pcs per each facade element (depends on type and size of element)","self-tapping or self-drilling; see table","NOT included in element price; suggested quantity of screws 1-2 pcs per each facade element (depends on type and size of element)","self-tapping or self-drilling; see table","NOT included in element price; suggested quantity of screws 1-2 pcs per each facade element (depends on type and size of element)","self-tapping or self-drilling; see table","NOT included in element price; suggested quantity of screws 1-2 pcs per each facade element (depends on type and size of element)","self-tapping or self-drilling; see table","NOT included in element price; suggested quantity of screws 1-2 pcs per each facade element (depends on type and size of element)","self-tapping or self-drilling; see table","NOT included in element price; suggested quantity of screws 1-2 pcs per each facade element (depends on type and size of element)","self-tapping or self-drilling; see table","NOT included in element price; suggested quantity of screws 1-2 pcs per each facade element (depends on type and size of element)","self-tapping or self-drilling; see table","NOT included in element price; suggested quantity of screws 1-2 pcs per each facade element (depends on type and size of element)","self-tapping or self-drilling; see table","NOT included in element price; suggested quantity of screws 1-2 pcs per each facade element (depends on type and size of element)","self-tapping or self-drilling; see table","NOT included in element price; suggested quantity of screws 1-2 pcs per each facade element (depends on type and size of element)"]
["EPDM_transversal_gasket","m",null,"T052\n30014372\ncut to size for brick","included in element price; quantity of transversal (vertical) joint","T052\n30014372\ncut to size for brick","included in element price; quantity of transversal (vertical) joint","T052\n30014372\ncut to size for brick","included in element price; quantity of transversal (vertical) joint","T052\n30014372\ncut to size for brick","included in element price; quantity of transversal (vertical) joint","T052\n30014372\ncut to size for brick","included in element price; quantity of transversal (vertical) joint","T052\n30014372\ncut to size for brick","included in element price; quantity of transversal (vertical) joint","T052\n30014372\ncut to size for brick","included in element price; quantity of transversal (vertical) joint","T052\n30014372\ncut to size for brick","included in element price; quantity of transversal (vertical) joint","T052\n30014372\ncut to size for brick","included in element price; quantity of transversal (vertical) joint","T052\n30014372\ncut to size for brick","included in element price; quantity of transversal (vertical) joint","T052\n30014372\ncut to size for brick","included in element price; quantity of transversal (vertical) joint","T052\n30014372\ncut to size for brick","included in element price; quantity of transversal (vertical) joint","T052\n30014372\ncut to size for brick","included in element price; quantity of transversal (vertical) joint","T052\n30014372\ncut to size for brick","included in element price; quantity of transversal (vertical) joint","T052\n30014372\ncut to size for brick","included in element price; quantity of transversal (vertical) joint","T052\n30014372\ncut to size for brick","included in element price; quantity of transversal (vertical) joint","T052\n30014372\ncut to size for brick","included in element price; quantity of transversal (vertical) joint","T052\n30014372\ncut to size for brick","included in element price; quantity of transversal (vertical) joint"]
["Decorative_ALU_Extrusion","m",null,"A023 (HF40)\nSAP code colour specific\ncut to size for brick","included in element price; quantity of transversal (vertical) joint; supplied in 4 m lenghts; specify color","A097 (HF52)\nSAP code colour specific\ncut to size for brick ???\n30018981 tesnilo EPDM 20X20X15 ?","included in element price; quantity of transversal (vertical) joint; supplied in 4 m lenghts; specify color","A023 (HF40)\nSAP code colour specific\ncut to size for brick","included in element price; quantity of transversal (vertical) joint; supplied in 4 m lenghts; specify color","A097 (HF52)\nSAP code colour specific\ncut to size for brick ???\n30018981 tesnilo EPDM 20X20X15 ?","included in element price; quantity of transversal (vertical) joint; supplied in 4 m lenghts; specify color","A023 (HF40)\nSAP code colour specific\ncut to size for brick","included in element price; quantity of transversal (vertical) joint; supplied in 4 m lenghts; specify color","A097 (HF52)\nSAP code colour specific\ncut to size for brick ???\n30018981 tesnilo EPDM 20X20X15 ?","included in element price; quantity of transversal (vertical) joint; supplied in 4 m lenghts; specify color","A023 (HF40)\nSAP code colour specific\ncut to size for brick","included in element price; quantity of transversal (vertical) joint; supplied in 4 m lenghts; specify color","A097 (HF52)\nSAP code colour specific\ncut to size for brick ???\n30018981 tesnilo EPDM 20X20X15 ?","included in element price; quantity of transversal (vertical) joint; supplied in 4 m lenghts; specify color","A023 (HF40)\nSAP code colour specific\ncut to size for brick","included in element price; quantity of transversal (vertical) joint; supplied in 4 m lenghts; specify color","A097 (HF52)\nSAP code colour specific\ncut to size for brick ???\n30018981 tesnilo EPDM 20X20X15 ?","included in element price; quantity of transversal (vertical) joint; supplied in 4 m lenghts; specify color","A023 (HF40)\nSAP code colour specific\ncut to size for brick","included in element price; quantity of transversal (vertical) joint; supplied in 4 m lenghts; specify color","A097 (HF52)\nSAP code colour specific\ncut to size for brick ???\n30018981 tesnilo EPDM 20X20X15 ?","included in element price; quantity of transversal (vertical) joint; supplied in 4 m lenghts; specify color","A023 (HF40)\nSAP code colour specific\ncut to size for brick","included in element price; quantity of transversal (vertical) joint; supplied in 4 m lenghts; specify color","A097 (HF52)\nSAP code colour specific\ncut to size for brick ???\n30018981 tesnilo EPDM 20X20X15 ?","included in element price; quantity of transversal (vertical) joint; supplied in 4 m lenghts; specify color","A023 (HF40)\nSAP code colour specific\ncut to size for brick","included in element price; quantity of transversal (vertical) joint; supplied in 4 m lenghts; specify color","A097 (HF52)\nSAP code colour specific\ncut to size for brick ???\n30018981 tesnilo EPDM 20X20X15 ?","included in element price; quantity of transversal (vertical) joint; supplied in 4 m lenghts; specify color","A023 (HF40)\nSAP code colour specific\ncut to size for brick","included in element price; quantity of transversal (vertical) joint; supplied in 4 m lenghts; specify color","A097 (HF52)\nSAP code colour specific\ncut to size for brick ???\n30018981 tesnilo EPDM 20X20X15 ?","included in element price; quantity of transversal (vertical) joint; supplied in 4 m lenghts; specify color"]
["Junction_drip_element","pcs",null,"O1070 (3x44x156)\n30006439\n\nO10071 (3.7x44x92)\n30007027 for Brick","included in element price; quantity min. 1 piece per façade element","O1070 (3x44x156)\n30006439\n\nO10071 (3.7x44x92)\n30007027 for Brick","included in element price; quantity min. 1 piece per façade element","O1070 (3x44x156)\n30006439\n\nO10071 (3.7x44x92)\n30007027 for Brick","included in element price; quantity min. 1 piece per façade element","O1070 (3x44x156)\n30006439\n\nO10071 (3.7x44x92)\n30007027 for Brick","included in element price; quantity min. 1 piece per façade element","O1xxx (3x44x140)\n30025013\n\n\ndefinirat za Brick","included in element price; quantity min. 1 piece per façade element","O1xxx (3x44x140)\n30025013\n\n\ndefinirat za Brick","included in element price; quantity min. 1 piece per façade element","O1070 (3x44x156)\n30006439\n\nO10071 (3.7x44x92)\n30007027 for Brick","included in element price; quantity min. 1 piece per façade element","O1070 (3x44x156)\n30006439\n\nO10071 (3.7x44x92)\n30007027 for Brick","included in element price; quantity min. 1 piece per façade element","O1070 (3x44x156)\n30006439\n\nO10071 (3.7x44x92)\n30007027 for Brick","included in element price; quantity min. 1 piece per façade element","O1070 (3x44x156)\n30006439\n\nO10071 (3.7x44x92)\n30007027 for Brick","included in element price; quantity min. 1 piece per façade element","O1xxx (3x44x140)\n30025013\n\n\ndefinirat za Brick","included in element price; quantity min. 1 piece per façade element","O1xxx (3x44x140)\n30025013\n\n\ndefinirat za Brick","included in element price; quantity min. 1 piece per façade element","O1070 (3x44x156)\n30006439\n\nO10071 (3.7x44x92)\n30007027 for Brick","included in element price; quantity min. 1 piece per façade element","O1070 (3x44x156)\n30006439\n\nO10071 (3.7x44x92)\n30007027 for Brick","included in element price; quantity min. 1 piece per façade element","O1070 (3x44x156)\n30006439\n\nO10071 (3.7x44x92)\n30007027 for Brick","included in element price; quantity min. 1 piece per façade element","O1070 (3x44x156)\n30006439\n\nO10071 (3.7x44x92)\n30007027 for Brick","included in element price; quantity min. 1 piece per façade element","O1xxx (3x44x140)\n30025013\n\n\ndefinirat za Brick","included in element price; quantity min. 1 piece per façade element","O1xxx (3x44x140)\n30025013\n\n\ndefinirat za Brick","included in element price; quantity min. 1 piece per façade element"]
["Installation_Kit_Package_includes_spacer_crosses_wooden_pad_spray_with_soapy_water_and_installation_manual","pcs",null,"Installation kit package - Horizontal \n30007109\nInstallation kit package - Brick\n30018303","included in element price; quantity 1 pcs per order plus additional 1 pcs for each 500 m2","Installation kit package - Horizontal \n30007109\nInstallation kit package - Brick\n30018303","included in element price; quantity 1 pcs per order plus additional 1 pcs for each 500 m2","Installation kit package - Horizontal \n30007109\nInstallation kit package - Brick\n30018303\nNavodilo (imamo za B) - potrebno dopolnit.\nKriž od B je ustrezen.\n\nKriž za Brick ni potreben.","included in element price; quantity 1 pcs per order plus additional 1 pcs for each 500 m2","Installation kit package - Horizontal \n30007109\nInstallation kit package - Brick\n30018303\nNavodilo (imamo za B) - potrebno dopolnit.\nKriž od B je ustrezen.\n\nKriž za Brick ni potreben.","included in element price; quantity 1 pcs per order plus additional 1 pcs for each 500 m2","Navodilo - potrebno pripravit.\nKriž od F je ustrezen.\n\nKriž za Brick ni potreben.","included in element price; quantity 1 pcs per order plus additional 1 pcs for each 500 m2","Navodilo - potrebno pripravit.\nKriž (od F) je ustrezen.\n\nKriž za Brick ni potreben.","included in element price; quantity 1 pcs per order plus additional 1 pcs for each 500 m2","Installation kit package - Horizontal \n30007109\nInstallation kit package - Brick\n30018303","included in element price; quantity 1 pcs per order plus additional 1 pcs for each 500 m2","Installation kit package - Horizontal \n30007109\nInstallation kit package - Brick\n30018303","included in element price; quantity 1 pcs per order plus additional 1 pcs for each 500 m2","Installation kit package - Horizontal \n30007109\nInstallation kit package - Brick\n30018303\nNavodilo (imamo za B) - potrebno dopolnit.\nKriž od B je ustrezen.\n\nKriž za Brick ni potreben.","included in element price; quantity 1 pcs per order plus additional 1 pcs for each 500 m2","Installation kit package - Horizontal \n30007109\nInstallation kit package - Brick\n30018303\nNavodilo (imamo za B) - potrebno dopolnit.\nKriž od B je ustrezen.\n\nKriž za Brick ni potreben.","included in element price; quantity 1 pcs per order plus additional 1 pcs for each 500 m2","Installation kit package - Horizontal \n30007109\nInstallation kit package - Brick\n30018303                                                Navodilo - potrebno pripravit.\nKriž od F je ustrezen.\n\nKriž za Brick ni potreben.","included in element price; quantity 1 pcs per order plus additional 1 pcs for each 500 m2","Installation kit package - Horizontal \n30007109\nInstallation kit package - Brick\n30018303                                             Navodilo - potrebno pripravit.\nKriž (od F) je ustrezen.\n\nKriž za Brick ni potreben.","included in element price; quantity 1 pcs per order plus additional 1 pcs for each 500 m2","Installation kit package - Horizontal \n30007109\nInstallation kit package - Brick\n30018303","included in element price; quantity 1 pcs per order plus additional 1 pcs for each 500 m2","Installation kit package - Horizontal \n30007109\nInstallation kit package - Brick\n30018303","included in element price; quantity 1 pcs per order plus additional 1 pcs for each 500 m2","Installation kit package - Horizontal \n30007109\nInstallation kit package - Brick\n30018303\nNavodilo (imamo za B) - potrebno dopolnit.\nKriž od B je ustrezen.\n\nKriž za Brick ni potreben.","included in element price; quantity 1 pcs per order plus additional 1 pcs for each 500 m2","Installation kit package - Horizontal \n30007109\nInstallation kit package - Brick\n30018303\nNavodilo (imamo za B) - potrebno dopolnit.\nKriž od B je ustrezen.\n\nKriž za Brick ni potreben.","included in element price; quantity 1 pcs per order plus additional 1 pcs for each 500 m2","Installation kit package - Horizontal \n30007109\nInstallation kit package - Brick\n30018303                                              Navodilo - potrebno pripravit.\nKriž od F je ustrezen.\n\nKriž za Brick ni potreben.","included in element price; quantity 1 pcs per order plus additional 1 pcs for each 500 m2","Installation kit package - Horizontal \n30007109\nInstallation kit package - Brick\n30018303                                             Navodilo - potrebno pripravit.\nKriž (od F) je ustrezen.\n\nKriž za Brick ni potreben.","included in element price; quantity 1 pcs per order plus additional 1 pcs for each 500 m2"]
["Sealing_tape_5x10","m",null,"T060\n30006985","NOT included in element price; quantity as per details","T060\n30006985","NOT included in element price; quantity as per details","T060\n30006985","NOT included in element price; quantity as per details","T060\n30006985","NOT included in element price; quantity as per details","T060\n30006985","NOT included in element price; quantity as per details","T060\n30006985","NOT included in element price; quantity as per details",30007109,"NOT included in element price; quantity as per details","T060\n30006985","NOT included in element price; quantity as per details","T060\n30006985","NOT included in element price; quantity as per details","T060\n30006985","NOT included in element price; quantity as per details","T060\n30006985","NOT included in element price; quantity as per details","T060\n30006985","NOT included in element price; quantity as per details","T060\n30006985","NOT included in element price; quantity as per details","T060\n30006985","NOT included in element price; quantity as per details","T060\n30006985","NOT included in element price; quantity as per details","T060\n30006985","NOT included in element price; quantity as per details","T060\n30006985","NOT included in element price; quantity as per details","T060\n30006985","NOT included in element price; quantity as per details"]
["EPDM_Cube_Gasket_26x26x30","pcs",null,"T022\n30007025","NOT included in element price; quantity as per details","T022\n30007025","NOT included in element price; quantity as per details","T022\n30007025","NOT included in element price; quantity as per details","not required","NOT included in element price; quantity as per details","T022\n30007025","NOT included in element price; quantity as per details","not required","NOT included in element price; quantity as per details","Installation kit package - Brick","NOT included in element price; quantity as per details","T022\n30007025","NOT included in element price; quantity as per details","T022\n30007025","NOT included in element price; quantity as per details","not required","NOT included in element price; quantity as per details","T022\n30007025","NOT included in element price; quantity as per details","not required","NOT included in element price; quantity as per details","T022\n30007025","NOT included in element price; quantity as per details","T022\n30007025","NOT included in element price; quantity as per details","T022\n30007025","NOT included in element price; quantity as per details","not required","NOT included in element price; quantity as per details","T022\n30007025","NOT included in element price; quantity as per details","not required","NOT included in element price; quantity as per details"]
["EPDM_Drip_Element","pcs",null,"T051\n30006438","NOT included in price - quantity 1 pcs for each transversal (vertical) joint in connection to drip detail and above window/door/opening profile","T051\n30006438\nxxx Support of decorative profile","NOT included in price - quantity 1 pcs for each transversal (vertical) joint in connection to drip detail and above window/door/opening profile","T051\n30006438","NOT included in price - quantity 1 pcs for each transversal (vertical) joint in connection to drip detail and above window/door/opening profile","T051\n30006438\nxxx Support of decorative profile","NOT included in price - quantity 1 pcs for each transversal (vertical) joint in connection to drip detail and above window/door/opening profile","T051\n30006438","NOT included in price - quantity 1 pcs for each transversal (vertical) joint in connection to drip detail and above window/door/opening profile","T051\n30006438\nxxx Support of decorative profile","NOT included in price - quantity 1 pcs for each transversal (vertical) joint in connection to drip detail and above window/door/opening profile",30018303,"NOT included in price - quantity 1 pcs for each transversal (vertical) joint in connection to drip detail and above window/door/opening profile","T051\n30006438\nxxx Support of decorative profile","NOT included in price - quantity 1 pcs for each transversal (vertical) joint in connection to drip detail and above window/door/opening profile","T051\n30006438","NOT included in price - quantity 1 pcs for each transversal (vertical) joint in connection to drip detail and above window/door/opening profile","T051\n30006438\nxxx Support of decorative profile","NOT included in price - quantity 1 pcs for each transversal (vertical) joint in connection to drip detail and above window/door/opening profile","T051\n30006438","NOT included in price - quantity 1 pcs for each transversal (vertical) joint in connection to drip detail and above window/door/opening profile","T051\n30006438\nxxx Support of decorative profile","NOT included in price - quantity 1 pcs for each transversal (vertical) joint in connection to drip detail and above window/door/opening profile","T051\n30006438","NOT included in price - quantity 1 pcs for each transversal (vertical) joint in connection to drip detail and above window/door/opening profile","T051\n30006438\nxxx Support of decorative profile","NOT included in price - quantity 1 pcs for each transversal (vertical) joint in connection to drip detail and above window/door/opening profile","T051\n30006438","NOT included in price - quantity 1 pcs for each transversal (vertical) joint in connection to drip detail and above window/door/opening profile","T051\n30006438\nxxx Support of decorative profile","NOT included in price - quantity 1 pcs for each transversal (vertical) joint in connection to drip detail and above window/door/opening profile","T051\n30006438","NOT included in price - quantity 1 pcs for each transversal (vertical) joint in connection to drip detail and above window/door/opening profile","T051\n30006438\nxxx Support of decorative profile","NOT included in price - quantity 1 pcs for each transversal (vertical) joint in connection to drip detail and above window/door/opening profile"]
["Stainless_drip_element","pcs",null,"O655\n30026912","NOT included in price - quantity 1 pcs for each transversal (vertical) joint in connection to detail with face flashing for window/door/opening","O655\n30026912","NOT included in price - quantity 1 pcs for each transversal (vertical) joint in connection to detail with face flashing for window/door/opening","O655\n30026912","NOT included in price - quantity 1 pcs for each transversal (vertical) joint in connection to detail with face flashing for window/door/opening","O655\n30026912","NOT included in price - quantity 1 pcs for each transversal (vertical) joint in connection to detail with face flashing for window/door/opening","O655\n30026912","NOT included in price - quantity 1 pcs for each transversal (vertical) joint in connection to detail with face flashing for window/door/opening","O655\n30026912","NOT included in price - quantity 1 pcs for each transversal (vertical) joint in connection to detail with face flashing for window/door/opening","O655\n30026912","NOT included in price - quantity 1 pcs for each transversal (vertical) joint in connection to detail with face flashing for window/door/opening","O655\n30026912","NOT included in price - quantity 1 pcs for each transversal (vertical) joint in connection to detail with face flashing for window/door/opening","O655\n30026912","NOT included in price - quantity 1 pcs for each transversal (vertical) joint in connection to detail with face flashing for window/door/opening","O655\n30026912","NOT included in price - quantity 1 pcs for each transversal (vertical) joint in connection to detail with face flashing for window/door/opening","O655\n30026912","NOT included in price - quantity 1 pcs for each transversal (vertical) joint in connection to detail with face flashing for window/door/opening","O655\n30026912","NOT included in price - quantity 1 pcs for each transversal (vertical) joint in connection to detail with face flashing for window/door/opening","O655\n30026912","NOT included in price - quantity 1 pcs for each transversal (vertical) joint in connection to detail with face flashing for window/door/opening","O655\n30026912","NOT included in price - quantity 1 pcs for each transversal (vertical) joint in connection to detail with face flashing for window/door/opening","O655\n30026912","NOT included in price - quantity 1 pcs for each transversal (vertical) joint in connection to detail with face flashing for window/door/opening","O655\n30026912","NOT included in price - quantity 1 pcs for each transversal (vertical) joint in connection to detail with face flashing for window/door/opening","O655\n30026912","NOT included in price - quantity 1 pcs for each transversal (vertical) joint in connection to detail with face flashing for window/door/opening","O655\n30026912","NOT included in price - quantity 1 pcs for each transversal (vertical) joint in connection to detail with face flashing for window/door/opening"]
["Load_Bearing_Fixing_Plate","pcs",null,"N637\n30033030","Included in element price, depending on type of element, any additional elements required  for i.e. connection to other façade system not included, quantity subject to design information ","N637\n30033030","Included in element price, depending on type of element, any additional elements required  for i.e. connection to other façade system not included, quantity subject to design information ","N637\n30033030","Included in element price, depending on type of element, any additional elements required  for i.e. connection to other façade system not included, quantity subject to design information ","N637\n30033030","Included in element price, depending on type of element, any additional elements required  for i.e. connection to other façade system not included, quantity subject to design information ","N637\n30033030","Included in element price, depending on type of element, any additional elements required  for i.e. connection to other façade system not included, quantity subject to design information ","N637\n30033030","Included in element price, depending on type of element, any additional elements required  for i.e. connection to other façade system not included, quantity subject to design information ","N637\n30033030","Included in element price, depending on type of element, any additional elements required  for i.e. connection to other façade system not included, quantity subject to design information ","N637\n30033030","Included in element price, depending on type of element, any additional elements required  for i.e. connection to other façade system not included, quantity subject to design information ","N637\n30033030","Included in element price, depending on type of element, any additional elements required  for i.e. connection to other façade system not included, quantity subject to design information ","N637\n30033030","Included in element price, depending on type of element, any additional elements required  for i.e. connection to other façade system not included, quantity subject to design information ","N637\n30033030","Included in element price, depending on type of element, any additional elements required  for i.e. connection to other façade system not included, quantity subject to design information ","N637\n30033030","Included in element price, depending on type of element, any additional elements required  for i.e. connection to other façade system not included, quantity subject to design information ","N637\n30033030","Included in element price, depending on type of element, any additional elements required  for i.e. connection to other façade system not included, quantity subject to design information ","N637\n30033030","Included in element price, depending on type of element, any additional elements required  for i.e. connection to other façade system not included, quantity subject to design information ","N637\n30033030","Included in element price, depending on type of element, any additional elements required  for i.e. connection to other façade system not included, quantity subject to design information ","N637\n30033030","Included in element price, depending on type of element, any additional elements required  for i.e. connection to other façade system not included, quantity subject to design information ","N637\n30033030","Included in element price, depending on type of element, any additional elements required  for i.e. connection to other façade system not included, quantity subject to design information ","N637\n30033030","Included in element price, depending on type of element, any additional elements required  for i.e. connection to other façade system not included, quantity subject to design information "]
["Mechanical_gripper_for_horizontal_installation","pcs",null,"PHQ for each panel thickness","NOT included in element price; quantity as required by installation company","PHQ for each panel thickness","NOT included in element price; quantity as required by installation company","PHQ for each panel thickness","NOT included in element price; quantity as required by installation company","PHQ for each panel thickness","NOT included in element price; quantity as required by installation company","PHQ for each panel thickness","NOT included in element price; quantity as required by installation company","PHQ for each panel thickness","NOT included in element price; quantity as required by installation company","PHQ for each panel thickness","NOT included in element price; quantity as required by installation company","PHQ for each panel thickness","NOT included in element price; quantity as required by installation company","PHQ for each panel thickness","NOT included in element price; quantity as required by installation company","PHQ for each panel thickness","NOT included in element price; quantity as required by installation company","PHQ for each panel thickness","NOT included in element price; quantity as required by installation company","PHQ for each panel thickness","NOT included in element price; quantity as required by installation company","PHQ for each panel thickness","NOT included in element price; quantity as required by installation company","PHQ for each panel thickness","NOT included in element price; quantity as required by installation company","PHQ for each panel thickness","NOT included in element price; quantity as required by installation company","PHQ for each panel thickness","NOT included in element price; quantity as required by installation company","PHQ for each panel thickness","NOT included in element price; quantity as required by installation company","PHQ for each panel thickness","NOT included in element price; quantity as required by installation company"]
["Mastic_seal_MS_polymer_based_or_PUR_based_required_for_EPDM_cube_and_internal_joint_sealing","pcs",null,"Mastic seal MS polymer TEKA FLEX MS15 black 600ml          SAP:30031854\n","NOT included in element price; quantity as required by installation company","Mastic seal MS polymer TEKA FLEX MS15 black 600ml          SAP:30031854\n","NOT included in element price; quantity as required by installation company","Mastic seal MS polymer TEKA FLEX MS15 black 600ml          SAP:30031854\n","NOT included in element price; quantity as required by installation company","Mastic seal MS polymer TEKA FLEX MS15 black 600ml          SAP:30031854\n","NOT included in element price; quantity as required by installation company","Mastic seal MS polymer TEKA FLEX MS15 black 600ml          SAP:30031854\n","NOT included in element price; quantity as required by installation company","Mastic seal MS polymer TEKA FLEX MS15 black 600ml          SAP:30031854\n","NOT included in element price; quantity as required by installation company","Mastic seal MS polymer TEKA FLEX MS15 black 600ml          SAP:30031854\n","NOT included in element price; quantity as required by installation company","Mastic seal MS polymer TEKA FLEX MS15 black 600ml          SAP:30031854\n","NOT included in element price; quantity as required by installation company","Mastic seal MS polymer TEKA FLEX MS15 black 600ml          SAP:30031854\n","NOT included in element price; quantity as required by installation company","Mastic seal MS polymer TEKA FLEX MS15 black 600ml          SAP:30031854\n","NOT included in element price; quantity as required by installation company","Mastic seal MS polymer TEKA FLEX MS15 black 600ml          SAP:30031854\n","NOT included in element price; quantity as required by installation company","Mastic seal MS polymer TEKA FLEX MS15 black 600ml          SAP:30031854\n","NOT included in element price; quantity as required by installation company","Mastic seal MS polymer TEKA FLEX MS15 black 600ml          SAP:30031854\n","NOT included in element price; quantity as required by installation company","Mastic seal MS polymer TEKA FLEX MS15 black 600ml          SAP:30031854\n","NOT included in element price; quantity as required by installation company","Mastic seal MS polymer TEKA FLEX MS15 black 600ml          SAP:30031854\n","NOT included in element price; quantity as required by installation company","Mastic seal MS polymer TEKA FLEX MS15 black 600ml          SAP:30031854\n","NOT included in element price; quantity as required by installation company","Mastic seal MS polymer TEKA FLEX MS15 black 600ml          SAP:30031854\n","NOT included in element price; quantity as required by installation company","Mastic seal MS polymer TEKA FLEX MS15 black 600ml          SAP:30031854\n","NOT included in element price; quantity as required by installation company"]
["EPDM_Gasket_Cube_for_BF-BF_joint","pcs",null,null,null,null,null,null,null,"SAP: 30018981 ","Included in element price",null,null,null,null,null,null,null,null,null,null,"SAP: 30018981 ","Included in element price",null,null,null,null,null,null,null,null,null,null,"SAP: 30018981 ","Included in element price"]
[]
["NAME",null,null,"B_B_Vertical",null,"B_BF_Vertical",null,"BF_B_Vertical",null,"BF_BF_Vertical",null,"B_B_Vertical_brick",null,"B_BF_Vertical_brick",null,"BF_B_Vertical_brick",null,"BF_BF_Vertical_brick"]
[]
[]
[]
[]
[]
[]
["Primer šifre SAP",null,null,"Q100-1200 9006 PVDF 070/9006 SP 055-KT\nPROFIL HF40 RAL 9006 PVDF 13.1x20 AL\nProfil HF 14 v sklopu panela na linij!",null,"Q100-1200 9006 PVDF 070/9006 SP 055-KT\nPROFIL HF52 RAL9006 PVDF 34.1x21 AL\nProfil HF 14 v sklopu panela na linij!",null,"Q100-1200 9006 PVDF 070/9006 SP 055-KT\nPROFIL HF40 RAL 9006 PVDF 13.1x20 AL\nProfil HF 55 v sklopu panela na linij!",null,"Q100-1200 9006 PVDF 070/9006 SP 055-KT\nPROFIL HF52 RAL9006 PVDF 34.1x21 AL\nProfil HF 55 v sklopu panela na linij!",null,"Q100-1200 9006 PVDF 070/9006 SP 055-KT\nPROFIL HF40 RAL 9006 PVDF 13.1x20 AL\nProfil HF 14 v sklopu panela na linij!",null,"Q100-1200 9006 PVDF 070/9006 SP 055-KT\nPROFIL HF52 RAL9006 PVDF 34.1x21 AL\nProfil HF 14 v sklopu panela na linij!",null,"Q100-1200 9006 PVDF 070/9006 SP 055-KT\nPROFIL HF40 RAL 9006 PVDF 13.1x20 AL\nProfil HF 55 v sklopu panela na linij!",null,"Q100-1200 9006 PVDF 070/9006 SP 055-KT\nPROFIL HF52 RAL9006 PVDF 34.1x21 AL\nProfil HF 55 v sklopu panela na linij!"]
[]
["Fixation_screw_in_panel_panel_joint_without_thread_under_the_head_and_without_washer","pcs",null,"self-tapping or self-drilling; see table","NOT included in element price; Number of fixing screws is determined with structural calculation provided by Trimo Technical Support","self-tapping or self-drilling; see table","NOT included in element price; Number of fixing screws is determined with structural calculation provided by Trimo Technical Support","self-tapping or self-drilling; see table","NOT included in element price; Number of fixing screws is determined with structural calculation provided by Trimo Technical Support","self-tapping or self-drilling; see table","NOT included in element price; Number of fixing screws is determined with structural calculation provided by Trimo Technical Support","self-tapping or self-drilling; see table","NOT included in element price; Number of fixing screws is determined with structural calculation provided by Trimo Technical Support","self-tapping or self-drilling; see table","NOT included in element price; Number of fixing screws is determined with structural calculation provided by Trimo Technical Support","self-tapping or self-drilling; see table","NOT included in element price; Number of fixing screws is determined with structural calculation provided by Trimo Technical Support","self-tapping or self-drilling; see table","NOT included in element price; Number of fixing screws is determined with structural calculation provided by Trimo Technical Support"]
["Fixation_screw_through_internal_steel_sheet","pcs",null,"self-tapping or self-drilling; see table","NOT included in element price; suggested quantity of screws 1-2 pcs per each facade element (depends on type and size of element)","self-tapping or self-drilling; see table","NOT included in element price; suggested quantity of screws 1-2 pcs per each facade element (depends on type and size of element)","self-tapping or self-drilling; see table","NOT included in element price; suggested quantity of screws 1-2 pcs per each facade element (depends on type and size of element)","self-tapping or self-drilling; see table","NOT included in element price; suggested quantity of screws 1-2 pcs per each facade element (depends on type and size of element)","self-tapping or self-drilling; see table","NOT included in element price; suggested quantity of screws 1-2 pcs per each facade element (depends on type and size of element)","self-tapping or self-drilling; see table","NOT included in element price; suggested quantity of screws 1-2 pcs per each facade element (depends on type and size of element)","self-tapping or self-drilling; see table","NOT included in element price; suggested quantity of screws 1-2 pcs per each facade element (depends on type and size of element)","self-tapping or self-drilling; see table","NOT included in element price; suggested quantity of screws 1-2 pcs per each facade element (depends on type and size of element)"]
["EPDM_Transversal_Gasket","m",null,"T052\n30014372\ncut to size for brick","included in element price; quantity of transversal (horizontal) joint","T052\n30014372\ncut to size for brick","included in element price; quantity of transversal (horizontal) joint","T052\n30014372\ncut to size for brick","included in element price; quantity of transversal (horizontal) joint","T052\n30014372\ncut to size for brick","included in element price; quantity of transversal (horizontal) joint","T052\n30014372\ncut to size for brick","included in element price; quantity of transversal (horizontal) joint","T052\n30014372\ncut to size for brick","included in element price; quantity of transversal (horizontal) joint","T052\n30014372\ncut to size for brick","included in element price; quantity of transversal (horizontal) joint","T052\n30014372\ncut to size for brick","included in element price; quantity of transversal (horizontal) joint"]
["Decorative_ALU_Extrusion","m",null,"A023 (HF40)\nSAP code colour specific\ncut to size for brick","included in element price; quantity of transversal (horizontal) joint; supplied in 4 m lenghts; specify color","A097 (HF52)\nSAP code colour specific\ncut to size for brick ???\n30018981 tesnilo EPDM 20X20X15 ?","included in element price; quantity of transversal (horizontal) joint; supplied in 4 m lenghts; specify color","A023 (HF40)\nSAP code colour specific\ncut to size for brick","included in element price; quantity of transversal (horizontal) joint; supplied in 4 m lenghts; specify color","A097 (HF52)\nSAP code colour specific\ncut to size for brick ???\n30018981 tesnilo EPDM 20X20X15 ?","included in element price; quantity of transversal (horizontal) joint; supplied in 4 m lenghts; specify color","A023 (HF40)\nSAP code colour specific\ncut to size for brick","included in element price; quantity of transversal (horizontal) joint; supplied in 4 m lenghts; specify color","A097 (HF52)\nSAP code colour specific\ncut to size for brick ???\n30018981 tesnilo EPDM 20X20X15 ?","included in element price; quantity of transversal (horizontal) joint; supplied in 4 m lenghts; specify color","A023 (HF40)\nSAP code colour specific\ncut to size for brick","included in element price; quantity of transversal (horizontal) joint; supplied in 4 m lenghts; specify color","A097 (HF52)\nSAP code colour specific\ncut to size for brick ???\n30018981 tesnilo EPDM 20X20X15 ?","included in element price; quantity of transversal (horizontal) joint; supplied in 4 m lenghts; specify color"]
["Joint_Profile_20x25x1","m",null,"N544\n30031874","NOT included in element price; quantity of transversal (horizontal) joint","N544\n30031874","NOT included in element price; quantity of transversal (horizontal) joint","N544\n30031874","NOT included in element price; quantity of transversal (horizontal) joint","N544\n30031874","NOT included in element price; quantity of transversal (horizontal) joint","N544\n30031874","NOT included in element price; quantity of transversal (horizontal) joint","N544\n30031874","NOT included in element price; quantity of transversal (horizontal) joint","N544\n30031874","NOT included in element price; quantity of transversal (horizontal) joint","N544\n30031874","NOT included in element price; quantity of transversal (horizontal) joint"]
["PE_Butyl_Tape","pcs",null,"T102\n30016941","NOT included in element price; quantity min. 1 piece per façade element","T102\n30016941","NOT included in element price; quantity min. 1 piece per façade element","T102\n30016941","NOT included in element price; quantity min. 1 piece per façade element","T102\n30016941","NOT included in element price; quantity min. 1 piece per façade element","T102\n30016941","NOT included in element price; quantity min. 1 piece per façade element","T102\n30016941","NOT included in element price; quantity min. 1 piece per façade element","T102\n30016941","NOT included in element price; quantity min. 1 piece per façade element","T102\n30016941","NOT included in element price; quantity min. 1 piece per façade element"]
["Installation_Kit_Package_includes_spacer_crosses_wooden_pad_spray_with_soapy_water_and_installation_manual","pcs",null,"Installation Kit Package - vertical\n30030437","included in element price; quantity 1 pcs per order plus additional 1 pcs for each 500 m2","Installation Kit Package - vertical\n30030437","included in element price; quantity 1 pcs per order plus additional 1 pcs for each 500 m2","Installation Kit Package - vertical\n30030437\n\nNavodilo (imamo za B) - potrebno dopolnit.\nKriž od B je ustrezen.","included in element price; quantity 1 pcs per order plus additional 1 pcs for each 500 m2","Installation Kit Package - vertical\n30030437\n\nNavodilo (imamo za B) - potrebno dopolnit.\nKriž od B je ustrezen.","included in element price; quantity 1 pcs per order plus additional 1 pcs for each 500 m2","Installation Kit Package - vertical\n30030437","included in element price; quantity 1 pcs per order plus additional 1 pcs for each 500 m2","Installation Kit Package - vertical\n30030437","included in element price; quantity 1 pcs per order plus additional 1 pcs for each 500 m2","Installation Kit Package - vertical\nNavodilo (imamo za B) - potrebno dopolnit.\nKriž od B je ustrezen.","included in element price; quantity 1 pcs per order plus additional 1 pcs for each 500 m2","Installation Kit Package - vertical\nNavodilo (imamo za B) - potrebno dopolnit.\nKriž od B je ustrezen.","included in element price; quantity 1 pcs per order plus additional 1 pcs for each 500 m2"]
["Sealing_tape_5x10","m",null,"T060\n30006985","NOT included in element price; quantity as per details","T060\n30006985","NOT included in element price; quantity as per details","T060\n30006985","NOT included in element price; quantity as per details","T060\n30006985","NOT included in element price; quantity as per details","T060\n30006985","NOT included in element price; quantity as per details","T060\n30006985","NOT included in element price; quantity as per details","T060\n30006985","NOT included in element price; quantity as per details","T060\n30006985","NOT included in element price; quantity as per details"]
["EPDM_Cube_Gasket_26x26x30","pcs",null,"T022\n30007025","NOT included in element price; quantity as per details","T022\n30007025","NOT included in element price; quantity as per details","T022\n30007025","NOT included in element price; quantity as per details","not required","NOT included in element price; quantity as per details","T022\n30007025","NOT included in element price; quantity as per details","T022\n30007025","NOT included in element price; quantity as per details","T022\n30007025","NOT included in element price; quantity as per details","not required","NOT included in element price; quantity as per details"]
["Load_Bearing_Fixing_Plate","pcs",null,"N637\n30033030","Included in element price, depending on type of element, any additional elements required for i.e. connection to other facade system not included, quantity subject to design information","N637\n30033030","Included in element price, depending on type of element, any additional elements required for i.e. connection to other facade system not included, quantity subject to design information","N637\n30033030","Included in element price, depending on type of element, any additional elements required for i.e. connection to other facade system not included, quantity subject to design information","N637\n30033030","Included in element price, depending on type of element, any additional elements required for i.e. connection to other facade system not included, quantity subject to design information","N637\n30033030","Included in element price, depending on type of element, any additional elements required for i.e. connection to other facade system not included, quantity subject to design information","N637\n30033030","Included in element price, depending on type of element, any additional elements required for i.e. connection to other facade system not included, quantity subject to design information","N637\n30033030","Included in element price, depending on type of element, any additional elements required for i.e. connection to other facade system not included, quantity subject to design information","N637\n30033030","Included in element price, depending on type of element, any additional elements required for i.e. connection to other facade system not included, quantity subject to design information"]
["Seaming_tool_recomended","pcs",null,"PS 130\n30029421","NOT included in element price; quantity as required by installation company","PS 130\n30029421","NOT included in element price; quantity as required by installation company","PS 130\n30029421","NOT included in element price; quantity as required by installation company","PS 130\n30029421","NOT included in element price; quantity as required by installation company","PS 130\n30029421","NOT included in element price; quantity as required by installation company","PS 130\n30029421","NOT included in element price; quantity as required by installation company","PS 130\n30029421","NOT included in element price; quantity as required by installation company","PS 130\n30029421","NOT included in element price; quantity as required by installation company"]
["Mastic_seal_MS_polymer_based_or_PUR_based_required_for_EPDM_cube_and_internal_joint_sealing","pcs",null,"Mastic seal MS polymer TEKA FLEX MS15 black 600ml          SAP:30031854\n","NOT included in element price; quantity as required by installation company","Mastic seal MS polymer TEKA FLEX MS15 black 600ml          SAP:30031854\n","NOT included in element price; quantity as required by installation company","Mastic seal MS polymer TEKA FLEX MS15 black 600ml          SAP:30031854\n","NOT included in element price; quantity as required by installation company","Mastic seal MS polymer TEKA FLEX MS15 black 600ml          SAP:30031854\n","NOT included in element price; quantity as required by installation company","Mastic seal MS polymer TEKA FLEX MS15 black 600ml          SAP:30031854\n","NOT included in element price; quantity as required by installation company","Mastic seal MS polymer TEKA FLEX MS15 black 600ml          SAP:30031854\n","NOT included in element price; quantity as required by installation company","Mastic seal MS polymer TEKA FLEX MS15 black 600ml          SAP:30031854\n","NOT included in element price; quantity as required by installation company","Mastic seal MS polymer TEKA FLEX MS15 black 600ml          SAP:30031854\n","NOT included in element price; quantity as required by installation company"]
["EPDM_Gasket_Cube_for_BF-BF_joint","pcs",null,null,null,null,null,null,null,"SAP: 30018981 ","Included in element price",null,null,null,null,null,null,"SAP: 30018981 ","Included in element price"]
["EMPTY"]
[]
[]
[]
[]
[]
[]
[]
[]
[]
[]
[]
[]
[]
[]
[]
[]
[]
[]
[]
[]
[]
[]
[]
[]
[]
[]
[]
[]
[]
[]
[]
[]
[]
[]
[]
[]
[]
[]
[]
[null,null,null,"ODKAPNIK SPODAJ 31X38X66 EPDM",null,30006438]
[null,null,null,"ODKAPNIK SPODAJ 31X38X66 EPDM",null,602247]
[null,null,null,"ODKAPNIK SPODAJ QB 32X22X176 NER (01046)",null,30027664]
[null,null,null,"ODKAPNIK SPODAJ QF 7X44X70 NER. (01256)",null,30025355]
[null,null,null,"ODKAPNIK SPOJA 3-PAN.-OPEČNA  3.7X44X92",null,30007027]
[null,null,null,"ODKAPNIK SPOJA 4-PAN.HORIZ. QFB 3X44X140",null,30025013]
[null,null,null,"ODKAPNIK SPOJA 4-PANELOV FUSION 7X44X119",null,30012038]
[null,null,null,"ODKAPNIK SPOJA 4-PANELOV HORIZ. 3X44X156",null,30006439]
[null,null,null,"ODKAPNIK SPOJA 4-PANELOV HORIZ. 3X44X156",null,30014945]
[null,null,null,"ODKAPNIK SPOJA 4-PANELOV HORIZ. 3X44X156",null,602244]
[null,null,null,"ODKAPNIK TESNILA 50X60 NER. QF (01259)",null,30026913]
[null,null,null,"ODKAPNIK TESNILA 50X85 NER. QB (0655)",null,30026912]
[]
[]
[]
[]
[null,null,null,"PAKET MONTAŽNI MALI QBISS BRICK",null,30018303]
[null,null,null,"PAKET MONTAŽNI MALI QBISS FUSION",null,30012195]
[null,null,null,"PAKET MONTAŽNI MALI QBISS HORIZONTAL",null,30007109]
[]
[null,null,null,"PAKET MONTAŽNI MALI QBISS VERTICAL",null,30030437]
[]
[]
[null,null,null,"PAKET MONTAŽNI QBISS SCREEN H",null,30029187]
[null,null,null,"PAKET MONTAŽNI QBISS SCREEN H FB",null,30029188]

{"sheet":"UPDATES","index":14,"n_rows":36,"n_cols":2,"rows_kept":36,"cut":false,"hidden":true,"merged":[]}
["Version","What is new"]
["1.0","Release"]
["1.1","Minor fixes"]
["1.2","Status of fulfilled cells is added. In case elements are not defined, status NOT OK in red is shown. When element is completely defined, it shows OK in green cell. "]
[null,"Added table for temporary fixation. Defined all possible fixation types."]
["1.2.1.","U-corner element - Instructions for length of B and C needed to be switched"]
["1.2.2.","Characters of profilation are written with capital letters"]
[null,"Internal profile M and M3 added"]
[null,"Thickness = T; changed from S"]
[null,"Profilation -> changed to profile"]
[null,"Colour - Seren Anthracite added, Shiny Mirror deleted"]
[null,"Scheme for Transversal and longitudinal corner element has been changed"]
[null,"Changed internal steel sheet protection: PUR -> PUR-PA"]
[null,"Scheme for joint types has been updated"]
[null,"Naming of colour: Seren Anthracite - > Anthracite Solet"]
[null,"3D diagonal-cut corner element added - horizontal"]
[null,"3D edge-cut corner element added - horizontal"]
[null,"Seren Midas colour added"]
["1.2.3.","Minimum length of element is 500mm except for type:5,6,7,8,9,10,11,12. -> 550mm<R<6475mm"]
[null,"Increased number of decimal places when showing TOTAL m2 of elements"]
[null,"Update to Accessories names"]
[null,"3D edge-cut corner elements: updated R1 & R2 limitations"]
["1.2.4.","Fixing screw - Accessories - Description text is changed to: Not included in element price. Number of fixing screws is determined with structural calculation provided by Trimo Technical Support"]
[null,"Transversal L-corner: Correction of equation. Dimension A=1400 and B = 1400 does not comply with limitations - corrected"]
[null,"Restriction to enter a different profile of the internal steel sheet than the one from the dropdown menu"]
[null,"Added new picture for transport"]
["1.2.5.","New tab for transversal spliced corner alement and longitudinal spliced corner element is added"]
[null,"Thickness of Longitudinal spliced corner elements changed from 80, 100, 120, 133, 150 to 80, 100, 120, 133, 150, 172, 200, 220, 240, 250"]
["1.2.6.","Internal profile: standard and optionla defined. Standard is V all others are optional."]
["1.2.7.","New SAP code for loadbearing fixing plate. 30033030"]
["1.2.8.","Density of Power S mineral wool changed from 114 kg/m3 to 120 kg/m3"]
["1.2.9.","Description for Mastic seal together with SAP is added."]
[null,"EPDM gasket cube for BF-BF joint is addet to accessories"]
[null,"SCREW 7530 and 7520 has been replaced by JT3-D-12H-5,5/6,3x245 (30024059) and JT3-D-6H-5,5/6,3x237 (3002382)"]
["1.2.10.","Formula for longitudinal spliced corner corrected (limitations A B)"]
["1.2.11.","Type of fixings for self load changed from END to Ejot"]

{"sheet":"Data 1","index":15,"n_rows":174,"n_cols":17,"rows_kept":174,"cut":false,"hidden":true,"merged":[[140,1,140,5],[141,1,141,5]]}
["Data"]
["Type of cladding  system","System"]
["Horizontal"]
["Vertical"]
["Horizontal_brick"]
["Vertical_brick"]
["Horizontal_asymmetrical_brick"]
[]
[]
["Joint","Horizontal","Vertical","Horizontal_brick","Vertical_brick","Horizontal_asymmetrical_brick"]
["B-B","B-B","B-B","B-B","B-B","B-B"]
["B-BF","B-BF","B-BF","B-BF","B-BF","B-BF"]
["BF-B","BF-B","BF-B","BF-B","BF-B","BF-B"]
["BF-BF","BF-BF","BF-BF","BF-BF","BF-BF","BF-BF"]
["F-B","F-B",null,"F-B",null,"F-B"]
["F-BF","F-BF",null,"F-BF",null,"F-BF"]
[]
["Joint","Horizontal","Vertical","Horizontal_brick","Vertical_brick","Horizontal_asymmetrical_brick"]
["B-B","B_B_Horizontal","B_B_Vertical","B_B_Horizontal_brick","B_B_Vertical_brick","B_B_Horizontal_asymmetrical_brick"]
["B-BF","B_BF_Horizontal","B_BF_Vertical","B_BF_Horizontal_brick","B_BF_Vertical_brick","B_BF_Horizontal_asymmetrical_brick"]
["BF-B","BF_B_Horizontal","BF_B_Vertical","BF_B_Horizontal_brick","BF_B_Vertical_brick","BF_BH_orizontal_asymmetrical_brick"]
["BF-BF","BF_BF_Horizontal","BF_BF_Vertical","BF_BF_Horizontal_brick","BF_BF_Vertical_brick","BF_BF_Horizontal_asymmetrical_brick"]
["F-B","F_B_Horizontal",null,"F_B_Horizontal_brick",null,"F_B_Horizontal_asymmetrical_brick"]
["F-BF","F_BF_Horizontal",null,"F_BF_Horizontal_brick",null,"F_BF_Horizontal_asymmetrical_brick"]
[]
[]
["Joint","Picture"]
[{"$f":"B19","v":"B_B_Horizontal"}]
["B_BF_Horizontal"]
["BF_B_Horizontal"]
["BF_BF_Horizontal"]
["F_B_Horizontal"]
["F_BF_Horizontal"]
[{"$f":"C19","v":"B_B_Vertical"}]
[{"$f":"C20","v":"B_BF_Vertical"}]
[{"$f":"C21","v":"BF_B_Vertical"}]
[{"$f":"C22","v":"BF_BF_Vertical"}]
[{"$f":"D19","v":"B_B_Horizontal_brick"}]
["B_BF_Horizontal_brick"]
["BF_B_Horizontal_brick"]
["BF_BF_Horizontal_brick"]
["F_B_Horizontal_brick"]
["F_BF_Horizontal_brick"]
[{"$f":"E19","v":"B_B_Vertical_brick"}]
[{"$f":"E20","v":"B_BF_Vertical_brick"}]
[{"$f":"E21","v":"BF_B_Vertical_brick"}]
[{"$f":"E22","v":"BF_BF_Vertical_brick"}]
[{"$f":"F19","v":"B_B_Horizontal_asymmetrical_brick"}]
["B_BF_Horizontal_asymmetrical_brick"]
["BF_BH_orizontal_asymmetrical_brick"]
["BF_BF_Horizontal_asymmetrical_brick"]
["F_B_Horizontal_asymmetrical_brick"]
["F_BF_Horizontal_asymmetrical_brick"]
[]
[]
[]
["L-corner elements","Vertical",null,null,"Horizontal"]
[]
["Type of assembly"]
["No_selection"]
[null,null,null,null,"Transversal_corner"]
["Longitudinal_corner"]
[]
[]
["Joint","Transversal_corner","Longitudinal_corner","No_selection"]
[null,"B-B","B-B","No_selection"]
[null,"B-BF","B-BF"]
[null,"BF-B","BF-B"]
[null,"BF-BF","BF-BF"]
[null,"F-B"]
[null,"F-BF"]
[]
[]
["Joint","Transversal_corner","Longitudinal_corner","No_selection"]
["B-B","B_B_Transversal_corner","B_B_Longitudinal_corner"]
["B-BF","B_BF_Transversal_corner","B_BF_Longitudinal_corner"]
["BF-B","BF_B_Transversal_corner","BF_B_Longitudinal_corner"]
["BF-BF","BF_BF_Transversal_corner","BF_BF_Longitudinal_corner"]
["F-B","F_B_Transversal_corner"]
["F-BF","F_BF_Transversal_corner"]
["No_selection",null,null,"No_selection1"]
[]
[]
["B_B_Transversal_corner"]
["B_BF_Transversal_corner"]
["BF_B_Transversal_corner"]
["BF_BF_Transversal_corner"]
["F_B_Transversal_corner"]
["F_BF_Transversal_corner"]
["B_Longitudinal_corner"]
["B_BF_Longitudinal_corner"]
["BF_B_Longitudinal_corner"]
["BF_BF_Longitudinal_corner"]
["No_selection1"]
[]
[]
["Element type","Horizontal","Vertical","Horizontal_brick","Vertical_brick","Horizontal_asymmetrical_brick",null,null,null,null,null,"Corner_and_curved",null,null,null,"Longitudinal1","Transversal1"]
[]
[null,1,1,1,1,1,null,null,null,null,null,1,null,null,null,1,1]
[null,2,3,2,3,2,null,null,null,null,null,2,null,null,null,3,2]
[null,3,5,3,5,3,null,null,null,null,null,3,null,null,null,5,3]
[null,4,7,4,7,4,null,null,null,null,null,4,null,null,null,6,4]
[null,5,8,5,8,5,null,null,null,null,null,5,null,null,null,7,5]
[null,6,9,6,9,6,null,null,null,null,null,6,null,null,null,8,6]
[null,7,null,7,null,7,null,null,null,null,null,7,null,null,null,9,7]
[null,8,null,8,null,8,null,null,null,null,null,8,null,null,null,null,8]
[null,9,null,9,null,9,null,null,null,null,null,9,null,null,null,null,9]
[null,10]
[null,11]
[null,12]
[]
[]
[]
["Curved elements"]
[]
["Curved elements type"]
["No_selection"]
["Longitudinal"]
["Transversal"]
[]
[]
["U_corner_element"]
["No_selection"]
["U_corner_element"]
[]
[]
[]
[]
[]
["U_corner_joint_possibilities"]
["No_selection"]
["B"]
["B_BF"]
["BF_B"]
["BF_BF"]
["F_B"]
["F_BF"]
[]
[]
["Curved_elements_section"]
["Longitudinal_"]
["Transversal_"]
[]
[]
[]
[]
["3D corner limitations"]
[null,null,null,null,null,null,null,null,"3D edge-cut Corner limitations"]
[]
[null,null,null,null,null,null,null,null,"T","Amin(Bmin)","Amax(Bmax)","R1min(R2min)","R1max(R2max)"]
[null,null,null,null,null,null,null,null,80,315,{"$f":"1200-J151","v":885},315,1000]
[null,null,null,null,null,null,null,null,100,335,{"$f":"1200-J152","v":865},335,1000]
[null,null,null,null,null,null,null,null,120,355,845,355,1000]
[null,null,null,null,null,null,null,null,133,368,832,368,1000]
[null,null,null,null,null,null,null,null,150,385,815,385,1000]
[null,null,null,null,null,null,null,null,172,407,793,407,1000]
[null,null,null,null,null,null,null,null,200,435,765,435,1000]
[null,null,null,null,null,null,null,null,240,475,725,475,1000]
[null,null,null,null,null,null,null,null,250,475,725,475,1000]
[]
[]
[]
[null,null,null,null,null,null,null,null,"3D diagonal-cut corner element"]
[]
[null,null,null,null,null,null,null,null,"T","Amin(Bmin)","Amax(Bmax)","R1min(R2min)","R1max(R2max)"]
[null,null,null,null,null,null,null,null,80,315,{"$f":"1200-J166","v":885},515,1000]
[null,null,null,null,null,null,null,null,100,335,{"$f":"1200-J167","v":865},535,1000]
[null,null,null,null,null,null,null,null,120,355,845,555,1000]
[null,null,null,null,null,null,null,null,133,368,832,568,1000]
[null,null,null,null,null,null,null,null,150,385,815,585,1000]
[null,null,null,null,null,null,null,null,172,407,793,607,1000]
[null,null,null,null,null,null,null,null,200,435,765,635,1000]
[null,null,null,null,null,null,null,null,240,475,725,675,1000]
[null,null,null,null,null,null,null,null,250,485,715,685,1000]

{"sheet":"Data 2","index":16,"n_rows":79,"n_cols":23,"rows_kept":79,"cut":false,"hidden":true,"merged":[]}
["External colour","External coating",null,null,"Internal colour","Internal coating",null,null,"Thickness of external steel sheet",null,null,null,null,"External steel sheet profilation",null,null,null,"Thickness of elements",null,null,null,null,"Mineral wool"]
[null,null,null,null,null,null,null,null,0.7,null,null,null,null,"G"]
["White","PUR-PA 50",null,null,"White","SP 25",null,null,null,null,null,null,null,null,null,null,null,80,null,null,null,null,"Power T"]
["Grey White","PUR-PA 50",null,null,"Grey White","PVDF 25",null,null,null,null,null,null,null,null,null,null,null,100,null,null,null,null,"Power S"]
["Cream","PUR-PA 50",null,null,"Cream","PVDF 35",null,null,"Thickness of internal steel sheet",null,null,null,null,"Internal steel sheet profilation",null,null,null,120,null,null,null,null,"Perform C"]
["Light Grey","PUR-PA 50",null,null,"Light Grey","PUR-PA 50",null,null,null,null,null,null,null,null,null,null,null,133]
["Bright Yellow","PUR-PA 50",null,null,"Agate Grey","HPS 200",null,null,0.5,null,null,null,null,"\"V\" (standard)",null,null,null,150]
["Basalt Grey","PUR-PA 50",null,null,"Tale Grey 2","PRISMA",null,null,0.55000000000000004,null,null,null,null,"\"V2\" (optional)",null,null,null,172]
["Sapphire Blue","PUR-PA 50",null,null,"Silver","INOX 304",null,null,0.6,null,null,null,null,"\"G\" (optional)",null,null,null,200]
["Traffic Red","PUR-PA 50",null,null,"Dark Silver","RAL 9001 PVCF 150",null,null,0.7,null,null,null,null,"\"S\" (optional)",null,null,null,240]
["Anthracite","PUR-PA 50",null,null,"Traffic Red","RAL 9003 PVCF 120",null,null,null,null,null,null,null,"\"M\" (optional)",null,null,null,250]
["Black","PUR-PA 50",null,null,"Moss Green","RAL 9010 PVCF 150",null,null,null,null,null,null,null,"\"M3\" (optional)"]
["Light Silver","PUR-PA 50",null,null,"Gential Blue","Other"]
["Silver","PUR-PA 50",null,null,"Anthracite"]
["Dark Silver","PUR-PA 50",null,null,"Other"]
["Light Graphite","PUR-PA 50",null,null,null,null,null,null,null,null,null,null,null,null,null,null,null,"Thickness of longitudinal spliced corner elements"]
["Anthracite Solet","PVDF 40"]
["Seren White","PVDF 40",null,null,null,null,null,null,null,null,null,null,null,null,null,null,null,80,80]
["Seren Silver","PVDF 40",null,null,null,null,null,null,null,null,null,null,null,null,null,null,null,100,100]
["Seren Gold","PVDF 40",null,null,null,null,null,null,null,null,null,null,null,null,null,null,null,120,120]
["Seren Copper","PVDF 40",null,null,null,null,null,null,null,null,null,null,null,null,null,null,null,133,133,"katra je prava?"]
["Seren Black","PVDF 40",null,null,null,null,null,null,null,null,null,null,null,null,null,null,null,150,150]
["Seren Midas","PVDF 40",null,null,null,null,null,null,null,null,null,null,null,null,null,null,null,null,172]
["Sirius Sparkle","PVDF 40",null,null,null,null,null,null,null,null,null,null,null,null,null,null,null,null,200]
["Orion Sparkle","PVDF 40",null,null,null,null,null,null,null,null,null,null,null,null,null,null,null,null,220]
["Zeus Sparkle","PVDF 40",null,null,null,null,null,null,null,null,null,null,null,null,null,null,null,null,240]
["Quadro Lucido","INOX",null,null,null,null,null,null,null,null,null,null,null,null,null,null,null,null,250]
["Dots Lucido","INOX"]
["2WL Lucido","INOX"]
["5WL Lucido","INOX"]
["Pelle Lucido","INOX"]
["Other"]
[]
["Transport"]
[]
["Transport type"]
["No_selection"]
["Truck"]
["Ship_containers"]
["Train"]
["Air_transport"]
[]
[]
["Type of packaging"]
["No selection"]
["Standard packaging"]
["Extended packaging"]
[]
[]
["Additional packaging elements"]
["Lifting bands"]
["No selection"]
["YES"]
["NO"]
[]
["Reinforcement pallets"]
["No selection"]
["YES"]
["NO"]
[]
["EPS support blocks"]
["No selection"]
["YES "]
["NO"]
[]
[]
[]
["Certificate requirement"]
["None"]
["FM approval"]
["CSTB France"]
["LPCB UK Insurance approval"]
["Ü (Zulassung) Germany"]
["BREEAM"]
["BREEAM Netherland"]
["LEED"]
["FOOD SAFE"]
["DGNB"]
["Other"]